{"text_format":"1","workbook":"xlsx","n_sheets":8,"sheets":["Title","Notes","Interactive Region Table","NUTS1 (Summary Data)","NUTS2","NUTS3","VlookupList","Lists"],"not_rendered":{"charts":2,"images":2,"macros":1,"external_links":0,"defined_names":96,"comments":0,"pivot_tables":0},"unopened":[],"bounds":{"document_bytes":16777216,"sheet_cells":100000,"rows_first":2000,"rows_last":500,"rows_between":2000,"halvings":0,"cell_chars":16384,"cell_head_chars":4096},"cells_cut":0,"cells_raw":0,"read":"whole","date_system":"1900"}

{"sheet":"Title","index":0,"n_rows":22,"n_cols":5,"rows_kept":22,"cut":false,"hidden":false,"merged":[[21,0,21,4],[1,0,2,3],[12,0,12,4],[13,0,13,4],[14,0,14,4],[15,0,15,4]]}
[]
[]
[]
[]
[]
[]
[]
[]
[]
[]
[]
[]
["Regional Trade in Goods Statistics dis-aggregated by smaller geographical areas\n\n"]
[2018]
["Interactive Data Tool"]
[]
[]
["Contents",null,null,null,"Page"]
[]
["Notes",null,null,null,1]
["Interactive Region Table",null,null,null,2]
["HM Revenue & Customs: Trade Statistics & Customs Analysis                            7 November 2019"]

{"sheet":"Notes","index":1,"n_rows":24,"n_cols":2,"rows_kept":24,"cut":false,"hidden":false,"merged":[]}
["Notes to Tables"]
[]
[]
["General"]
[]
["(a)","This release uses the same allocation methodology as the Regional Trade Statistics."]
["(b)","Data is compiled by merging trade data collected by HMRC with employment data from the Interdepartmental Business Register (IDBR). A business’ trade is allocated to a region based on the proportion of its employees employed in that region. Where a trader is not matched with the IDBR, its trade is matched with Office for National Statistics postcode data to obtain the region in which the Head Office of the VAT registered business (importer or exporter) is based."]
["(c)","Not all trade can be assigned to a NUTS1 region or smaller areas. Where appropriate, this is referred to in the tables as the ‘Unallocated Trade’. Un-allocated Trade is split into:\ni. ‘Unallocated – Known’: where we have virtually full details of the trade but it is not appropriate to allocate it to a region. This covers: \n• trade going into or out of the Channel Islands or the Isle of Man; \n• trade carried out by the UK Government;\n• trade carried out by overseas based traders who have a VAT presence in the UK; and\n• parcel post trade that is dealt with centrally (trade with non-EU countries only).\nii. ‘Unallocated – Unknown’: This includes:\n• Trade where business details submitted are invalid\n• Un-registered businesses (Non-EU only)\n• Private Individuals (non-EU only); and\n• Low Value Trade (non-EU only).\n"]
["(d)","Certain allocations made in the RTS have not been allocated to areas smaller than NUTS1. These are Below Threshold Trade Allocations and Fixed Link Energy Allocations."]
["(e)","Like the RTS, this release does not include estimates for late-response. It also excludes trade in non-monetary gold, which is included in OTS data from 2005 onwards."]
["(f)","More information can be found in the RTS methodology document which includes additional information concerning this release. "]
[]
["NUTS1 data"]
[]
["(g)","This is the annual NUTS1 data that replicates already published RTS data. If looking for NUTS1 data you are advised to consult RTS products rather than summing the data in this release. Likewise for UK data, please consult the OTS."]
[]
[]
["NUTS2 data"]
[]
["(h)","These are totals for all NUTS2 and NUTS3 in the UK. All values are rounded to nearest £million so there may be rounding errors when summing. See note (g) for accessing NUTS1 data if required."]
["(i)"," The number of businesses for a high level region will be less than the sums of the business counts of their constituent smaller level regions."]
["(j)","The business counts at NUTS2 and NUTS3 total level include businesses under the Intrastat threshold (Below Threshold Traders)"]
["(k)","In the RTS there are two methods used to allocate a business' trade to regions for multi-branch businesses. This release uses the 'Whole Number Method' where a business counts as 1 in each region they trade."]
["(l)","All Stores and Provisions data has been moved to residual 'Other' areas. "]

{"sheet":"Interactive Region Table","index":2,"n_rows":48,"n_cols":8,"rows_kept":48,"cut":false,"hidden":false,"merged":[[46,5,46,7],[47,5,47,7],[21,5,21,7],[22,5,22,7],[23,5,23,7],[24,5,24,7],[25,5,25,7],[32,5,33,17],[37,5,39,5],[43,5,43,7],[3,3,6,14],[44,5,44,7],[45,5,45,7],[10,1,11,2],[9,1,9,2],[15,5,17,5],[10,5,11,17]]}
[]
[]
[]
[null,null,null,"Regional trade in goods statistics disaggregated by smaller geographical areas - Interactive spreadsheet"]
[]
[]
[]
[]
[]
[null,"Using the drop-down lists below\n"]
[null,"1. Select either EU or Non-EU\n2. Select either imports or exports\n3. Select the NUTS1 area, then the NUTS2 area, and then the NUTS3 areas",null,null,null,{"$f":"IF($C$15=\"Please Select\",\" \",\"Total value (£ million) of \"&IF($C$13=\"Please Select\",\" \",$C$13)&\" \"&IF($C$14=\"Please Select\",\" \",$C$14)& \" in 2018 (\"&IF($C$15=\"Please Select\",\" \",$C$15)&\", \"&IF($C$16=\"Please Select NUTS 1\",\" \",$C$16)&\", \"&IF($C$17=\"Please Select NUTS 2\",\" \",$C$17)&\", \"&IF($C$18=\"Please Select NUTS 2\",\" \",$C$18)&\", and \"&IF($C$19=\"Please Select NUTS 2\",\" \",$C$19)&\")\")","v":" "}]
[]
[null,"Select EU/Non-EU","Please Select",null,null,null,null,"Total value (£ million)"]
[null,"Select Flow","Please Select",null,null,"NUTS 1 Area",{"$f":"IF($C15=\"Please Select\",\" \",$C15)","v":" "},{"$f":"IF(ISERROR(VLOOKUP((LEFT($C$14,3))&$C$13&$G14,'NUTS1 (Summary Data)'!$A:$E,5,FALSE)),\"S\",VLOOKUP((LEFT($C$14,3))&$C$13&$G14,'NUTS1 (Summary Data)'!$A:$E,5,FALSE))","v":"S"}]
[null,"Select NUTS1 area","Please Select",null,null,"NUTS 2 Area",{"$f":"IF($C16=\"Please Select\",\" \",$C16)","v":" "},{"$f":"IF(ISERROR(VLOOKUP((LEFT($C$14,3))&$C$13&$G14&$G15,NUTS2!$A:$F,6,FALSE)),\"S\",VLOOKUP((LEFT($C$14,3))&$C$13&$G14&$G15,NUTS2!$A:$F,6,FALSE))","v":"S"}]
[null,"Select NUTS2 area","Please Select",null,null,"NUTS 3 Areas",{"$f":"IF($C17=\"Please Select\",\" \",$C17)","v":" "},{"$f":"IF(ISERROR(VLOOKUP((LEFT($C$14,3))&$C$13&$G14&$G15&$G16,NUTS3!$A:$G,7,FALSE)),\"S\",VLOOKUP((LEFT($C$14,3))&$C$13&$G14&$G15&$G16,NUTS3!$A:$G,7,FALSE))","v":"S"}]
[null,"Select NUTS3 area","Please Select",null,null,null,{"$f":"IF($C18=\"Please Select\",\" \",$C18)","v":" "},{"$f":"IF(ISERROR(VLOOKUP((LEFT($C$14,3))&$C$13&$G$14&$G$15&$G17,NUTS3!$A:$G,7,FALSE)),\"S\",VLOOKUP((LEFT($C$14,3))&$C$13&$G$14&$G$15&$G17,NUTS3!$A:$G,7,FALSE))","v":"S"}]
[null,"Select NUTS3 area","Please Select",null,null,null,{"$f":"IF($C19=\"Please Select\",\" \",$C19)","v":" "},{"$f":"IF(ISERROR(VLOOKUP((LEFT($C$14,3))&$C$13&$G$14&$G$15&$G18,NUTS3!$A:$G,7,FALSE)),\"S\",VLOOKUP((LEFT($C$14,3))&$C$13&$G$14&$G$15&$G18,NUTS3!$A:$G,7,FALSE))","v":"S"}]
[null,"Select NUTS3 area","Please Select"]
[]
[]
[null,null,null,null,null,{"$f":"IF(ISERROR(\"The total value of \"&$C$13&\" \"&$C$14&\" for \"&$G$14&\" was £\"&ROUND($H$14,0)&\" million in 2018.\"),\" \",(\"The total value of \"&$C$13&\" \"&$C$14&\" for \"&$G$14&\" was £\"&ROUND($H$14,0)&\" million in 2018.\"))","v":" "}]
[null,null,null,null,null,{"$f":"IF(ISERROR(\"The total value of \"&$C$13&\" \"&$C$14&\" for \"&$G$15&\" was £\"&ROUND($H$15,0)&\" million in 2017.\"), \" \",(\"The total value of \"&$C$13&\" \"&$C$14&\" for \"&$G$15&\" was £\"&ROUND($H$15,0)&\" million in 2017.\"))","v":" "}]
[null,null,null,null,null,{"$f":"IF(ISERROR(\"The total value of \"&$C$13&\" \"&$C$14&\" for \"&$G$16&\" was £\"&ROUND($H$16,0)&\" million in 2018.\"),\" \",(\"The total value of \"&$C$13&\" \"&$C$14&\" for \"&$G$16&\" was £\"&ROUND($H$16,0)&\" million in 2018.\"))","v":" "}]
[null,null,null,null,null,{"$f":"IF(ISERROR(\"The total value of \"&$C$13&\" \"&$C$14&\" for \"&$G$17&\" was £\"&ROUND($H$17,0)&\" million in 2018.\"),\" \",(\"The total value of \"&$C$13&\" \"&$C$14&\" for \"&$G$17&\" was £\"&ROUND($H$17,0)&\" million in 2018.\"))","v":" "}]
[null,null,null,null,null,{"$f":"IF(ISERROR(\"The total value of \"&$C$13&\" \"&$C$14&\" for \"&$G$18&\" was £\"&ROUND($H$18,0)&\" million in 2018.\"),\" \",(\"The total value of \"&$C$13&\" \"&$C$14&\" for \"&$G$18&\" was £\"&ROUND($H$18,0)&\" million in 2018.\"))","v":" "}]
[]
[]
[]
[]
[]
[]
[null,null,null,null,null,{"$f":"IF($C$15=\"Please Select\",\" \",\"Total business count of \"&IF($C$13=\"Please Select\",\" \",$C$13)&\" \"&IF($C$14=\"Please Select\",\" \",$C$14)& \" in 2018 (\"&IF($C$15=\"Please Select\",\" \",$C$15)&\", \"&IF($C$16=\"Please Select NUTS 1\",\" \",$C$16)&\", \"&IF($C$17=\"Please Select NUTS 2\",\" \",$C$17)&\", \"&IF($C$18=\"Please Select NUTS 2\",\" \",$C$18)&\", and \"&IF($C$19=\"Please Select NUTS 2\",\" \",$C$19)&\")\")","v":" "}]
[]
[null,null,null,null,null,null,null,"Total business count"]
[null,null,null,null,null,"NUTS 1 Area",{"$f":"IF($C15=\"Please Select\",\" \",$C15)","v":" "},{"$f":"IF(ISERROR(VLOOKUP((LEFT($C$14,3))&$C$13&$G36,'NUTS1 (Summary Data)'!$A:$F,6,FALSE)),\"S\",VLOOKUP((LEFT($C$14,3))&$C$13&$G36,'NUTS1 (Summary Data)'!$A:$F,6,FALSE))","v":"S"}]
[null,null,null,null,null,"NUTS 2 Area",{"$f":"IF($C16=\"Please Select\",\" \",$C16)","v":" "},{"$f":"IF(ISERROR(VLOOKUP((LEFT($C$14,3))&$C$13&$G36&$G37,NUTS2!$A:$G,7,FALSE)),\"S\",VLOOKUP((LEFT($C$14,3))&$C$13&$G36&$G37,NUTS2!$A:$G,7,FALSE))","v":"S"}]
[null,null,null,null,null,"NUTS 3 Areas"," ",{"$f":"IF(ISERROR(VLOOKUP((LEFT($C$14,3))&$C$13&$G36&$G37&$G38,NUTS3!$A:$H,8,FALSE)),\"S\",VLOOKUP((LEFT($C$14,3))&$C$13&$G36&$G37&$G38,NUTS3!$A:$H,8,FALSE))","v":"S"}]
[null,null,null,null,null,null," ",{"$f":"IF(ISERROR(VLOOKUP((LEFT($C$14,3))&$C$13&$G$14&$G$15&$G39,NUTS3!$A:$H,8,FALSE)),\"S\",VLOOKUP((LEFT($C$14,3))&$C$13&$G$14&$G$15&$G39,NUTS3!$A:$H,8,FALSE))","v":"S"}]
[null,null,null,null,null,null," ",{"$f":"IF(ISERROR(VLOOKUP((LEFT($C$14,3))&$C$13&$G$14&$G$15&$G40,NUTS3!$A:$H,8,FALSE)),\"S\",VLOOKUP((LEFT($C$14,3))&$C$13&$G$14&$G$15&$G40,NUTS3!$A:$H,8,FALSE))","v":"S"}]
[]
[]
[]
[null,null,null,null,null,{"$f":"IF(ISERROR(\"The total business count of \"&$C$13&\" \"&LEFT($C$14,5)&\"ers\"&\" in \"&$G$36&\" was \"&ROUND($H$36,0)&\" in 2018.\"),\" \",(\"The total business count of \"&$C$13&\" \"&LEFT($C$14,6)&\"ers\"&\" in \"&$G$36&\" was \"&ROUND($H$36,0)&\" in 2018.\"))","v":" "}]
[null,null,null,null,null,{"$f":"IF(ISERROR(\"The total business count of \"&$C$13&\" \"&LEFT($C$14,6)&\"ers\"&\" in \"&$G$37&\" was \"&ROUND($H$37,0)&\" in 2018.\"), \" \",(\"The total business count of \"&$C$13&\" \"&LEFT($C$14,6)&\"ers\"&\" in \"&$G$37&\" was \"&ROUND($H$37,0)&\" in 2018.\"))","v":" "}]
[null,null,null,null,null,{"$f":"IF(ISERROR(\"The total business count of \"&$C$13&\" \"&LEFT($C$14,6)&\"ers\"&\" in \"&$G$38&\" was \"&ROUND($H$38,0)&\" in 2018.\"),\" \",(\"The total business count of \"&$C$13&\" \"&LEFT($C$14,6)&\"ers\"&\" in \"&$G$38&\" was \"&ROUND($H$38,0)&\" in 2018.\"))","v":" "}]
[null,null,null,null,null,{"$f":"IF(ISERROR(\"The total business count of \"&$C$13&\" \"&LEFT($C$14,6)&\"ers\"&\" in \"&$G$39&\" was \"&ROUND($H$39,0)&\" in 2018.\"),\" \",(\"The total business count of \"&$C$13&\" \"&LEFT($C$14,6)&\"ers\"&\" in \"&$G$39&\" was \"&ROUND($H$39,0)&\" in 2018.\"))","v":" "}]
[null,null,null,null,null,{"$f":"IF(ISERROR(\"The total business count of \"&$C$13&\" \"&LEFT($C$14,6)&\"ers\"&\" in \"&$G$40&\" was \"&ROUND($H$40,0)&\" in 2018.\"),\" \",(\"The total business count of \"&$C$13&\" \"&LEFT($C$14,6)&\"ers\"&\" in \"&$G$40&\" was \"&ROUND($H$40,0)&\" in 2018.\"))","v":" "}]

{"sheet":"NUTS1 (Summary Data)","index":3,"n_rows":59,"n_cols":15,"rows_kept":59,"cut":false,"hidden":true,"merged":[[0,1,0,3]]}
[null,"Table 1 - NUTS1 by Flow - 2018"]
[]
[null,"Flow","EU / Non-EU","NUTS1","Statistical Value (£ million)","Business Count",null,"Flow","EU / Non-EU","Statistical Value (£ million)","Business Count",null,"Flow","Statistical Value (£ million)","Business Count"]
[{"$f":"$B4&$C4&$D4","v":"ExpEUEast"},"Exp","EU","East",14874,13883,null,"Exp","EU",170003,121430,null,"Exp",339506,156330]
[{"$f":"$B5&$C5&$D5","v":"ExpEUEast Midlands"},"Exp","EU","East Midlands",11391,10456,null,"Exp","Non-EU",169503,77312,null,"Imp",481828,243308]
["ExpEULondon","Exp","EU","London",16139,20813,null,"Imp","EU",262984,169066]
["ExpEUNorth East","Exp","EU","North East",7896,3369,null,"Imp","Non-EU",218844,120245]
["ExpEUNorthern Ireland","Exp","EU","Northern Ireland",5392,8412]
["ExpEUNorth West","Exp","EU","North West",14290,12911]
["ExpEUScotland","Exp","EU","Scotland",17255,6861]
["ExpEUSouth East","Exp","EU","South East",22690,21938]
["ExpEUSouth West","Exp","EU","South West",9681,11172]
["ExpEUWales","Exp","EU","Wales",10534,4206]
["ExpEUWest Midlands","Exp","EU","West Midlands",15015,12417]
["ExpEUYorkshire and the Humber","Exp","EU","Yorkshire and the Humber",10907,9903]
["ExpEUUnallocated-Known","Exp","EU","Unallocated-Known",13832,2349]
["ExpEUUnallocated-Unknown","Exp","EU","Unallocated-Unknown",107,"N/A"]
["ExpNon-EUEast","Exp","Non-EU","East",13405,9180]
["ExpNon-EUEast Midlands","Exp","Non-EU","East Midlands",10779,6770]
["ExpNon-EULondon","Exp","Non-EU","London",21327,16232]
["ExpNon-EUNorth East","Exp","Non-EU","North East",5273,2637]
["ExpNon-EUNorthern Ireland","Exp","Non-EU","Northern Ireland",3503,1579]
["ExpNon-EUNorth West","Exp","Non-EU","North West",13572,8748]
["ExpNon-EUScotland","Exp","Non-EU","Scotland",14978,5360]
["ExpNon-EUSouth East","Exp","Non-EU","South East",24305,14451]
["ExpNon-EUSouth West","Exp","Non-EU","South West",11776,7353]
["ExpNon-EUWales","Exp","Non-EU","Wales",6656,2992]
["ExpNon-EUWest Midlands","Exp","Non-EU","West Midlands",18424,8099]
["ExpNon-EUYorkshire and the Humber","Exp","Non-EU","Yorkshire and the Humber",7267,6798]
["ExpNon-EUUnallocated-Known","Exp","Non-EU","Unallocated-Known",8426,5862]
["ExpNon-EUUnallocated-Unknown","Exp","Non-EU","Unallocated-Unknown",9811,"N/A"]
["ImpEUEast","Imp","EU","East",30801,18669]
["ImpEUEast Midlands","Imp","EU","East Midlands",15707,13670]
["ImpEULondon","Imp","EU","London",31953,30616]
["ImpEUNorth East","Imp","EU","North East",8061,4675]
["ImpEUNorthern Ireland","Imp","EU","Northern Ireland",5060,14015]
["ImpEUNorth West","Imp","EU","North West",21623,16452]
["ImpEUScotland","Imp","EU","Scotland",10177,11033]
["ImpEUSouth East","Imp","EU","South East",59580,29658]
["ImpEUSouth West","Imp","EU","South West",10799,16607]
["ImpEUWales","Imp","EU","Wales",7182,6242]
["ImpEUWest Midlands","Imp","EU","West Midlands",23651,15219]
["ImpEUYorkshire and the Humber","Imp","EU","Yorkshire and the Humber",16896,12934]
["ImpEUUnallocated-Known","Imp","EU","Unallocated-Known",20938,2302]
["ImpEUUnallocated-Unknown","Imp","EU","Unallocated-Unknown",557,"N/A"]
["ImpNon-EUEast","Imp","Non-EU","East",16186,12731]
["ImpNon-EUEast Midlands","Imp","Non-EU","East Midlands",12052,9329]
["ImpNon-EULondon","Imp","Non-EU","London",33804,27332]
["ImpNon-EUNorth East","Imp","Non-EU","North East",5938,3414]
["ImpNon-EUNorthern Ireland","Imp","Non-EU","Northern Ireland",2738,2832]
["ImpNon-EUNorth West","Imp","Non-EU","North West",17186,15595]
["ImpNon-EUScotland","Imp","Non-EU","Scotland",15194,6916]
["ImpNon-EUSouth East","Imp","Non-EU","South East",35830,20282]
["ImpNon-EUSouth West","Imp","Non-EU","South West",13376,9636]
["ImpNon-EUWales","Imp","Non-EU","Wales",11172,4716]
["ImpNon-EUWest Midlands","Imp","Non-EU","West Midlands",14135,11418]
["ImpNon-EUYorkshire and the Humber","Imp","Non-EU","Yorkshire and the Humber",16805,9114]
["ImpNon-EUUnallocated-Known","Imp","Non-EU","Unallocated-Known",11338,8032]
["ImpNon-EUUnallocated-Unknown","Imp","Non-EU","Unallocated-Unknown",13090,"N/A"]

{"sheet":"NUTS2","index":4,"n_rows":250,"n_cols":7,"rows_kept":250,"cut":false,"hidden":true,"merged":[[0,1,0,4]]}
[null,"Table 2 - NUTS2 by EU/Non-EU - 2018"]
[]
[null,"Flow","EU / Non-EU","NUTS1","NUTS2","Statistical Value (£ million) ","Business Count"]
[{"$f":"$B4&$C4&$D4&$E4","v":"ExpEUEastBedfordshire and Hertfordshire"},"Exp","EU","East","Bedfordshire and Hertfordshire",6538,5056]
[{"$f":"$B5&$C5&$D5&$E5","v":"ExpEUEastEA BTTA"},"Exp","EU","East","EA BTTA",414,"N/A"]
["ExpEUEastEA Energy","Exp","EU","East","EA Energy",957,"N/A"]
["ExpEUEastEA Other","Exp","EU","East","EA Other",132,187]
["ExpEUEastEast Anglia","Exp","EU","East","East Anglia",4433,5986]
["ExpEUEastEssex","Exp","EU","East","Essex",2399,3838]
["ExpEUEast MidlandsDerbyshire and Nottinghamshire","Exp","EU","East Midlands","Derbyshire and Nottinghamshire",6588,4459]
["ExpEUEast MidlandsEM BTTA","Exp","EU","East Midlands","EM BTTA",302,"N/A"]
["ExpEUEast MidlandsEM Energy","Exp","EU","East Midlands","EM Energy",72,"N/A"]
["ExpEUEast MidlandsEM Other","Exp","EU","East Midlands","EM Other",77,141]
["ExpEUEast MidlandsLeicestershire, Rutland and Northamptonshire","Exp","EU","East Midlands","Leicestershire, Rutland and Northamptonshire",3590,5072]
["ExpEUEast MidlandsLincolnshire","Exp","EU","East Midlands","Lincolnshire",761,1702]
["ExpEULondonInner London - East","Exp","EU","London","Inner London - East",2761,5510]
["ExpEULondonInner London - West","Exp","EU","London","Inner London - West",7505,7744]
["ExpEULondonLO BTTA","Exp","EU","London","LO BTTA",659,"N/A"]
["ExpEULondonLO Other","Exp","EU","London","LO Other",233,360]
["ExpEULondonOuter London - East and North East","Exp","EU","London","Outer London - East and North East",1055,2307]
["ExpEULondonOuter London - South","Exp","EU","London","Outer London - South",854,2268]
["ExpEULondonOuter London - West and North West","Exp","EU","London","Outer London - West and North West",3070,4776]
["ExpEUNorth EastNE BTTA","Exp","EU","North East","NE BTTA",71,"N/A"]
["ExpEUNorth EastNE Other","Exp","EU","North East","NE Other",46,100]
["ExpEUNorth EastNorthumberland and Tyne and Wear","Exp","EU","North East","Northumberland and Tyne and Wear",4826,2098]
["ExpEUNorth EastTees Valley and Durham","Exp","EU","North East","Tees Valley and Durham",2953,1599]
["ExpEUNorthern IrelandNorthern Ireland","Exp","EU","Northern Ireland","Northern Ireland",5392,8412]
["ExpEUNorth WestCheshire","Exp","EU","North West","Cheshire",3778,2698]
["ExpEUNorth WestCumbria","Exp","EU","North West","Cumbria",744,951]
["ExpEUNorth WestGreater Manchester","Exp","EU","North West","Greater Manchester",3973,5847]
["ExpEUNorth WestLancashire","Exp","EU","North West","Lancashire",2802,3071]
["ExpEUNorth WestMerseyside","Exp","EU","North West","Merseyside",2373,2119]
["ExpEUNorth WestNW BTTA","Exp","EU","North West","NW BTTA",389,"N/A"]
["ExpEUNorth WestNW Energy","Exp","EU","North West","NW Energy",150,"N/A"]
["ExpEUNorth WestNW Other","Exp","EU","North West","NW Other",82,190]
["ExpEUScotlandEastern Scotland","Exp","EU","Scotland","Eastern Scotland",3467,2926]
["ExpEUScotlandHighlands and Islands","Exp","EU","Scotland","Highlands and Islands",726,809]
["ExpEUScotlandNorth Eastern Scotland","Exp","EU","Scotland","North Eastern Scotland",1450,1303]
["ExpEUScotlandSC BTTA","Exp","EU","Scotland","SC BTTA",162,"N/A"]
["ExpEUScotlandSC Energy","Exp","EU","Scotland","SC Energy",7774,"N/A"]
["ExpEUScotlandSC Other","Exp","EU","Scotland","SC Other",92,187]
["ExpEUScotlandSouthern Scotland","Exp","EU","Scotland","Southern Scotland",1334,1431]
["ExpEUScotlandWest Central Scotland","Exp","EU","Scotland","West Central Scotland",2250,2155]
["ExpEUSouth EastBerkshire, Buckinghamshire and Oxfordshire","Exp","EU","South East","Berkshire, Buckinghamshire and Oxfordshire",6425,7527]
["ExpEUSouth EastHampshire and Isle of Wight","Exp","EU","South East","Hampshire and Isle of Wight",6466,4808]
["ExpEUSouth EastKent","Exp","EU","South East","Kent",1862,3598]
["ExpEUSouth EastSE BTTA","Exp","EU","South East","SE BTTA",645,"N/A"]
["ExpEUSouth EastSE Energy","Exp","EU","South East","SE Energy",221,"N/A"]
["ExpEUSouth EastSE Other","Exp","EU","South East","SE Other",243,305]
["ExpEUSouth EastSurrey, East and West Sussex","Exp","EU","South East","Surrey, East and West Sussex",6828,7854]
["ExpEUSouth WestCornwall and Isles of Scilly","Exp","EU","South West","Cornwall and Isles of Scilly",387,1127]
["ExpEUSouth WestDevon","Exp","EU","South West","Devon",1177,2370]
["ExpEUSouth WestDorset and Somerset","Exp","EU","South West","Dorset and Somerset",1317,3094]
["ExpEUSouth WestGloucestershire, Wiltshire and Bath/Bristol area","Exp","EU","South West","Gloucestershire, Wiltshire and Bath/Bristol area",6341,5861]
["ExpEUSouth WestSW BTTA","Exp","EU","South West","SW BTTA",299,"N/A"]
["ExpEUSouth WestSW Other","Exp","EU","South West","SW Other",160,156]
["ExpEUWalesEast Wales","Exp","EU","Wales","East Wales",6273,2228]
["ExpEUWalesWA BTTA","Exp","EU","Wales","WA BTTA",100,"N/A"]
["ExpEUWalesWA Energy","Exp","EU","Wales","WA Energy",44,"N/A"]
["ExpEUWalesWA Other","Exp","EU","Wales","WA Other",88,92]
["ExpEUWalesWest Wales and The Valleys","Exp","EU","Wales","West Wales and The Valleys",4028,2342]
["ExpEUWest MidlandsHerefordshire, Worcestershire and Warwickshire","Exp","EU","West Midlands","Herefordshire, Worcestershire and Warwickshire",3848,4189]
["ExpEUWest MidlandsShropshire and Staffordshire","Exp","EU","West Midlands","Shropshire and Staffordshire",4321,3850]
["ExpEUWest MidlandsWM BTTA","Exp","EU","West Midlands","WM BTTA",373,"N/A"]
["ExpEUWest MidlandsWM Other","Exp","EU","West Midlands","WM Other",138,158]
["ExpEUWest MidlandsWest Midlands","Exp","EU","West Midlands","West Midlands",6335,5329]
["ExpEUYorkshire and the HumberEast Yorkshire and Northern Lincolnshire","Exp","EU","Yorkshire and the Humber","East Yorkshire and Northern Lincolnshire",3468,1803]
["ExpEUYorkshire and the HumberNorth Yorkshire","Exp","EU","Yorkshire and the Humber","North Yorkshire",1197,2073]
[{"$f":"$B69&$C69&$D69&$E69","v":"ExpEUYorkshire and the HumberSouth Yorkshire"},"Exp","EU","Yorkshire and the Humber","South Yorkshire",2287,2550]
["ExpEUYorkshire and the HumberWest Yorkshire","Exp","EU","Yorkshire and the Humber","West Yorkshire",3601,4811]
["ExpEUYorkshire and the HumberYH BTTA","Exp","EU","Yorkshire and the Humber","YH BTTA",283,"N/A"]
["ExpEUYorkshire and the HumberYH Other","Exp","EU","Yorkshire and the Humber","YH Other",72,149]
["ExpNon-EUEastBedfordshire and Hertfordshire","Exp","Non-EU","East","Bedfordshire and Hertfordshire",5300,3427]
["ExpNon-EUEastEA Other","Exp","Non-EU","East","EA Other",98,173]
["ExpNon-EUEastEast Anglia","Exp","Non-EU","East","East Anglia",4717,4074]
["ExpNon-EUEastEssex","Exp","Non-EU","East","Essex",3289,2878]
["ExpNon-EUEast MidlandsDerbyshire and Nottinghamshire","Exp","Non-EU","East Midlands","Derbyshire and Nottinghamshire",7211,3086]
["ExpNon-EUEast MidlandsEM Other","Exp","Non-EU","East Midlands","EM Other",31,124]
["ExpNon-EUEast MidlandsLeicestershire, Rutland and Northamptonshire","Exp","Non-EU","East Midlands","Leicestershire, Rutland and Northamptonshire",2951,3430]
["ExpNon-EUEast MidlandsLincolnshire","Exp","Non-EU","East Midlands","Lincolnshire",587,1117]
["ExpNon-EULondonInner London - East","Exp","Non-EU","London","Inner London - East",3476,4039]
["ExpNon-EULondonInner London - West","Exp","Non-EU","London","Inner London - West",10442,7165]
["ExpNon-EULondonLO Other","Exp","Non-EU","London","LO Other",886,359]
["ExpNon-EULondonOuter London - East and North East","Exp","Non-EU","London","Outer London - East and North East",1173,1680]
["ExpNon-EULondonOuter London - South","Exp","Non-EU","London","Outer London - South",687,1722]
["ExpNon-EULondonOuter London - West and North West","Exp","Non-EU","London","Outer London - West and North West",4663,3948]
["ExpNon-EUNorth EastNE Other","Exp","Non-EU","North East","NE Other",51,84]
["ExpNon-EUNorth EastNorthumberland and Tyne and Wear","Exp","Non-EU","North East","Northumberland and Tyne and Wear",3044,1724]
["ExpNon-EUNorth EastTees Valley and Durham","Exp","Non-EU","North East","Tees Valley and Durham",2178,1308]
["ExpNon-EUNorthern IrelandNorthern Ireland","Exp","Non-EU","Northern Ireland","Northern Ireland",3503,1579]
["ExpNon-EUNorth WestCheshire","Exp","Non-EU","North West","Cheshire",3315,1898]
["ExpNon-EUNorth WestCumbria","Exp","Non-EU","North West","Cumbria",1077,773]
["ExpNon-EUNorth WestGreater Manchester","Exp","Non-EU","North West","Greater Manchester",2780,4328]
["ExpNon-EUNorth WestLancashire","Exp","Non-EU","North West","Lancashire",2938,2050]
["ExpNon-EUNorth WestMerseyside","Exp","Non-EU","North West","Merseyside",3431,1712]
["ExpNon-EUNorth WestNW Other","Exp","Non-EU","North West","NW Other",32,187]
["ExpNon-EUScotlandEastern Scotland","Exp","Non-EU","Scotland","Eastern Scotland",3441,2318]
["ExpNon-EUScotlandHighlands and Islands","Exp","Non-EU","Scotland","Highlands and Islands",1176,665]
["ExpNon-EUScotlandNorth Eastern Scotland","Exp","Non-EU","Scotland","North Eastern Scotland",2451,1460]
["ExpNon-EUScotlandSC Energy","Exp","Non-EU","Scotland","SC Energy",2010,"N/A"]
["ExpNon-EUScotlandSC Other","Exp","Non-EU","Scotland","SC Other",213,209]
["ExpNon-EUScotlandSouthern Scotland","Exp","Non-EU","Scotland","Southern Scotland",2534,1086]
["ExpNon-EUScotlandWest Central Scotland","Exp","Non-EU","Scotland","West Central Scotland",3153,1922]
["ExpNon-EUSouth EastBerkshire, Buckinghamshire and Oxfordshire","Exp","Non-EU","South East","Berkshire, Buckinghamshire and Oxfordshire",6251,5489]
["ExpNon-EUSouth EastHampshire and Isle of Wight","Exp","Non-EU","South East","Hampshire and Isle of Wight",9684,3622]
["ExpNon-EUSouth EastKent","Exp","Non-EU","South East","Kent",1548,2472]
["ExpNon-EUSouth EastSE Other","Exp","Non-EU","South East","SE Other",368,309]
["ExpNon-EUSouth EastSurrey, East and West Sussex","Exp","Non-EU","South East","Surrey, East and West Sussex",6455,5064]
["ExpNon-EUSouth WestCornwall and Isles of Scilly","Exp","Non-EU","South West","Cornwall and Isles of Scilly",295,769]
["ExpNon-EUSouth WestDevon","Exp","Non-EU","South West","Devon",937,1680]
["ExpNon-EUSouth WestDorset and Somerset","Exp","Non-EU","South West","Dorset and Somerset",2303,2108]
["ExpNon-EUSouth WestGloucestershire, Wiltshire and Bath/Bristol area","Exp","Non-EU","South West","Gloucestershire, Wiltshire and Bath/Bristol area",7875,4176]
["ExpNon-EUSouth WestSW Other","Exp","Non-EU","South West","SW Other",366,161]
["ExpNon-EUWalesEast Wales","Exp","Non-EU","Wales","East Wales",1953,1707]
["ExpNon-EUWalesWA Other","Exp","Non-EU","Wales","WA Other",10,93]
["ExpNon-EUWalesWest Wales and The Valleys","Exp","Non-EU","Wales","West Wales and The Valleys",4693,1702]
["ExpNon-EUWest MidlandsHerefordshire, Worcestershire and Warwickshire","Exp","Non-EU","West Midlands","Herefordshire, Worcestershire and Warwickshire",5148,2726]
["ExpNon-EUWest MidlandsShropshire and Staffordshire","Exp","Non-EU","West Midlands","Shropshire and Staffordshire",2920,2560]
["ExpNon-EUWest MidlandsWM Other","Exp","Non-EU","West Midlands","WM Other",55,170]
["ExpNon-EUWest MidlandsWest Midlands","Exp","Non-EU","West Midlands","West Midlands",10300,3846]
["ExpNon-EUYorkshire and the HumberEast Yorkshire and Northern Lincolnshire","Exp","Non-EU","Yorkshire and the Humber","East Yorkshire and Northern Lincolnshire",2533,1259]
["ExpNon-EUYorkshire and the HumberNorth Yorkshire","Exp","Non-EU","Yorkshire and the Humber","North Yorkshire",625,1438]
["ExpNon-EUYorkshire and the HumberSouth Yorkshire","Exp","Non-EU","Yorkshire and the Humber","South Yorkshire",1531,2003]
["ExpNon-EUYorkshire and the HumberWest Yorkshire","Exp","Non-EU","Yorkshire and the Humber","West Yorkshire",2569,3517]
["ExpNon-EUYorkshire and the HumberYH Other","Exp","Non-EU","Yorkshire and the Humber","YH Other",10,148]
["ImpEUEastBedfordshire and Hertfordshire","Imp","EU","East","Bedfordshire and Hertfordshire",13594,6525]
["ImpEUEastEA BTTA","Imp","EU","East","EA BTTA",1670,"N/A"]
["ImpEUEastEA Energy","Imp","EU","East","EA Energy",1588,"N/A"]
["ImpEUEastEA Other","Imp","EU","East","EA Other",166,242]
["ImpEUEastEast Anglia","Imp","EU","East","East Anglia",7179,8385]
["ImpEUEastEssex","Imp","EU","East","Essex",6604,5243]
["ImpEUEast MidlandsDerbyshire and Nottinghamshire","Imp","EU","East Midlands","Derbyshire and Nottinghamshire",6988,5918]
[{"$f":"$B133&$C133&$D133&$E133","v":"ImpEUEast MidlandsEM BTTA"},"Imp","EU","East Midlands","EM BTTA",1264,"N/A"]
["ImpEUEast MidlandsEM Other","Imp","EU","East Midlands","EM Other",82,185]
["ImpEUEast MidlandsLeicestershire, Rutland and Northamptonshire","Imp","EU","East Midlands","Leicestershire, Rutland and Northamptonshire",5544,6475]
["ImpEUEast MidlandsLincolnshire","Imp","EU","East Midlands","Lincolnshire",1829,2419]
["ImpEULondonInner London - East","Imp","EU","London","Inner London - East",4093,7985]
["ImpEULondonInner London - West","Imp","EU","London","Inner London - West",12148,12028]
["ImpEULondonLO BTTA","Imp","EU","London","LO BTTA",2592,"N/A"]
["ImpEULondonLO Other","Imp","EU","London","LO Other",375,474]
["ImpEULondonOuter London - East and North East","Imp","EU","London","Outer London - East and North East",2878,3326]
["ImpEULondonOuter London - South","Imp","EU","London","Outer London - South",2077,3301]
["ImpEULondonOuter London - West and North West","Imp","EU","London","Outer London - West and North West",7791,6766]
["ImpEUNorth EastNE BTTA","Imp","EU","North East","NE BTTA",355,"N/A"]
["ImpEUNorth EastNE Other","Imp","EU","North East","NE Other",27,114]
["ImpEUNorth EastNorthumberland and Tyne and Wear","Imp","EU","North East","Northumberland and Tyne and Wear",4945,2992]
["ImpEUNorth EastTees Valley and Durham","Imp","EU","North East","Tees Valley and Durham",2734,2179]
["ImpEUNorthern IrelandNorthern Ireland","Imp","EU","Northern Ireland","Northern Ireland",5060,14015]
["ImpEUNorth WestCheshire","Imp","EU","North West","Cheshire",5010,3622]
["ImpEUNorth WestCumbria","Imp","EU","North West","Cumbria",799,1598]
["ImpEUNorth WestGreater Manchester","Imp","EU","North West","Greater Manchester",7049,6893]
["ImpEUNorth WestLancashire","Imp","EU","North West","Lancashire",3433,4064]
["ImpEUNorth WestMerseyside","Imp","EU","North West","Merseyside",3572,2817]
["ImpEUNorth WestNW BTTA","Imp","EU","North West","NW BTTA",1627,"N/A"]
["ImpEUNorth WestNW Other","Imp","EU","North West","NW Other",133,252]
["ImpEUScotlandEastern Scotland","Imp","EU","Scotland","Eastern Scotland",3344,4741]
["ImpEUScotlandHighlands and Islands","Imp","EU","Scotland","Highlands and Islands",337,1499]
["ImpEUScotlandNorth Eastern Scotland","Imp","EU","Scotland","North Eastern Scotland",1193,1918]
["ImpEUScotlandSC BTTA","Imp","EU","Scotland","SC BTTA",802,"N/A"]
["ImpEUScotlandSC Other","Imp","EU","Scotland","SC Other",220,278]
["ImpEUScotlandSouthern Scotland","Imp","EU","Scotland","Southern Scotland",1361,2101]
["ImpEUScotlandWest Central Scotland","Imp","EU","Scotland","West Central Scotland",2919,3215]
["ImpEUSouth EastBerkshire, Buckinghamshire and Oxfordshire","Imp","EU","South East","Berkshire, Buckinghamshire and Oxfordshire",29525,10022]
["ImpEUSouth EastHampshire and Isle of Wight","Imp","EU","South East","Hampshire and Isle of Wight",9497,6447]
["ImpEUSouth EastKent","Imp","EU","South East","Kent",4296,5197]
["ImpEUSouth EastSE BTTA","Imp","EU","South East","SE BTTA",2435,"N/A"]
["ImpEUSouth EastSE Energy","Imp","EU","South East","SE Energy",1218,"N/A"]
["ImpEUSouth EastSE Other","Imp","EU","South East","SE Other",343,399]
["ImpEUSouth EastSurrey, East and West Sussex","Imp","EU","South East","Surrey, East and West Sussex",12267,10716]
["ImpEUSouth WestCornwall and Isles of Scilly","Imp","EU","South West","Cornwall and Isles of Scilly",266,1963]
["ImpEUSouth WestDevon","Imp","EU","South West","Devon",1024,3674]
["ImpEUSouth WestDorset and Somerset","Imp","EU","South West","Dorset and Somerset",1998,4623]
["ImpEUSouth WestGloucestershire, Wiltshire and Bath/Bristol area","Imp","EU","South West","Gloucestershire, Wiltshire and Bath/Bristol area",6148,8235]
["ImpEUSouth WestSW BTTA","Imp","EU","South West","SW BTTA",1187,"N/A"]
["ImpEUSouth WestSW Other","Imp","EU","South West","SW Other",176,233]
["ImpEUWalesEast Wales","Imp","EU","Wales","East Wales",2439,3175]
["ImpEUWalesWA BTTA","Imp","EU","Wales","WA BTTA",433,"N/A"]
["ImpEUWalesWA Energy","Imp","EU","Wales","WA Energy",71,"N/A"]
["ImpEUWalesWA Other","Imp","EU","Wales","WA Other",24,140]
["ImpEUWalesWest Wales and The Valleys","Imp","EU","Wales","West Wales and The Valleys",4214,3618]
["ImpEUWest MidlandsHerefordshire, Worcestershire and Warwickshire","Imp","EU","West Midlands","Herefordshire, Worcestershire and Warwickshire",7442,5287]
["ImpEUWest MidlandsShropshire and Staffordshire","Imp","EU","West Midlands","Shropshire and Staffordshire",5106,4894]
["ImpEUWest MidlandsWM BTTA","Imp","EU","West Midlands","WM BTTA",1501,"N/A"]
["ImpEUWest MidlandsWM Other","Imp","EU","West Midlands","WM Other",142,208]
["ImpEUWest MidlandsWest Midlands","Imp","EU","West Midlands","West Midlands",9460,6374]
["ImpEUYorkshire and the HumberEast Yorkshire and Northern Lincolnshire","Imp","EU","Yorkshire and the Humber","East Yorkshire and Northern Lincolnshire",3171,2443]
["ImpEUYorkshire and the HumberNorth Yorkshire","Imp","EU","Yorkshire and the Humber","North Yorkshire",2260,3128]
["ImpEUYorkshire and the HumberSouth Yorkshire","Imp","EU","Yorkshire and the Humber","South Yorkshire",2613,3292]
["ImpEUYorkshire and the HumberWest Yorkshire","Imp","EU","Yorkshire and the Humber","West Yorkshire",7492,6029]
["ImpEUYorkshire and the HumberYH BTTA","Imp","EU","Yorkshire and the Humber","YH BTTA",1204,"N/A"]
["ImpEUYorkshire and the HumberYH Other","Imp","EU","Yorkshire and the Humber","YH Other",156,196]
["ImpNon-EUEastBedfordshire and Hertfordshire","Imp","Non-EU","East","Bedfordshire and Hertfordshire",7034,4946]
["ImpNon-EUEastEA Other","Imp","Non-EU","East","EA Other",123,188]
["ImpNon-EUEastEast Anglia","Imp","Non-EU","East","East Anglia",4719,5235]
["ImpNon-EUEastEssex","Imp","Non-EU","East","Essex",4309,3922]
["ImpNon-EUEast MidlandsDerbyshire and Nottinghamshire","Imp","Non-EU","East Midlands","Derbyshire and Nottinghamshire",6306,4037]
[{"$f":"$B197&$C197&$D197&$E197","v":"ImpNon-EUEast MidlandsEM Other"},"Imp","Non-EU","East Midlands","EM Other",74,155]
["ImpNon-EUEast MidlandsLeicestershire, Rutland and Northamptonshire","Imp","Non-EU","East Midlands","Leicestershire, Rutland and Northamptonshire",4443,4878]
["ImpNon-EUEast MidlandsLincolnshire","Imp","Non-EU","East Midlands","Lincolnshire",1230,1417]
["ImpNon-EULondonInner London - East","Imp","Non-EU","London","Inner London - East",6759,6783]
["ImpNon-EULondonInner London - West","Imp","Non-EU","London","Inner London - West",12139,10171]
["ImpNon-EULondonLO Other","Imp","Non-EU","London","LO Other",589,420]
["ImpNon-EULondonOuter London - East and North East","Imp","Non-EU","London","Outer London - East and North East",2195,3433]
["ImpNon-EULondonOuter London - South","Imp","Non-EU","London","Outer London - South",1339,2707]
["ImpNon-EULondonOuter London - West and North West","Imp","Non-EU","London","Outer London - West and North West",10782,6928]
["ImpNon-EUNorth EastNE Energy","Imp","Non-EU","North East","NE Energy",4,"N/A"]
["ImpNon-EUNorth EastNE Other","Imp","Non-EU","North East","NE Other",24,79]
["ImpNon-EUNorth EastNorthumberland and Tyne and Wear","Imp","Non-EU","North East","Northumberland and Tyne and Wear",3289,2250]
["ImpNon-EUNorth EastTees Valley and Durham","Imp","Non-EU","North East","Tees Valley and Durham",2620,1635]
["ImpNon-EUNorthern IrelandNorthern Ireland","Imp","Non-EU","Northern Ireland","Northern Ireland",2738,2832]
["ImpNon-EUNorth WestCheshire","Imp","Non-EU","North West","Cheshire",3809,2505]
["ImpNon-EUNorth WestCumbria","Imp","Non-EU","North West","Cumbria",626,943]
["ImpNon-EUNorth WestGreater Manchester","Imp","Non-EU","North West","Greater Manchester",6788,8864]
["ImpNon-EUNorth WestLancashire","Imp","Non-EU","North West","Lancashire",3225,2878]
["ImpNon-EUNorth WestMerseyside","Imp","Non-EU","North West","Merseyside",2614,2674]
["ImpNon-EUNorth WestNW Other","Imp","Non-EU","North West","NW Other",125,230]
["ImpNon-EUScotlandEastern Scotland","Imp","Non-EU","Scotland","Eastern Scotland",3478,2953]
["ImpNon-EUScotlandHighlands and Islands","Imp","Non-EU","Scotland","Highlands and Islands",354,804]
["ImpNon-EUScotlandNorth Eastern Scotland","Imp","Non-EU","Scotland","North Eastern Scotland",1980,1583]
["ImpNon-EUScotlandSC Energy","Imp","Non-EU","Scotland","SC Energy",3271,"N/A"]
["ImpNon-EUScotlandSC Other","Imp","Non-EU","Scotland","SC Other",118,214]
["ImpNon-EUScotlandSouthern Scotland","Imp","Non-EU","Scotland","Southern Scotland",2600,1347]
["ImpNon-EUScotlandWest Central Scotland","Imp","Non-EU","Scotland","West Central Scotland",3393,2572]
["ImpNon-EUSouth EastBerkshire, Buckinghamshire and Oxfordshire","Imp","Non-EU","South East","Berkshire, Buckinghamshire and Oxfordshire",9479,7154]
["ImpNon-EUSouth EastHampshire and Isle of Wight","Imp","Non-EU","South East","Hampshire and Isle of Wight",9705,5229]
["ImpNon-EUSouth EastKent","Imp","Non-EU","South East","Kent",3372,3506]
["ImpNon-EUSouth EastSE Other","Imp","Non-EU","South East","SE Other",148,322]
["ImpNon-EUSouth EastSurrey, East and West Sussex","Imp","Non-EU","South East","Surrey, East and West Sussex",13126,6894]
["ImpNon-EUSouth WestCornwall and Isles of Scilly","Imp","Non-EU","South West","Cornwall and Isles of Scilly",404,1046]
["ImpNon-EUSouth WestDevon","Imp","Non-EU","South West","Devon",1205,2203]
["ImpNon-EUSouth WestDorset and Somerset","Imp","Non-EU","South West","Dorset and Somerset",2133,2763]
["ImpNon-EUSouth WestGloucestershire, Wiltshire and Bath/Bristol area","Imp","Non-EU","South West","Gloucestershire, Wiltshire and Bath/Bristol area",9397,5227]
["ImpNon-EUSouth WestSW Other","Imp","Non-EU","South West","SW Other",236,169]
["ImpNon-EUWalesEast Wales","Imp","Non-EU","Wales","East Wales",2727,2201]
["ImpNon-EUWalesWA Other","Imp","Non-EU","Wales","WA Other",22,109]
["ImpNon-EUWalesWest Wales and The Valleys","Imp","Non-EU","Wales","West Wales and The Valleys",8423,3001]
["ImpNon-EUWest MidlandsHerefordshire, Worcestershire and Warwickshire","Imp","Non-EU","West Midlands","Herefordshire, Worcestershire and Warwickshire",3929,3510]
["ImpNon-EUWest MidlandsShropshire and Staffordshire","Imp","Non-EU","West Midlands","Shropshire and Staffordshire",4226,3216]
["ImpNon-EUWest MidlandsWM Other","Imp","Non-EU","West Midlands","WM Other",94,192]
["ImpNon-EUWest MidlandsWest Midlands","Imp","Non-EU","West Midlands","West Midlands",5886,5893]
["ImpNon-EUYorkshire and the HumberEast Yorkshire and Northern Lincolnshire","Imp","Non-EU","Yorkshire and the Humber","East Yorkshire and Northern Lincolnshire",4423,1628]
["ImpNon-EUYorkshire and the HumberNorth Yorkshire","Imp","Non-EU","Yorkshire and the Humber","North Yorkshire",1703,1864]
["ImpNon-EUYorkshire and the HumberSouth Yorkshire","Imp","Non-EU","Yorkshire and the Humber","South Yorkshire",1950,2449]
["ImpNon-EUYorkshire and the HumberWest Yorkshire","Imp","Non-EU","Yorkshire and the Humber","West Yorkshire",4062,4853]
["ImpNon-EUYorkshire and the HumberYH Energy","Imp","Non-EU","Yorkshire and the Humber","YH Energy",4502,"N/A"]
["ImpNon-EUYorkshire and the HumberYH Other","Imp","Non-EU","Yorkshire and the Humber","YH Other",165,168]
[""]
[""]
[""]
[""]

{"sheet":"NUTS3","index":5,"n_rows":789,"n_cols":8,"rows_kept":789,"cut":false,"hidden":true,"merged":[[0,1,0,4]]}
[null,"Table 5 - NUTS3 by EU/Non-EU - 2018"]
[]
[null,"Flow","EU / Non-EU","NUTS1","NUTS2","NUTS3","Statistical Value (£ million)","Business Count"]
[{"$f":"$B4&$C4&$D4&$E4&$F4","v":"ExpEUEastBedfordshire and HertfordshireBedford"},"Exp","EU","East","Bedfordshire and Hertfordshire","Bedford",160,561]
[{"$f":"$B5&$C5&$D5&$E5&$F5","v":"ExpEUEastBedfordshire and HertfordshireCentral Bedfordshire"},"Exp","EU","East","Bedfordshire and Hertfordshire","Central Bedfordshire",876,813]
["ExpEUEastBedfordshire and HertfordshireHertfordshire","Exp","EU","East","Bedfordshire and Hertfordshire","Hertfordshire",4541,3635]
["ExpEUEastBedfordshire and HertfordshireLuton","Exp","EU","East","Bedfordshire and Hertfordshire","Luton",962,509]
["ExpEUEastEA BTTAEA BTTA","Exp","EU","East","EA BTTA","EA BTTA",414,"N/A"]
["ExpEUEastEA EnergyEA Energy","Exp","EU","East","EA Energy","EA Energy",957,"N/A"]
["ExpEUEastEA OtherEA Other","Exp","EU","East","EA Other","EA Other",132,187]
["ExpEUEastEast AngliaBreckland and South Norfolk","Exp","EU","East","East Anglia","Breckland and South Norfolk",245,728]
["ExpEUEastEast AngliaCambridgeshire CC","Exp","EU","East","East Anglia","Cambridgeshire CC",1605,2288]
["ExpEUEastEast AngliaNorth and West Norfolk","Exp","EU","East","East Anglia","North and West Norfolk",364,647]
["ExpEUEastEast AngliaNorwich and East Norfolk","Exp","EU","East","East Anglia","Norwich and East Norfolk",284,910]
["ExpEUEastEast AngliaPeterborough","Exp","EU","East","East Anglia","Peterborough",586,637]
["ExpEUEastEast AngliaSuffolk","Exp","EU","East","East Anglia","Suffolk",1350,2049]
["ExpEUEastEssexEssex Haven Gateway","Exp","EU","East","Essex","Essex Haven Gateway",439,1131]
["ExpEUEastEssexEssex Thames Gateway","Exp","EU","East","Essex","Essex Thames Gateway",970,812]
["ExpEUEastEssexHeart of Essex","Exp","EU","East","Essex","Heart of Essex",350,892]
["ExpEUEastEssexSouthend-on-Sea","Exp","EU","East","Essex","Southend-on-Sea",75,377]
["ExpEUEastEssexThurrock","Exp","EU","East","Essex","Thurrock",178,488]
["ExpEUEastEssexWest Essex","Exp","EU","East","Essex","West Essex",387,1010]
["ExpEUEast MidlandsDerbyshire and NottinghamshireDerby","Exp","EU","East Midlands","Derbyshire and Nottinghamshire","Derby",2158,606]
["ExpEUEast MidlandsDerbyshire and NottinghamshireEast Derbyshire","Exp","EU","East Midlands","Derbyshire and Nottinghamshire","East Derbyshire",650,777]
["ExpEUEast MidlandsDerbyshire and NottinghamshireNorth Nottinghamshire","Exp","EU","East Midlands","Derbyshire and Nottinghamshire","North Nottinghamshire",685,1079]
["ExpEUEast MidlandsDerbyshire and NottinghamshireNottingham","Exp","EU","East Midlands","Derbyshire and Nottinghamshire","Nottingham",290,875]
["ExpEUEast MidlandsDerbyshire and NottinghamshireSouth Nottinghamshire","Exp","EU","East Midlands","Derbyshire and Nottinghamshire","South Nottinghamshire",342,744]
["ExpEUEast MidlandsDerbyshire and NottinghamshireSouth and West Derbyshire","Exp","EU","East Midlands","Derbyshire and Nottinghamshire","South and West Derbyshire",2464,1327]
["ExpEUEast MidlandsEM BTTAEM BTTA","Exp","EU","East Midlands","EM BTTA","EM BTTA",302,"N/A"]
["ExpEUEast MidlandsEM EnergyEM Energy","Exp","EU","East Midlands","EM Energy","EM Energy",72,"N/A"]
["ExpEUEast MidlandsEM OtherEM Other","Exp","EU","East Midlands","EM Other","EM Other",77,141]
["ExpEUEast MidlandsLeicestershire, Rutland and NorthamptonshireLeicester","Exp","EU","East Midlands","Leicestershire, Rutland and Northamptonshire","Leicester",281,869]
["ExpEUEast MidlandsLeicestershire, Rutland and NorthamptonshireLeicestershire CC and Rutland","Exp","EU","East Midlands","Leicestershire, Rutland and Northamptonshire","Leicestershire CC and Rutland",1637,2302]
["ExpEUEast MidlandsLeicestershire, Rutland and NorthamptonshireNorth Northamptonshire","Exp","EU","East Midlands","Leicestershire, Rutland and Northamptonshire","North Northamptonshire",973,1150]
["ExpEUEast MidlandsLeicestershire, Rutland and NorthamptonshireWest Northamptonshire","Exp","EU","East Midlands","Leicestershire, Rutland and Northamptonshire","West Northamptonshire",699,1381]
["ExpEUEast MidlandsLincolnshireLincolnshire","Exp","EU","East Midlands","Lincolnshire","Lincolnshire",761,1702]
["ExpEULondonInner London - EastHackney and Newham","Exp","EU","London","Inner London - East","Hackney and Newham",466,1467]
["ExpEULondonInner London - EastHaringey and Islington","Exp","EU","London","Inner London - East","Haringey and Islington",363,1766]
["ExpEULondonInner London - EastLambeth","Exp","EU","London","Inner London - East","Lambeth",764,637]
["ExpEULondonInner London - EastLewisham and Southwark","Exp","EU","London","Inner London - East","Lewisham and Southwark",271,1236]
["ExpEULondonInner London - EastTower Hamlets","Exp","EU","London","Inner London - East","Tower Hamlets",897,1087]
["ExpEULondonInner London - WestCamden and City of London","Exp","EU","London","Inner London - West","Camden and City of London",1574,3125]
["ExpEULondonInner London - WestKensington & Chelsea and Hammersmith & Fulham","Exp","EU","London","Inner London - West","Kensington & Chelsea and Hammersmith & Fulham",786,1827]
["ExpEULondonInner London - WestWandsworth","Exp","EU","London","Inner London - West","Wandsworth",159,853]
["ExpEULondonInner London - WestWestminster","Exp","EU","London","Inner London - West","Westminster",4986,2839]
["ExpEULondonLO BTTALO BTTA","Exp","EU","London","LO BTTA","LO BTTA",659,"N/A"]
["ExpEULondonLO OtherLO Other","Exp","EU","London","LO Other","LO Other",233,360]
["ExpEULondonOuter London - East and North EastBarking & Dagenham and Havering","Exp","EU","London","Outer London - East and North East","Barking & Dagenham and Havering",398,692]
["ExpEULondonOuter London - East and North EastBexley and Greenwich","Exp","EU","London","Outer London - East and North East","Bexley and Greenwich",260,726]
["ExpEULondonOuter London - East and North EastEnfield","Exp","EU","London","Outer London - East and North East","Enfield",301,644]
["ExpEULondonOuter London - East and North EastRedbridge and Waltham Forest","Exp","EU","London","Outer London - East and North East","Redbridge and Waltham Forest",97,711]
["ExpEULondonOuter London - SouthBromley","Exp","EU","London","Outer London - South","Bromley",139,637]
["ExpEULondonOuter London - SouthCroydon","Exp","EU","London","Outer London - South","Croydon",154,688]
["ExpEULondonOuter London - SouthMerton, Kingston upon Thames and Sutton","Exp","EU","London","Outer London - South","Merton, Kingston upon Thames and Sutton",561,1318]
["ExpEULondonOuter London - West and North WestBarnet","Exp","EU","London","Outer London - West and North West","Barnet",245,966]
["ExpEULondonOuter London - West and North WestBrent","Exp","EU","London","Outer London - West and North West","Brent",501,799]
["ExpEULondonOuter London - West and North WestEaling","Exp","EU","London","Outer London - West and North West","Ealing",561,1087]
["ExpEULondonOuter London - West and North WestHarrow and Hillingdon","Exp","EU","London","Outer London - West and North West","Harrow and Hillingdon",1001,1240]
["ExpEULondonOuter London - West and North WestHounslow and Richmond upon Thames","Exp","EU","London","Outer London - West and North West","Hounslow and Richmond upon Thames",763,1358]
["ExpEUNorth EastNE BTTANE BTTA","Exp","EU","North East","NE BTTA","NE BTTA",71,"N/A"]
["ExpEUNorth EastNE OtherNE Other","Exp","EU","North East","NE Other","NE Other",46,100]
["ExpEUNorth EastNorthumberland and Tyne and WearNorthumberland","Exp","EU","North East","Northumberland and Tyne and Wear","Northumberland",459,574]
["ExpEUNorth EastNorthumberland and Tyne and WearSunderland","Exp","EU","North East","Northumberland and Tyne and Wear","Sunderland",3114,485]
["ExpEUNorth EastNorthumberland and Tyne and WearTyneside","Exp","EU","North East","Northumberland and Tyne and Wear","Tyneside",1253,1395]
["ExpEUNorth EastTees Valley and DurhamDarlington","Exp","EU","North East","Tees Valley and Durham","Darlington",171,285]
["ExpEUNorth EastTees Valley and DurhamDurham CC","Exp","EU","North East","Tees Valley and Durham","Durham CC",1090,845]
["ExpEUNorth EastTees Valley and DurhamHartlepool and Stockton-on-Tees","Exp","EU","North East","Tees Valley and Durham","Hartlepool and Stockton-on-Tees",1201,529]
["ExpEUNorth EastTees Valley and DurhamSouth Teesside","Exp","EU","North East","Tees Valley and Durham","South Teesside",491,438]
[{"$f":"$B69&$C69&$D69&$E69&$F69","v":"ExpEUNorthern IrelandNorthern IrelandNI BTTA"},"Exp","EU","Northern Ireland","Northern Ireland","NI BTTA",294,"N/A"]
["ExpEUNorthern IrelandNorthern IrelandNI Energy","Exp","EU","Northern Ireland","Northern Ireland","NI Energy",48,"N/A"]
["ExpEUNorthern IrelandNorthern IrelandNI Other","Exp","EU","Northern Ireland","Northern Ireland","NI Other",5050,8412]
["ExpEUNorth WestCheshireCheshire East","Exp","EU","North West","Cheshire","Cheshire East",1267,1372]
["ExpEUNorth WestCheshireCheshire West and Chester","Exp","EU","North West","Cheshire","Cheshire West and Chester",1963,983]
["ExpEUNorth WestCheshireWarrington","Exp","EU","North West","Cheshire","Warrington",547,735]
["ExpEUNorth WestCumbriaEast Cumbria","Exp","EU","North West","Cumbria","East Cumbria",361,740]
["ExpEUNorth WestCumbriaWest Cumbria","Exp","EU","North West","Cumbria","West Cumbria",383,355]
["ExpEUNorth WestGreater ManchesterGreater Manchester North East","Exp","EU","North West","Greater Manchester","Greater Manchester North East",883,1313]
["ExpEUNorth WestGreater ManchesterGreater Manchester North West","Exp","EU","North West","Greater Manchester","Greater Manchester North West",499,1108]
["ExpEUNorth WestGreater ManchesterGreater Manchester South East","Exp","EU","North West","Greater Manchester","Greater Manchester South East",818,1286]
["ExpEUNorth WestGreater ManchesterGreater Manchester South West","Exp","EU","North West","Greater Manchester","Greater Manchester South West",989,1519]
["ExpEUNorth WestGreater ManchesterManchester","Exp","EU","North West","Greater Manchester","Manchester",784,1599]
["ExpEUNorth WestLancashireBlackburn with Darwen","Exp","EU","North West","Lancashire","Blackburn with Darwen",302,455]
["ExpEUNorth WestLancashireBlackpool","Exp","EU","North West","Lancashire","Blackpool",57,285]
["ExpEUNorth WestLancashireChorley and West Lancashire","Exp","EU","North West","Lancashire","Chorley and West Lancashire",330,594]
["ExpEUNorth WestLancashireEast Lancashire","Exp","EU","North West","Lancashire","East Lancashire",848,861]
["ExpEUNorth WestLancashireLancaster and Wyre","Exp","EU","North West","Lancashire","Lancaster and Wyre",260,521]
["ExpEUNorth WestLancashireMid Lancashire","Exp","EU","North West","Lancashire","Mid Lancashire",1006,1051]
["ExpEUNorth WestMerseysideEast Merseyside","Exp","EU","North West","Merseyside","East Merseyside",1702,851]
["ExpEUNorth WestMerseysideLiverpool","Exp","EU","North West","Merseyside","Liverpool",427,758]
["ExpEUNorth WestMerseysideSefton","Exp","EU","North West","Merseyside","Sefton",92,474]
["ExpEUNorth WestMerseysideWirral","Exp","EU","North West","Merseyside","Wirral",152,510]
["ExpEUNorth WestNW BTTANW BTTA","Exp","EU","North West","NW BTTA","NW BTTA",389,"N/A"]
["ExpEUNorth WestNW EnergyNW Energy","Exp","EU","North West","NW Energy","NW Energy",150,"N/A"]
["ExpEUNorth WestNW OtherNW Other","Exp","EU","North West","NW Other","NW Other",82,190]
["ExpEUScotlandEastern ScotlandAngus and Dundee City","Exp","EU","Scotland","Eastern Scotland","Angus and Dundee City",310,515]
["ExpEUScotlandEastern ScotlandCity of Edinburgh","Exp","EU","Scotland","Eastern Scotland","City of Edinburgh",509,1119]
["ExpEUScotlandEastern ScotlandClackmannanshire and Fife","Exp","EU","Scotland","Eastern Scotland","Clackmannanshire and Fife",849,632]
["ExpEUScotlandEastern ScotlandEast Lothian and Midlothian","Exp","EU","Scotland","Eastern Scotland","East Lothian and Midlothian",81,331]
["ExpEUScotlandEastern ScotlandFalkirk","Exp","EU","Scotland","Eastern Scotland","Falkirk",961,311]
["ExpEUScotlandEastern ScotlandPerth and Kinross and Stirling","Exp","EU","Scotland","Eastern Scotland","Perth and Kinross and Stirling",167,598]
["ExpEUScotlandEastern ScotlandWest Lothian","Exp","EU","Scotland","Eastern Scotland","West Lothian",590,511]
["ExpEUScotlandHighlands and IslandsCaithness and Sutherland and Ross and Cromarty","Exp","EU","Scotland","Highlands and Islands","Caithness and Sutherland and Ross and Cromarty",132,204]
["ExpEUScotlandHighlands and IslandsEilean Siar (Western Isles)","Exp","EU","Scotland","Highlands and Islands","Eilean Siar (Western Isles)",50,56]
["ExpEUScotlandHighlands and IslandsInverness and Nairn and Moray, Badenoch and Strathspey","Exp","EU","Scotland","Highlands and Islands","Inverness and Nairn and Moray, Badenoch and Strathspey",260,431]
["ExpEUScotlandHighlands and IslandsLochaber, Skye and Lochalsh, Arran and Cumbrae and Argyll and Bute","Exp","EU","Scotland","Highlands and Islands","Lochaber, Skye and Lochalsh, Arran and Cumbrae and Argyll and Bute",150,233]
["ExpEUScotlandHighlands and IslandsOrkney Islands","Exp","EU","Scotland","Highlands and Islands","Orkney Islands",82,64]
["ExpEUScotlandHighlands and IslandsShetland Islands","Exp","EU","Scotland","Highlands and Islands","Shetland Islands",52,65]
["ExpEUScotlandNorth Eastern ScotlandAberdeen City and Aberdeenshire","Exp","EU","Scotland","North Eastern Scotland","Aberdeen City and Aberdeenshire",1450,1303]
["ExpEUScotlandSC BTTASC BTTA","Exp","EU","Scotland","SC BTTA","SC BTTA",162,"N/A"]
["ExpEUScotlandSC EnergySC Energy","Exp","EU","Scotland","SC Energy","SC Energy",7774,"N/A"]
["ExpEUScotlandSC OtherSC Other","Exp","EU","Scotland","SC Other","SC Other",92,187]
["ExpEUScotlandSouthern ScotlandDumfries and Galloway","Exp","EU","Scotland","Southern Scotland","Dumfries and Galloway",249,364]
["ExpEUScotlandSouthern ScotlandEast Ayrshire and North Ayrshire mainland","Exp","EU","Scotland","Southern Scotland","East Ayrshire and North Ayrshire mainland",336,364]
["ExpEUScotlandSouthern ScotlandScottish Borders","Exp","EU","Scotland","Southern Scotland","Scottish Borders",192,299]
["ExpEUScotlandSouthern ScotlandSouth Ayrshire","Exp","EU","Scotland","Southern Scotland","South Ayrshire",171,295]
["ExpEUScotlandSouthern ScotlandSouth Lanarkshire","Exp","EU","Scotland","Southern Scotland","South Lanarkshire",387,617]
["ExpEUScotlandWest Central ScotlandEast Dunbartonshire, West Dunbartonshire and Helensburgh and Lomond","Exp","EU","Scotland","West Central Scotland","East Dunbartonshire, West Dunbartonshire and Helensburgh and Lomond",194,285]
["ExpEUScotlandWest Central ScotlandGlasgow City","Exp","EU","Scotland","West Central Scotland","Glasgow City",774,1258]
["ExpEUScotlandWest Central ScotlandInverclyde, East Renfrewshire and Renfrewshire","Exp","EU","Scotland","West Central Scotland","Inverclyde, East Renfrewshire and Renfrewshire",737,593]
["ExpEUScotlandWest Central ScotlandNorth Lanarkshire","Exp","EU","Scotland","West Central Scotland","North Lanarkshire",545,572]
["ExpEUSouth EastBerkshire, Buckinghamshire and OxfordshireBerkshire","Exp","EU","South East","Berkshire, Buckinghamshire and Oxfordshire","Berkshire",3015,2933]
["ExpEUSouth EastBerkshire, Buckinghamshire and OxfordshireBuckinghamshire CC","Exp","EU","South East","Berkshire, Buckinghamshire and Oxfordshire","Buckinghamshire CC",889,2046]
["ExpEUSouth EastBerkshire, Buckinghamshire and OxfordshireMilton Keynes","Exp","EU","South East","Berkshire, Buckinghamshire and Oxfordshire","Milton Keynes",765,1120]
["ExpEUSouth EastBerkshire, Buckinghamshire and OxfordshireOxfordshire","Exp","EU","South East","Berkshire, Buckinghamshire and Oxfordshire","Oxfordshire",1757,2359]
["ExpEUSouth EastHampshire and Isle of WightCentral Hampshire","Exp","EU","South East","Hampshire and Isle of Wight","Central Hampshire",2531,1954]
["ExpEUSouth EastHampshire and Isle of WightIsle of Wight","Exp","EU","South East","Hampshire and Isle of Wight","Isle of Wight",126,312]
["ExpEUSouth EastHampshire and Isle of WightNorth Hampshire","Exp","EU","South East","Hampshire and Isle of Wight","North Hampshire",2561,1217]
["ExpEUSouth EastHampshire and Isle of WightPortsmouth","Exp","EU","South East","Hampshire and Isle of Wight","Portsmouth",520,513]
["ExpEUSouth EastHampshire and Isle of WightSouth Hampshire","Exp","EU","South East","Hampshire and Isle of Wight","South Hampshire",620,1274]
["ExpEUSouth EastHampshire and Isle of WightSouthampton","Exp","EU","South East","Hampshire and Isle of Wight","Southampton",108,548]
["ExpEUSouth EastKentEast Kent","Exp","EU","South East","Kent","East Kent",373,944]
["ExpEUSouth EastKentKent Thames Gateway","Exp","EU","South East","Kent","Kent Thames Gateway",429,860]
[{"$f":"$B133&$C133&$D133&$E133&$F133","v":"ExpEUSouth EastKentMedway"},"Exp","EU","South East","Kent","Medway",185,517]
["ExpEUSouth EastKentMid Kent","Exp","EU","South East","Kent","Mid Kent",554,949]
["ExpEUSouth EastKentWest Kent","Exp","EU","South East","Kent","West Kent",321,1207]
["ExpEUSouth EastSE BTTASE BTTA","Exp","EU","South East","SE BTTA","SE BTTA",645,"N/A"]
["ExpEUSouth EastSE EnergySE Energy","Exp","EU","South East","SE Energy","SE Energy",221,"N/A"]
["ExpEUSouth EastSE OtherSE Other","Exp","EU","South East","SE Other","SE Other",243,305]
["ExpEUSouth EastSurrey, East and West SussexBrighton and Hove","Exp","EU","South East","Surrey, East and West Sussex","Brighton and Hove",204,1573]
["ExpEUSouth EastSurrey, East and West SussexEast Surrey","Exp","EU","South East","Surrey, East and West Sussex","East Surrey",1875,1113]
["ExpEUSouth EastSurrey, East and West SussexEast Sussex CC","Exp","EU","South East","Surrey, East and West Sussex","East Sussex CC",358,1267]
["ExpEUSouth EastSurrey, East and West SussexWest Surrey","Exp","EU","South East","Surrey, East and West Sussex","West Surrey",2700,2511]
["ExpEUSouth EastSurrey, East and West SussexWest Sussex (North East)","Exp","EU","South East","Surrey, East and West Sussex","West Sussex (North East)",996,1434]
["ExpEUSouth EastSurrey, East and West SussexWest Sussex (South West)","Exp","EU","South East","Surrey, East and West Sussex","West Sussex (South West)",693,1176]
["ExpEUSouth WestCornwall and Isles of ScillyCornwall and Isles of Scilly","Exp","EU","South West","Cornwall and Isles of Scilly","Cornwall and Isles of Scilly",387,1127]
["ExpEUSouth WestDevonDevon CC","Exp","EU","South West","Devon","Devon CC",744,1969]
["ExpEUSouth WestDevonPlymouth","Exp","EU","South West","Devon","Plymouth",394,518]
["ExpEUSouth WestDevonTorbay","Exp","EU","South West","Devon","Torbay",39,272]
["ExpEUSouth WestDorset and SomersetBournemouth and Poole","Exp","EU","South West","Dorset and Somerset","Bournemouth and Poole",332,917]
["ExpEUSouth WestDorset and SomersetDorset CC","Exp","EU","South West","Dorset and Somerset","Dorset CC",385,1178]
["ExpEUSouth WestDorset and SomersetSomerset","Exp","EU","South West","Dorset and Somerset","Somerset",600,1397]
["ExpEUSouth WestGloucestershire, Wiltshire and Bath/Bristol areaBath and North East Somerset, North Somerset and South Gloucestershire","Exp","EU","South West","Gloucestershire, Wiltshire and Bath/Bristol area","Bath and North East Somerset, North Somerset and South Gloucestershire",3074,1615]
["ExpEUSouth WestGloucestershire, Wiltshire and Bath/Bristol areaBristol, City of","Exp","EU","South West","Gloucestershire, Wiltshire and Bath/Bristol area","Bristol, City of",386,1353]
["ExpEUSouth WestGloucestershire, Wiltshire and Bath/Bristol areaGloucestershire","Exp","EU","South West","Gloucestershire, Wiltshire and Bath/Bristol area","Gloucestershire",1730,2019]
["ExpEUSouth WestGloucestershire, Wiltshire and Bath/Bristol areaSwindon","Exp","EU","South West","Gloucestershire, Wiltshire and Bath/Bristol area","Swindon",482,652]
["ExpEUSouth WestGloucestershire, Wiltshire and Bath/Bristol areaWiltshire","Exp","EU","South West","Gloucestershire, Wiltshire and Bath/Bristol area","Wiltshire",669,1386]
["ExpEUSouth WestSW BTTASW BTTA","Exp","EU","South West","SW BTTA","SW BTTA",299,"N/A"]
["ExpEUSouth WestSW OtherSW Other","Exp","EU","South West","SW Other","SW Other",160,156]
["ExpEUWalesEast WalesCardiff and Vale of Glamorgan","Exp","EU","Wales","East Wales","Cardiff and Vale of Glamorgan",572,959]
["ExpEUWalesEast WalesFlintshire and Wrexham","Exp","EU","Wales","East Wales","Flintshire and Wrexham",4776,765]
["ExpEUWalesEast WalesMonmouthshire and Newport","Exp","EU","Wales","East Wales","Monmouthshire and Newport",651,545]
["ExpEUWalesEast WalesPowys","Exp","EU","Wales","East Wales","Powys",274,382]
["ExpEUWalesWA BTTAWA BTTA","Exp","EU","Wales","WA BTTA","WA BTTA",100,"N/A"]
["ExpEUWalesWA EnergyWA Energy","Exp","EU","Wales","WA Energy","WA Energy",44,"N/A"]
["ExpEUWalesWA OtherWA Other","Exp","EU","Wales","WA Other","WA Other",88,92]
["ExpEUWalesWest Wales and The ValleysBridgend and Neath Port Talbot","Exp","EU","Wales","West Wales and The Valleys","Bridgend and Neath Port Talbot",967,500]
["ExpEUWalesWest Wales and The ValleysCentral Valleys","Exp","EU","Wales","West Wales and The Valleys","Central Valleys",328,368]
["ExpEUWalesWest Wales and The ValleysConwy and Denbighshire","Exp","EU","Wales","West Wales and The Valleys","Conwy and Denbighshire",155,406]
["ExpEUWalesWest Wales and The ValleysGwent Valleys","Exp","EU","Wales","West Wales and The Valleys","Gwent Valleys",789,535]
["ExpEUWalesWest Wales and The ValleysGwynedd","Exp","EU","Wales","West Wales and The Valleys","Gwynedd",39,260]
["ExpEUWalesWest Wales and The ValleysIsle of Anglesey","Exp","EU","Wales","West Wales and The Valleys","Isle of Anglesey",65,122]
["ExpEUWalesWest Wales and The ValleysSouth West Wales","Exp","EU","Wales","West Wales and The Valleys","South West Wales",1450,603]
["ExpEUWalesWest Wales and The ValleysSwansea","Exp","EU","Wales","West Wales and The Valleys","Swansea",237,451]
["ExpEUWest MidlandsHerefordshire, Worcestershire and WarwickshireHerefordshire, County of","Exp","EU","West Midlands","Herefordshire, Worcestershire and Warwickshire","Herefordshire, County of",311,680]
["ExpEUWest MidlandsHerefordshire, Worcestershire and WarwickshireWarwickshire","Exp","EU","West Midlands","Herefordshire, Worcestershire and Warwickshire","Warwickshire",2387,2032]
["ExpEUWest MidlandsHerefordshire, Worcestershire and WarwickshireWorcestershire","Exp","EU","West Midlands","Herefordshire, Worcestershire and Warwickshire","Worcestershire",1150,1880]
["ExpEUWest MidlandsShropshire and StaffordshireShropshire CC","Exp","EU","West Midlands","Shropshire and Staffordshire","Shropshire CC",531,972]
["ExpEUWest MidlandsShropshire and StaffordshireStaffordshire CC","Exp","EU","West Midlands","Shropshire and Staffordshire","Staffordshire CC",2462,2190]
["ExpEUWest MidlandsShropshire and StaffordshireStoke-on-Trent","Exp","EU","West Midlands","Shropshire and Staffordshire","Stoke-on-Trent",243,645]
["ExpEUWest MidlandsShropshire and StaffordshireTelford and Wrekin","Exp","EU","West Midlands","Shropshire and Staffordshire","Telford and Wrekin",1086,611]
["ExpEUWest MidlandsWM BTTAWM BTTA","Exp","EU","West Midlands","WM BTTA","WM BTTA",373,"N/A"]
["ExpEUWest MidlandsWM OtherWM Other","Exp","EU","West Midlands","WM Other","WM Other",138,158]
["ExpEUWest MidlandsWest MidlandsBirmingham","Exp","EU","West Midlands","West Midlands","Birmingham",1828,2169]
["ExpEUWest MidlandsWest MidlandsCoventry","Exp","EU","West Midlands","West Midlands","Coventry",1059,761]
["ExpEUWest MidlandsWest MidlandsDudley","Exp","EU","West Midlands","West Midlands","Dudley",338,905]
["ExpEUWest MidlandsWest MidlandsSandwell","Exp","EU","West Midlands","West Midlands","Sandwell",502,909]
["ExpEUWest MidlandsWest MidlandsSolihull","Exp","EU","West Midlands","West Midlands","Solihull",1852,613]
["ExpEUWest MidlandsWest MidlandsWalsall","Exp","EU","West Midlands","West Midlands","Walsall",412,671]
["ExpEUWest MidlandsWest MidlandsWolverhampton","Exp","EU","West Midlands","West Midlands","Wolverhampton",344,604]
["ExpEUYorkshire and the HumberEast Yorkshire and Northern LincolnshireEast Riding of Yorkshire","Exp","EU","Yorkshire and the Humber","East Yorkshire and Northern Lincolnshire","East Riding of Yorkshire",561,825]
["ExpEUYorkshire and the HumberEast Yorkshire and Northern LincolnshireKingston upon Hull, City of","Exp","EU","Yorkshire and the Humber","East Yorkshire and Northern Lincolnshire","Kingston upon Hull, City of",475,618]
["ExpEUYorkshire and the HumberEast Yorkshire and Northern LincolnshireNorth and North East Lincolnshire","Exp","EU","Yorkshire and the Humber","East Yorkshire and Northern Lincolnshire","North and North East Lincolnshire",2432,698]
["ExpEUYorkshire and the HumberNorth YorkshireNorth Yorkshire CC","Exp","EU","Yorkshire and the Humber","North Yorkshire","North Yorkshire CC",572,1655]
["ExpEUYorkshire and the HumberNorth YorkshireYork","Exp","EU","Yorkshire and the Humber","North Yorkshire","York",625,610]
["ExpEUYorkshire and the HumberSouth YorkshireBarnsley, Doncaster and Rotherham","Exp","EU","Yorkshire and the Humber","South Yorkshire","Barnsley, Doncaster and Rotherham",1160,1454]
["ExpEUYorkshire and the HumberSouth YorkshireSheffield","Exp","EU","Yorkshire and the Humber","South Yorkshire","Sheffield",1126,1329]
[{"$f":"$B197&$C197&$D197&$E197&$F197","v":"ExpEUYorkshire and the HumberWest YorkshireBradford"},"Exp","EU","Yorkshire and the Humber","West Yorkshire","Bradford",799,1125]
["ExpEUYorkshire and the HumberWest YorkshireCalderdale and Kirklees","Exp","EU","Yorkshire and the Humber","West Yorkshire","Calderdale and Kirklees",929,1569]
["ExpEUYorkshire and the HumberWest YorkshireLeeds","Exp","EU","Yorkshire and the Humber","West Yorkshire","Leeds",936,1998]
["ExpEUYorkshire and the HumberWest YorkshireWakefield","Exp","EU","Yorkshire and the Humber","West Yorkshire","Wakefield",938,826]
["ExpEUYorkshire and the HumberYH BTTAYH BTTA","Exp","EU","Yorkshire and the Humber","YH BTTA","YH BTTA",283,"N/A"]
["ExpEUYorkshire and the HumberYH OtherYH Other","Exp","EU","Yorkshire and the Humber","YH Other","YH Other",72,149]
["ExpNon-EUEastBedfordshire and HertfordshireBedford","Exp","Non-EU","East","Bedfordshire and Hertfordshire","Bedford",126,457]
["ExpNon-EUEastBedfordshire and HertfordshireCentral Bedfordshire","Exp","Non-EU","East","Bedfordshire and Hertfordshire","Central Bedfordshire",484,598]
["ExpNon-EUEastBedfordshire and HertfordshireHertfordshire","Exp","Non-EU","East","Bedfordshire and Hertfordshire","Hertfordshire",4134,2454]
["ExpNon-EUEastBedfordshire and HertfordshireLuton","Exp","Non-EU","East","Bedfordshire and Hertfordshire","Luton",556,459]
["ExpNon-EUEastEA OtherEA Other","Exp","Non-EU","East","EA Other","EA Other",98,173]
["ExpNon-EUEastEast AngliaBreckland and South Norfolk","Exp","Non-EU","East","East Anglia","Breckland and South Norfolk",165,492]
["ExpNon-EUEastEast AngliaCambridgeshire CC","Exp","Non-EU","East","East Anglia","Cambridgeshire CC",2233,1688]
["ExpNon-EUEastEast AngliaNorth and West Norfolk","Exp","Non-EU","East","East Anglia","North and West Norfolk",211,471]
["ExpNon-EUEastEast AngliaNorwich and East Norfolk","Exp","Non-EU","East","East Anglia","Norwich and East Norfolk",419,792]
["ExpNon-EUEastEast AngliaPeterborough","Exp","Non-EU","East","East Anglia","Peterborough",849,536]
["ExpNon-EUEastEast AngliaSuffolk","Exp","Non-EU","East","East Anglia","Suffolk",840,1456]
["ExpNon-EUEastEssexEssex Haven Gateway","Exp","Non-EU","East","Essex","Essex Haven Gateway",338,872]
["ExpNon-EUEastEssexEssex Thames Gateway","Exp","Non-EU","East","Essex","Essex Thames Gateway",1071,654]
["ExpNon-EUEastEssexHeart of Essex","Exp","Non-EU","East","Essex","Heart of Essex",420,730]
["ExpNon-EUEastEssexSouthend-on-Sea","Exp","Non-EU","East","Essex","Southend-on-Sea",173,305]
["ExpNon-EUEastEssexThurrock","Exp","Non-EU","East","Essex","Thurrock",289,479]
["ExpNon-EUEastEssexWest Essex","Exp","Non-EU","East","Essex","West Essex",999,858]
["ExpNon-EUEast MidlandsDerbyshire and NottinghamshireDerby","Exp","Non-EU","East Midlands","Derbyshire and Nottinghamshire","Derby",4745,529]
["ExpNon-EUEast MidlandsDerbyshire and NottinghamshireEast Derbyshire","Exp","Non-EU","East Midlands","Derbyshire and Nottinghamshire","East Derbyshire",287,648]
["ExpNon-EUEast MidlandsDerbyshire and NottinghamshireNorth Nottinghamshire","Exp","Non-EU","East Midlands","Derbyshire and Nottinghamshire","North Nottinghamshire",635,789]
["ExpNon-EUEast MidlandsDerbyshire and NottinghamshireNottingham","Exp","Non-EU","East Midlands","Derbyshire and Nottinghamshire","Nottingham",374,755]
["ExpNon-EUEast MidlandsDerbyshire and NottinghamshireSouth Nottinghamshire","Exp","Non-EU","East Midlands","Derbyshire and Nottinghamshire","South Nottinghamshire",197,518]
["ExpNon-EUEast MidlandsDerbyshire and NottinghamshireSouth and West Derbyshire","Exp","Non-EU","East Midlands","Derbyshire and Nottinghamshire","South and West Derbyshire",973,920]
["ExpNon-EUEast MidlandsEM OtherEM Other","Exp","Non-EU","East Midlands","EM Other","EM Other",31,124]
["ExpNon-EUEast MidlandsLeicestershire, Rutland and NorthamptonshireLeicester","Exp","Non-EU","East Midlands","Leicestershire, Rutland and Northamptonshire","Leicester",209,728]
["ExpNon-EUEast MidlandsLeicestershire, Rutland and NorthamptonshireLeicestershire CC and Rutland","Exp","Non-EU","East Midlands","Leicestershire, Rutland and Northamptonshire","Leicestershire CC and Rutland",1350,1580]
["ExpNon-EUEast MidlandsLeicestershire, Rutland and NorthamptonshireNorth Northamptonshire","Exp","Non-EU","East Midlands","Leicestershire, Rutland and Northamptonshire","North Northamptonshire",688,811]
["ExpNon-EUEast MidlandsLeicestershire, Rutland and NorthamptonshireWest Northamptonshire","Exp","Non-EU","East Midlands","Leicestershire, Rutland and Northamptonshire","West Northamptonshire",704,1004]
["ExpNon-EUEast MidlandsLincolnshireLincolnshire","Exp","Non-EU","East Midlands","Lincolnshire","Lincolnshire",587,1117]
["ExpNon-EULondonInner London - EastHackney and Newham","Exp","Non-EU","London","Inner London - East","Hackney and Newham",288,1140]
["ExpNon-EULondonInner London - EastHaringey and Islington","Exp","Non-EU","London","Inner London - East","Haringey and Islington",1312,1330]
["ExpNon-EULondonInner London - EastLambeth","Exp","Non-EU","London","Inner London - East","Lambeth",207,486]
["ExpNon-EULondonInner London - EastLewisham and Southwark","Exp","Non-EU","London","Inner London - East","Lewisham and Southwark",505,980]
["ExpNon-EULondonInner London - EastTower Hamlets","Exp","Non-EU","London","Inner London - East","Tower Hamlets",1165,935]
["ExpNon-EULondonInner London - WestCamden and City of London","Exp","Non-EU","London","Inner London - West","Camden and City of London",1454,2550]
["ExpNon-EULondonInner London - WestKensington & Chelsea and Hammersmith & Fulham","Exp","Non-EU","London","Inner London - West","Kensington & Chelsea and Hammersmith & Fulham",994,1875]
["ExpNon-EULondonInner London - WestWandsworth","Exp","Non-EU","London","Inner London - West","Wandsworth",311,668]
["ExpNon-EULondonInner London - WestWestminster","Exp","Non-EU","London","Inner London - West","Westminster",7682,3179]
["ExpNon-EULondonLO OtherLO Other","Exp","Non-EU","London","LO Other","LO Other",886,359]
["ExpNon-EULondonOuter London - East and North EastBarking & Dagenham and Havering","Exp","Non-EU","London","Outer London - East and North East","Barking & Dagenham and Havering",597,601]
["ExpNon-EULondonOuter London - East and North EastBexley and Greenwich","Exp","Non-EU","London","Outer London - East and North East","Bexley and Greenwich",156,561]
["ExpNon-EULondonOuter London - East and North EastEnfield","Exp","Non-EU","London","Outer London - East and North East","Enfield",328,522]
["ExpNon-EULondonOuter London - East and North EastRedbridge and Waltham Forest","Exp","Non-EU","London","Outer London - East and North East","Redbridge and Waltham Forest",92,543]
["ExpNon-EULondonOuter London - SouthBromley","Exp","Non-EU","London","Outer London - South","Bromley",172,507]
["ExpNon-EULondonOuter London - SouthCroydon","Exp","Non-EU","London","Outer London - South","Croydon",176,569]
["ExpNon-EULondonOuter London - SouthMerton, Kingston upon Thames and Sutton","Exp","Non-EU","London","Outer London - South","Merton, Kingston upon Thames and Sutton",338,1089]
["ExpNon-EULondonOuter London - West and North WestBarnet","Exp","Non-EU","London","Outer London - West and North West","Barnet",247,766]
["ExpNon-EULondonOuter London - West and North WestBrent","Exp","Non-EU","London","Outer London - West and North West","Brent",955,763]
["ExpNon-EULondonOuter London - West and North WestEaling","Exp","Non-EU","London","Outer London - West and North West","Ealing",495,818]
["ExpNon-EULondonOuter London - West and North WestHarrow and Hillingdon","Exp","Non-EU","London","Outer London - West and North West","Harrow and Hillingdon",1094,1228]
["ExpNon-EULondonOuter London - West and North WestHounslow and Richmond upon Thames","Exp","Non-EU","London","Outer London - West and North West","Hounslow and Richmond upon Thames",1872,1168]
["ExpNon-EUNorth EastNE OtherNE Other","Exp","Non-EU","North East","NE Other","NE Other",51,84]
["ExpNon-EUNorth EastNorthumberland and Tyne and WearNorthumberland","Exp","Non-EU","North East","Northumberland and Tyne and Wear","Northumberland",292,464]
["ExpNon-EUNorth EastNorthumberland and Tyne and WearSunderland","Exp","Non-EU","North East","Northumberland and Tyne and Wear","Sunderland",1846,461]
["ExpNon-EUNorth EastNorthumberland and Tyne and WearTyneside","Exp","Non-EU","North East","Northumberland and Tyne and Wear","Tyneside",906,1208]
["ExpNon-EUNorth EastTees Valley and DurhamDarlington","Exp","Non-EU","North East","Tees Valley and Durham","Darlington",313,277]
["ExpNon-EUNorth EastTees Valley and DurhamDurham CC","Exp","Non-EU","North East","Tees Valley and Durham","Durham CC",764,671]
["ExpNon-EUNorth EastTees Valley and DurhamHartlepool and Stockton-on-Tees","Exp","Non-EU","North East","Tees Valley and Durham","Hartlepool and Stockton-on-Tees",869,501]
[{"$f":"$B261&$C261&$D261&$E261&$F261","v":"ExpNon-EUNorth EastTees Valley and DurhamSouth Teesside"},"Exp","Non-EU","North East","Tees Valley and Durham","South Teesside",233,406]
["ExpNon-EUNorthern IrelandNorthern IrelandNI Other","Exp","Non-EU","Northern Ireland","Northern Ireland","NI Other",3503,1579]
["ExpNon-EUNorth WestCheshireCheshire East","Exp","Non-EU","North West","Cheshire","Cheshire East",2385,922]
["ExpNon-EUNorth WestCheshireCheshire West and Chester","Exp","Non-EU","North West","Cheshire","Cheshire West and Chester",494,810]
["ExpNon-EUNorth WestCheshireWarrington","Exp","Non-EU","North West","Cheshire","Warrington",436,616]
["ExpNon-EUNorth WestCumbriaEast Cumbria","Exp","Non-EU","North West","Cumbria","East Cumbria",314,591]
["ExpNon-EUNorth WestCumbriaWest Cumbria","Exp","Non-EU","North West","Cumbria","West Cumbria",763,348]
["ExpNon-EUNorth WestGreater ManchesterGreater Manchester North East","Exp","Non-EU","North West","Greater Manchester","Greater Manchester North East",572,994]
["ExpNon-EUNorth WestGreater ManchesterGreater Manchester North West","Exp","Non-EU","North West","Greater Manchester","Greater Manchester North West",360,841]
["ExpNon-EUNorth WestGreater ManchesterGreater Manchester South East","Exp","Non-EU","North West","Greater Manchester","Greater Manchester South East",641,920]
["ExpNon-EUNorth WestGreater ManchesterGreater Manchester South West","Exp","Non-EU","North West","Greater Manchester","Greater Manchester South West",663,1277]
["ExpNon-EUNorth WestGreater ManchesterManchester","Exp","Non-EU","North West","Greater Manchester","Manchester",545,1397]
["ExpNon-EUNorth WestLancashireBlackburn with Darwen","Exp","Non-EU","North West","Lancashire","Blackburn with Darwen",150,370]
["ExpNon-EUNorth WestLancashireBlackpool","Exp","Non-EU","North West","Lancashire","Blackpool",28,238]
["ExpNon-EUNorth WestLancashireChorley and West Lancashire","Exp","Non-EU","North West","Lancashire","Chorley and West Lancashire",158,405]
["ExpNon-EUNorth WestLancashireEast Lancashire","Exp","Non-EU","North West","Lancashire","East Lancashire",1142,638]
["ExpNon-EUNorth WestLancashireLancaster and Wyre","Exp","Non-EU","North West","Lancashire","Lancaster and Wyre",235,416]
["ExpNon-EUNorth WestLancashireMid Lancashire","Exp","Non-EU","North West","Lancashire","Mid Lancashire",1225,766]
["ExpNon-EUNorth WestMerseysideEast Merseyside","Exp","Non-EU","North West","Merseyside","East Merseyside",2703,753]
["ExpNon-EUNorth WestMerseysideLiverpool","Exp","Non-EU","North West","Merseyside","Liverpool",514,678]
["ExpNon-EUNorth WestMerseysideSefton","Exp","Non-EU","North West","Merseyside","Sefton",95,390]
["ExpNon-EUNorth WestMerseysideWirral","Exp","Non-EU","North West","Merseyside","Wirral",120,420]
["ExpNon-EUNorth WestNW OtherNW Other","Exp","Non-EU","North West","NW Other","NW Other",32,187]
["ExpNon-EUScotlandEastern ScotlandAngus and Dundee City","Exp","Non-EU","Scotland","Eastern Scotland","Angus and Dundee City",324,452]
["ExpNon-EUScotlandEastern ScotlandCity of Edinburgh","Exp","Non-EU","Scotland","Eastern Scotland","City of Edinburgh",739,1066]
["ExpNon-EUScotlandEastern ScotlandClackmannanshire and Fife","Exp","Non-EU","Scotland","Eastern Scotland","Clackmannanshire and Fife",1305,527]
["ExpNon-EUScotlandEastern ScotlandEast Lothian and Midlothian","Exp","Non-EU","Scotland","Eastern Scotland","East Lothian and Midlothian",89,282]
["ExpNon-EUScotlandEastern ScotlandFalkirk","Exp","Non-EU","Scotland","Eastern Scotland","Falkirk",353,297]
["ExpNon-EUScotlandEastern ScotlandPerth and Kinross and Stirling","Exp","Non-EU","Scotland","Eastern Scotland","Perth and Kinross and Stirling",170,470]
["ExpNon-EUScotlandEastern ScotlandWest Lothian","Exp","Non-EU","Scotland","Eastern Scotland","West Lothian",462,469]
["ExpNon-EUScotlandHighlands and IslandsCaithness and Sutherland and Ross and Cromarty","Exp","Non-EU","Scotland","Highlands and Islands","Caithness and Sutherland and Ross and Cromarty",196,182]
["ExpNon-EUScotlandHighlands and IslandsEilean Siar (Western Isles)","Exp","Non-EU","Scotland","Highlands and Islands","Eilean Siar (Western Isles)",37,57]
["ExpNon-EUScotlandHighlands and IslandsInverness and Nairn and Moray, Badenoch and Strathspey","Exp","Non-EU","Scotland","Highlands and Islands","Inverness and Nairn and Moray, Badenoch and Strathspey",632,416]
["ExpNon-EUScotlandHighlands and IslandsLochaber, Skye and Lochalsh, Arran and Cumbrae and Argyll and Bute","Exp","Non-EU","Scotland","Highlands and Islands","Lochaber, Skye and Lochalsh, Arran and Cumbrae and Argyll and Bute",127,183]
["ExpNon-EUScotlandHighlands and IslandsOrkney Islands","Exp","Non-EU","Scotland","Highlands and Islands","Orkney Islands",46,52]
["ExpNon-EUScotlandHighlands and IslandsShetland Islands","Exp","Non-EU","Scotland","Highlands and Islands","Shetland Islands",138,74]
["ExpNon-EUScotlandNorth Eastern ScotlandAberdeen City and Aberdeenshire","Exp","Non-EU","Scotland","North Eastern Scotland","Aberdeen City and Aberdeenshire",2451,1460]
["ExpNon-EUScotlandSC EnergySC Energy","Exp","Non-EU","Scotland","SC Energy","SC Energy",2010,"N/A"]
["ExpNon-EUScotlandSC OtherSC Other","Exp","Non-EU","Scotland","SC Other","SC Other",213,209]
["ExpNon-EUScotlandSouthern ScotlandDumfries and Galloway","Exp","Non-EU","Scotland","Southern Scotland","Dumfries and Galloway",155,303]
["ExpNon-EUScotlandSouthern ScotlandEast Ayrshire and North Ayrshire mainland","Exp","Non-EU","Scotland","Southern Scotland","East Ayrshire and North Ayrshire mainland",209,310]
["ExpNon-EUScotlandSouthern ScotlandScottish Borders","Exp","Non-EU","Scotland","Southern Scotland","Scottish Borders",98,236]
["ExpNon-EUScotlandSouthern ScotlandSouth Ayrshire","Exp","Non-EU","Scotland","Southern Scotland","South Ayrshire",1770,277]
["ExpNon-EUScotlandSouthern ScotlandSouth Lanarkshire","Exp","Non-EU","Scotland","Southern Scotland","South Lanarkshire",302,520]
["ExpNon-EUScotlandWest Central ScotlandEast Dunbartonshire, West Dunbartonshire and Helensburgh and Lomond","Exp","Non-EU","Scotland","West Central Scotland","East Dunbartonshire, West Dunbartonshire and Helensburgh and Lomond",310,271]
["ExpNon-EUScotlandWest Central ScotlandGlasgow City","Exp","Non-EU","Scotland","West Central Scotland","Glasgow City",1008,1179]
["ExpNon-EUScotlandWest Central ScotlandInverclyde, East Renfrewshire and Renfrewshire","Exp","Non-EU","Scotland","West Central Scotland","Inverclyde, East Renfrewshire and Renfrewshire",1197,537]
["ExpNon-EUScotlandWest Central ScotlandNorth Lanarkshire","Exp","Non-EU","Scotland","West Central Scotland","North Lanarkshire",638,534]
["ExpNon-EUSouth EastBerkshire, Buckinghamshire and OxfordshireBerkshire","Exp","Non-EU","South East","Berkshire, Buckinghamshire and Oxfordshire","Berkshire",3472,2401]
["ExpNon-EUSouth EastBerkshire, Buckinghamshire and OxfordshireBuckinghamshire CC","Exp","Non-EU","South East","Berkshire, Buckinghamshire and Oxfordshire","Buckinghamshire CC",928,1402]
["ExpNon-EUSouth EastBerkshire, Buckinghamshire and OxfordshireMilton Keynes","Exp","Non-EU","South East","Berkshire, Buckinghamshire and Oxfordshire","Milton Keynes",375,944]
["ExpNon-EUSouth EastBerkshire, Buckinghamshire and OxfordshireOxfordshire","Exp","Non-EU","South East","Berkshire, Buckinghamshire and Oxfordshire","Oxfordshire",1477,1789]
["ExpNon-EUSouth EastHampshire and Isle of WightCentral Hampshire","Exp","Non-EU","South East","Hampshire and Isle of Wight","Central Hampshire",4008,1486]
["ExpNon-EUSouth EastHampshire and Isle of WightIsle of Wight","Exp","Non-EU","South East","Hampshire and Isle of Wight","Isle of Wight",135,290]
["ExpNon-EUSouth EastHampshire and Isle of WightNorth Hampshire","Exp","Non-EU","South East","Hampshire and Isle of Wight","North Hampshire",2768,994]
["ExpNon-EUSouth EastHampshire and Isle of WightPortsmouth","Exp","Non-EU","South East","Hampshire and Isle of Wight","Portsmouth",641,486]
["ExpNon-EUSouth EastHampshire and Isle of WightSouth Hampshire","Exp","Non-EU","South East","Hampshire and Isle of Wight","South Hampshire",1981,982]
["ExpNon-EUSouth EastHampshire and Isle of WightSouthampton","Exp","Non-EU","South East","Hampshire and Isle of Wight","Southampton",150,552]
["ExpNon-EUSouth EastKentEast Kent","Exp","Non-EU","South East","Kent","East Kent",524,712]
["ExpNon-EUSouth EastKentKent Thames Gateway","Exp","Non-EU","South East","Kent","Kent Thames Gateway",301,695]
["ExpNon-EUSouth EastKentMedway","Exp","Non-EU","South East","Kent","Medway",208,436]
["ExpNon-EUSouth EastKentMid Kent","Exp","Non-EU","South East","Kent","Mid Kent",256,693]
["ExpNon-EUSouth EastKentWest Kent","Exp","Non-EU","South East","Kent","West Kent",259,933]
["ExpNon-EUSouth EastSE OtherSE Other","Exp","Non-EU","South East","SE Other","SE Other",368,309]
[{"$f":"$B325&$C325&$D325&$E325&$F325","v":"ExpNon-EUSouth EastSurrey, East and West SussexBrighton and Hove"},"Exp","Non-EU","South East","Surrey, East and West Sussex","Brighton and Hove",85,691]
["ExpNon-EUSouth EastSurrey, East and West SussexEast Surrey","Exp","Non-EU","South East","Surrey, East and West Sussex","East Surrey",929,854]
["ExpNon-EUSouth EastSurrey, East and West SussexEast Sussex CC","Exp","Non-EU","South East","Surrey, East and West Sussex","East Sussex CC",481,910]
["ExpNon-EUSouth EastSurrey, East and West SussexWest Surrey","Exp","Non-EU","South East","Surrey, East and West Sussex","West Surrey",2530,1951]
["ExpNon-EUSouth EastSurrey, East and West SussexWest Sussex (North East)","Exp","Non-EU","South East","Surrey, East and West Sussex","West Sussex (North East)",1750,1135]
["ExpNon-EUSouth EastSurrey, East and West SussexWest Sussex (South West)","Exp","Non-EU","South East","Surrey, East and West Sussex","West Sussex (South West)",681,910]
["ExpNon-EUSouth WestCornwall and Isles of ScillyCornwall and Isles of Scilly","Exp","Non-EU","South West","Cornwall and Isles of Scilly","Cornwall and Isles of Scilly",295,769]
["ExpNon-EUSouth WestDevonDevon CC","Exp","Non-EU","South West","Devon","Devon CC",553,1367]
["ExpNon-EUSouth WestDevonPlymouth","Exp","Non-EU","South West","Devon","Plymouth",325,502]
["ExpNon-EUSouth WestDevonTorbay","Exp","Non-EU","South West","Devon","Torbay",59,241]
["ExpNon-EUSouth WestDorset and SomersetBournemouth and Poole","Exp","Non-EU","South West","Dorset and Somerset","Bournemouth and Poole",645,719]
["ExpNon-EUSouth WestDorset and SomersetDorset CC","Exp","Non-EU","South West","Dorset and Somerset","Dorset CC",679,877]
["ExpNon-EUSouth WestDorset and SomersetSomerset","Exp","Non-EU","South West","Dorset and Somerset","Somerset",980,956]
["ExpNon-EUSouth WestGloucestershire, Wiltshire and Bath/Bristol areaBath and North East Somerset, North Somerset and South Gloucestershire","Exp","Non-EU","South West","Gloucestershire, Wiltshire and Bath/Bristol area","Bath and North East Somerset, North Somerset and South Gloucestershire",1859,1238]
["ExpNon-EUSouth WestGloucestershire, Wiltshire and Bath/Bristol areaBristol, City of","Exp","Non-EU","South West","Gloucestershire, Wiltshire and Bath/Bristol area","Bristol, City of",353,1157]
["ExpNon-EUSouth WestGloucestershire, Wiltshire and Bath/Bristol areaGloucestershire","Exp","Non-EU","South West","Gloucestershire, Wiltshire and Bath/Bristol area","Gloucestershire",4676,1549]
["ExpNon-EUSouth WestGloucestershire, Wiltshire and Bath/Bristol areaSwindon","Exp","Non-EU","South West","Gloucestershire, Wiltshire and Bath/Bristol area","Swindon",397,572]
["ExpNon-EUSouth WestGloucestershire, Wiltshire and Bath/Bristol areaWiltshire","Exp","Non-EU","South West","Gloucestershire, Wiltshire and Bath/Bristol area","Wiltshire",590,1013]
["ExpNon-EUSouth WestSW OtherSW Other","Exp","Non-EU","South West","SW Other","SW Other",366,161]
["ExpNon-EUWalesEast WalesCardiff and Vale of Glamorgan","Exp","Non-EU","Wales","East Wales","Cardiff and Vale of Glamorgan",447,854]
["ExpNon-EUWalesEast WalesFlintshire and Wrexham","Exp","Non-EU","Wales","East Wales","Flintshire and Wrexham",717,603]
["ExpNon-EUWalesEast WalesMonmouthshire and Newport","Exp","Non-EU","Wales","East Wales","Monmouthshire and Newport",642,476]
["ExpNon-EUWalesEast WalesPowys","Exp","Non-EU","Wales","East Wales","Powys",147,271]
["ExpNon-EUWalesWA OtherWA Other","Exp","Non-EU","Wales","WA Other","WA Other",10,93]
["ExpNon-EUWalesWest Wales and The ValleysBridgend and Neath Port Talbot","Exp","Non-EU","Wales","West Wales and The Valleys","Bridgend and Neath Port Talbot",552,399]
["ExpNon-EUWalesWest Wales and The ValleysCentral Valleys","Exp","Non-EU","Wales","West Wales and The Valleys","Central Valleys",1902,352]
["ExpNon-EUWalesWest Wales and The ValleysConwy and Denbighshire","Exp","Non-EU","Wales","West Wales and The Valleys","Conwy and Denbighshire",85,334]
["ExpNon-EUWalesWest Wales and The ValleysGwent Valleys","Exp","Non-EU","Wales","West Wales and The Valleys","Gwent Valleys",528,453]
["ExpNon-EUWalesWest Wales and The ValleysGwynedd","Exp","Non-EU","Wales","West Wales and The Valleys","Gwynedd",25,226]
["ExpNon-EUWalesWest Wales and The ValleysIsle of Anglesey","Exp","Non-EU","Wales","West Wales and The Valleys","Isle of Anglesey",28,100]
["ExpNon-EUWalesWest Wales and The ValleysSouth West Wales","Exp","Non-EU","Wales","West Wales and The Valleys","South West Wales",1243,428]
["ExpNon-EUWalesWest Wales and The ValleysSwansea","Exp","Non-EU","Wales","West Wales and The Valleys","Swansea",330,403]
["ExpNon-EUWest MidlandsHerefordshire, Worcestershire and WarwickshireHerefordshire, County of","Exp","Non-EU","West Midlands","Herefordshire, Worcestershire and Warwickshire","Herefordshire, County of",225,499]
["ExpNon-EUWest MidlandsHerefordshire, Worcestershire and WarwickshireWarwickshire","Exp","Non-EU","West Midlands","Herefordshire, Worcestershire and Warwickshire","Warwickshire",4228,1395]
["ExpNon-EUWest MidlandsHerefordshire, Worcestershire and WarwickshireWorcestershire","Exp","Non-EU","West Midlands","Herefordshire, Worcestershire and Warwickshire","Worcestershire",695,1288]
["ExpNon-EUWest MidlandsShropshire and StaffordshireShropshire CC","Exp","Non-EU","West Midlands","Shropshire and Staffordshire","Shropshire CC",272,617]
["ExpNon-EUWest MidlandsShropshire and StaffordshireStaffordshire CC","Exp","Non-EU","West Midlands","Shropshire and Staffordshire","Staffordshire CC",2172,1512]
["ExpNon-EUWest MidlandsShropshire and StaffordshireStoke-on-Trent","Exp","Non-EU","West Midlands","Shropshire and Staffordshire","Stoke-on-Trent",215,557]
["ExpNon-EUWest MidlandsShropshire and StaffordshireTelford and Wrekin","Exp","Non-EU","West Midlands","Shropshire and Staffordshire","Telford and Wrekin",261,507]
["ExpNon-EUWest MidlandsWM OtherWM Other","Exp","Non-EU","West Midlands","WM Other","WM Other",55,170]
["ExpNon-EUWest MidlandsWest MidlandsBirmingham","Exp","Non-EU","West Midlands","West Midlands","Birmingham",2309,1703]
["ExpNon-EUWest MidlandsWest MidlandsCoventry","Exp","Non-EU","West Midlands","West Midlands","Coventry",2358,625]
["ExpNon-EUWest MidlandsWest MidlandsDudley","Exp","Non-EU","West Midlands","West Midlands","Dudley",244,653]
["ExpNon-EUWest MidlandsWest MidlandsSandwell","Exp","Non-EU","West Midlands","West Midlands","Sandwell",370,674]
["ExpNon-EUWest MidlandsWest MidlandsSolihull","Exp","Non-EU","West Midlands","West Midlands","Solihull",4080,535]
["ExpNon-EUWest MidlandsWest MidlandsWalsall","Exp","Non-EU","West Midlands","West Midlands","Walsall",260,553]
["ExpNon-EUWest MidlandsWest MidlandsWolverhampton","Exp","Non-EU","West Midlands","West Midlands","Wolverhampton",679,520]
["ExpNon-EUYorkshire and the HumberEast Yorkshire and Northern LincolnshireEast Riding of Yorkshire","Exp","Non-EU","Yorkshire and the Humber","East Yorkshire and Northern Lincolnshire","East Riding of Yorkshire",375,520]
["ExpNon-EUYorkshire and the HumberEast Yorkshire and Northern LincolnshireKingston upon Hull, City of","Exp","Non-EU","Yorkshire and the Humber","East Yorkshire and Northern Lincolnshire","Kingston upon Hull, City of",373,519]
["ExpNon-EUYorkshire and the HumberEast Yorkshire and Northern LincolnshireNorth and North East Lincolnshire","Exp","Non-EU","Yorkshire and the Humber","East Yorkshire and Northern Lincolnshire","North and North East Lincolnshire",1784,580]
["ExpNon-EUYorkshire and the HumberNorth YorkshireNorth Yorkshire CC","Exp","Non-EU","Yorkshire and the Humber","North Yorkshire","North Yorkshire CC",483,1127]
["ExpNon-EUYorkshire and the HumberNorth YorkshireYork","Exp","Non-EU","Yorkshire and the Humber","North Yorkshire","York",142,524]
["ExpNon-EUYorkshire and the HumberSouth YorkshireBarnsley, Doncaster and Rotherham","Exp","Non-EU","Yorkshire and the Humber","South Yorkshire","Barnsley, Doncaster and Rotherham",819,1086]
["ExpNon-EUYorkshire and the HumberSouth YorkshireSheffield","Exp","Non-EU","Yorkshire and the Humber","South Yorkshire","Sheffield",712,1168]
["ExpNon-EUYorkshire and the HumberWest YorkshireBradford","Exp","Non-EU","Yorkshire and the Humber","West Yorkshire","Bradford",488,878]
["ExpNon-EUYorkshire and the HumberWest YorkshireCalderdale and Kirklees","Exp","Non-EU","Yorkshire and the Humber","West Yorkshire","Calderdale and Kirklees",935,1145]
["ExpNon-EUYorkshire and the HumberWest YorkshireLeeds","Exp","Non-EU","Yorkshire and the Humber","West Yorkshire","Leeds",733,1607]
["ExpNon-EUYorkshire and the HumberWest YorkshireWakefield","Exp","Non-EU","Yorkshire and the Humber","West Yorkshire","Wakefield",413,634]
["ExpNon-EUYorkshire and the HumberYH OtherYH Other","Exp","Non-EU","Yorkshire and the Humber","YH Other","YH Other",10,148]
["ImpEUEastBedfordshire and HertfordshireBedford","Imp","EU","East","Bedfordshire and Hertfordshire","Bedford",235,765]
["ImpEUEastBedfordshire and HertfordshireCentral Bedfordshire","Imp","EU","East","Bedfordshire and Hertfordshire","Central Bedfordshire",1000,1077]
["ImpEUEastBedfordshire and HertfordshireHertfordshire","Imp","EU","East","Bedfordshire and Hertfordshire","Hertfordshire",10052,4673]
["ImpEUEastBedfordshire and HertfordshireLuton","Imp","EU","East","Bedfordshire and Hertfordshire","Luton",2306,660]
["ImpEUEastEA BTTAEA BTTA","Imp","EU","East","EA BTTA","EA BTTA",1670,"N/A"]
[{"$f":"$B389&$C389&$D389&$E389&$F389","v":"ImpEUEastEA EnergyEA Energy"},"Imp","EU","East","EA Energy","EA Energy",1588,"N/A"]
["ImpEUEastEA OtherEA Other","Imp","EU","East","EA Other","EA Other",166,242]
["ImpEUEastEast AngliaBreckland and South Norfolk","Imp","EU","East","East Anglia","Breckland and South Norfolk",399,980]
["ImpEUEastEast AngliaCambridgeshire CC","Imp","EU","East","East Anglia","Cambridgeshire CC",2826,3040]
["ImpEUEastEast AngliaNorth and West Norfolk","Imp","EU","East","East Anglia","North and West Norfolk",361,1020]
["ImpEUEastEast AngliaNorwich and East Norfolk","Imp","EU","East","East Anglia","Norwich and East Norfolk",520,1368]
["ImpEUEastEast AngliaPeterborough","Imp","EU","East","East Anglia","Peterborough",1087,897]
["ImpEUEastEast AngliaSuffolk","Imp","EU","East","East Anglia","Suffolk",1987,2877]
["ImpEUEastEssexEssex Haven Gateway","Imp","EU","East","Essex","Essex Haven Gateway",512,1524]
["ImpEUEastEssexEssex Thames Gateway","Imp","EU","East","Essex","Essex Thames Gateway",3045,1049]
["ImpEUEastEssexHeart of Essex","Imp","EU","East","Essex","Heart of Essex",864,1268]
["ImpEUEastEssexSouthend-on-Sea","Imp","EU","East","Essex","Southend-on-Sea",151,553]
["ImpEUEastEssexThurrock","Imp","EU","East","Essex","Thurrock",896,656]
["ImpEUEastEssexWest Essex","Imp","EU","East","Essex","West Essex",1136,1438]
["ImpEUEast MidlandsDerbyshire and NottinghamshireDerby","Imp","EU","East Midlands","Derbyshire and Nottinghamshire","Derby",1261,857]
["ImpEUEast MidlandsDerbyshire and NottinghamshireEast Derbyshire","Imp","EU","East Midlands","Derbyshire and Nottinghamshire","East Derbyshire",644,1030]
["ImpEUEast MidlandsDerbyshire and NottinghamshireNorth Nottinghamshire","Imp","EU","East Midlands","Derbyshire and Nottinghamshire","North Nottinghamshire",861,1497]
["ImpEUEast MidlandsDerbyshire and NottinghamshireNottingham","Imp","EU","East Midlands","Derbyshire and Nottinghamshire","Nottingham",635,1184]
["ImpEUEast MidlandsDerbyshire and NottinghamshireSouth Nottinghamshire","Imp","EU","East Midlands","Derbyshire and Nottinghamshire","South Nottinghamshire",1205,983]
["ImpEUEast MidlandsDerbyshire and NottinghamshireSouth and West Derbyshire","Imp","EU","East Midlands","Derbyshire and Nottinghamshire","South and West Derbyshire",2383,1715]
["ImpEUEast MidlandsEM BTTAEM BTTA","Imp","EU","East Midlands","EM BTTA","EM BTTA",1264,"N/A"]
["ImpEUEast MidlandsEM OtherEM Other","Imp","EU","East Midlands","EM Other","EM Other",82,185]
["ImpEUEast MidlandsLeicestershire, Rutland and NorthamptonshireLeicester","Imp","EU","East Midlands","Leicestershire, Rutland and Northamptonshire","Leicester",380,1143]
["ImpEUEast MidlandsLeicestershire, Rutland and NorthamptonshireLeicestershire CC and Rutland","Imp","EU","East Midlands","Leicestershire, Rutland and Northamptonshire","Leicestershire CC and Rutland",2427,2861]
["ImpEUEast MidlandsLeicestershire, Rutland and NorthamptonshireNorth Northamptonshire","Imp","EU","East Midlands","Leicestershire, Rutland and Northamptonshire","North Northamptonshire",1170,1537]
["ImpEUEast MidlandsLeicestershire, Rutland and NorthamptonshireWest Northamptonshire","Imp","EU","East Midlands","Leicestershire, Rutland and Northamptonshire","West Northamptonshire",1567,1812]
["ImpEUEast MidlandsLincolnshireLincolnshire","Imp","EU","East Midlands","Lincolnshire","Lincolnshire",1829,2419]
["ImpEULondonInner London - EastHackney and Newham","Imp","EU","London","Inner London - East","Hackney and Newham",716,2177]
["ImpEULondonInner London - EastHaringey and Islington","Imp","EU","London","Inner London - East","Haringey and Islington",747,2545]
["ImpEULondonInner London - EastLambeth","Imp","EU","London","Inner London - East","Lambeth",799,1009]
["ImpEULondonInner London - EastLewisham and Southwark","Imp","EU","London","Inner London - East","Lewisham and Southwark",639,1834]
["ImpEULondonInner London - EastTower Hamlets","Imp","EU","London","Inner London - East","Tower Hamlets",1192,1443]
["ImpEULondonInner London - WestCamden and City of London","Imp","EU","London","Inner London - West","Camden and City of London",3469,4421]
["ImpEULondonInner London - WestKensington & Chelsea and Hammersmith & Fulham","Imp","EU","London","Inner London - West","Kensington & Chelsea and Hammersmith & Fulham",2135,2928]
["ImpEULondonInner London - WestWandsworth","Imp","EU","London","Inner London - West","Wandsworth",916,1331]
["ImpEULondonInner London - WestWestminster","Imp","EU","London","Inner London - West","Westminster",5628,4679]
["ImpEULondonLO BTTALO BTTA","Imp","EU","London","LO BTTA","LO BTTA",2592,"N/A"]
["ImpEULondonLO OtherLO Other","Imp","EU","London","LO Other","LO Other",375,474]
["ImpEULondonOuter London - East and North EastBarking & Dagenham and Havering","Imp","EU","London","Outer London - East and North East","Barking & Dagenham and Havering",1645,964]
["ImpEULondonOuter London - East and North EastBexley and Greenwich","Imp","EU","London","Outer London - East and North East","Bexley and Greenwich",483,1038]
["ImpEULondonOuter London - East and North EastEnfield","Imp","EU","London","Outer London - East and North East","Enfield",489,961]
["ImpEULondonOuter London - East and North EastRedbridge and Waltham Forest","Imp","EU","London","Outer London - East and North East","Redbridge and Waltham Forest",260,1046]
["ImpEULondonOuter London - SouthBromley","Imp","EU","London","Outer London - South","Bromley",671,946]
["ImpEULondonOuter London - SouthCroydon","Imp","EU","London","Outer London - South","Croydon",541,984]
["ImpEULondonOuter London - SouthMerton, Kingston upon Thames and Sutton","Imp","EU","London","Outer London - South","Merton, Kingston upon Thames and Sutton",865,1907]
["ImpEULondonOuter London - West and North WestBarnet","Imp","EU","London","Outer London - West and North West","Barnet",367,1413]
["ImpEULondonOuter London - West and North WestBrent","Imp","EU","London","Outer London - West and North West","Brent",1070,1125]
["ImpEULondonOuter London - West and North WestEaling","Imp","EU","London","Outer London - West and North West","Ealing",1604,1487]
["ImpEULondonOuter London - West and North WestHarrow and Hillingdon","Imp","EU","London","Outer London - West and North West","Harrow and Hillingdon",2705,1721]
["ImpEULondonOuter London - West and North WestHounslow and Richmond upon Thames","Imp","EU","London","Outer London - West and North West","Hounslow and Richmond upon Thames",2044,1992]
["ImpEUNorth EastNE BTTANE BTTA","Imp","EU","North East","NE BTTA","NE BTTA",355,"N/A"]
["ImpEUNorth EastNE OtherNE Other","Imp","EU","North East","NE Other","NE Other",27,114]
["ImpEUNorth EastNorthumberland and Tyne and WearNorthumberland","Imp","EU","North East","Northumberland and Tyne and Wear","Northumberland",385,858]
["ImpEUNorth EastNorthumberland and Tyne and WearSunderland","Imp","EU","North East","Northumberland and Tyne and Wear","Sunderland",2180,661]
["ImpEUNorth EastNorthumberland and Tyne and WearTyneside","Imp","EU","North East","Northumberland and Tyne and Wear","Tyneside",2380,1991]
["ImpEUNorth EastTees Valley and DurhamDarlington","Imp","EU","North East","Tees Valley and Durham","Darlington",234,406]
["ImpEUNorth EastTees Valley and DurhamDurham CC","Imp","EU","North East","Tees Valley and Durham","Durham CC",1059,1123]
["ImpEUNorth EastTees Valley and DurhamHartlepool and Stockton-on-Tees","Imp","EU","North East","Tees Valley and Durham","Hartlepool and Stockton-on-Tees",984,736]
["ImpEUNorth EastTees Valley and DurhamSouth Teesside","Imp","EU","North East","Tees Valley and Durham","South Teesside",457,616]
["ImpEUNorthern IrelandNorthern IrelandNI BTTA","Imp","EU","Northern Ireland","Northern Ireland","NI BTTA",1105,"N/A"]
["ImpEUNorthern IrelandNorthern IrelandNI Energy","Imp","EU","Northern Ireland","Northern Ireland","NI Energy",21,"N/A"]
["ImpEUNorthern IrelandNorthern IrelandNI Other","Imp","EU","Northern Ireland","Northern Ireland","NI Other",3934,14015]
["ImpEUNorth WestCheshireCheshire East","Imp","EU","North West","Cheshire","Cheshire East",2190,1820]
["ImpEUNorth WestCheshireCheshire West and Chester","Imp","EU","North West","Cheshire","Cheshire West and Chester",1597,1349]
[{"$f":"$B453&$C453&$D453&$E453&$F453","v":"ImpEUNorth WestCheshireWarrington"},"Imp","EU","North West","Cheshire","Warrington",1224,994]
["ImpEUNorth WestCumbriaEast Cumbria","Imp","EU","North West","Cumbria","East Cumbria",533,1234]
["ImpEUNorth WestCumbriaWest Cumbria","Imp","EU","North West","Cumbria","West Cumbria",266,581]
["ImpEUNorth WestGreater ManchesterGreater Manchester North East","Imp","EU","North West","Greater Manchester","Greater Manchester North East",1319,1565]
["ImpEUNorth WestGreater ManchesterGreater Manchester North West","Imp","EU","North West","Greater Manchester","Greater Manchester North West",1475,1390]
["ImpEUNorth WestGreater ManchesterGreater Manchester South East","Imp","EU","North West","Greater Manchester","Greater Manchester South East",986,1552]
["ImpEUNorth WestGreater ManchesterGreater Manchester South West","Imp","EU","North West","Greater Manchester","Greater Manchester South West",1524,1874]
["ImpEUNorth WestGreater ManchesterManchester","Imp","EU","North West","Greater Manchester","Manchester",1744,1915]
["ImpEUNorth WestLancashireBlackburn with Darwen","Imp","EU","North West","Lancashire","Blackburn with Darwen",263,620]
["ImpEUNorth WestLancashireBlackpool","Imp","EU","North West","Lancashire","Blackpool",60,386]
["ImpEUNorth WestLancashireChorley and West Lancashire","Imp","EU","North West","Lancashire","Chorley and West Lancashire",377,806]
["ImpEUNorth WestLancashireEast Lancashire","Imp","EU","North West","Lancashire","East Lancashire",690,1035]
["ImpEUNorth WestLancashireLancaster and Wyre","Imp","EU","North West","Lancashire","Lancaster and Wyre",226,790]
["ImpEUNorth WestLancashireMid Lancashire","Imp","EU","North West","Lancashire","Mid Lancashire",1816,1446]
["ImpEUNorth WestMerseysideEast Merseyside","Imp","EU","North West","Merseyside","East Merseyside",2218,1084]
["ImpEUNorth WestMerseysideLiverpool","Imp","EU","North West","Merseyside","Liverpool",759,1068]
["ImpEUNorth WestMerseysideSefton","Imp","EU","North West","Merseyside","Sefton",180,678]
["ImpEUNorth WestMerseysideWirral","Imp","EU","North West","Merseyside","Wirral",415,665]
["ImpEUNorth WestNW BTTANW BTTA","Imp","EU","North West","NW BTTA","NW BTTA",1627,"N/A"]
["ImpEUNorth WestNW OtherNW Other","Imp","EU","North West","NW Other","NW Other",133,252]
["ImpEUScotlandEastern ScotlandAngus and Dundee City","Imp","EU","Scotland","Eastern Scotland","Angus and Dundee City",400,820]
["ImpEUScotlandEastern ScotlandCity of Edinburgh","Imp","EU","Scotland","Eastern Scotland","City of Edinburgh",771,1825]
["ImpEUScotlandEastern ScotlandClackmannanshire and Fife","Imp","EU","Scotland","Eastern Scotland","Clackmannanshire and Fife",798,982]
["ImpEUScotlandEastern ScotlandEast Lothian and Midlothian","Imp","EU","Scotland","Eastern Scotland","East Lothian and Midlothian",109,505]
["ImpEUScotlandEastern ScotlandFalkirk","Imp","EU","Scotland","Eastern Scotland","Falkirk",463,504]
["ImpEUScotlandEastern ScotlandPerth and Kinross and Stirling","Imp","EU","Scotland","Eastern Scotland","Perth and Kinross and Stirling",264,990]
["ImpEUScotlandEastern ScotlandWest Lothian","Imp","EU","Scotland","Eastern Scotland","West Lothian",538,703]
["ImpEUScotlandHighlands and IslandsCaithness and Sutherland and Ross and Cromarty","Imp","EU","Scotland","Highlands and Islands","Caithness and Sutherland and Ross and Cromarty",78,341]
["ImpEUScotlandHighlands and IslandsEilean Siar (Western Isles)","Imp","EU","Scotland","Highlands and Islands","Eilean Siar (Western Isles)",3,104]
["ImpEUScotlandHighlands and IslandsInverness and Nairn and Moray, Badenoch and Strathspey","Imp","EU","Scotland","Highlands and Islands","Inverness and Nairn and Moray, Badenoch and Strathspey",175,772]
["ImpEUScotlandHighlands and IslandsLochaber, Skye and Lochalsh, Arran and Cumbrae and Argyll and Bute","Imp","EU","Scotland","Highlands and Islands","Lochaber, Skye and Lochalsh, Arran and Cumbrae and Argyll and Bute",56,377]
["ImpEUScotlandHighlands and IslandsOrkney Islands","Imp","EU","Scotland","Highlands and Islands","Orkney Islands",5,119]
["ImpEUScotlandHighlands and IslandsShetland Islands","Imp","EU","Scotland","Highlands and Islands","Shetland Islands",20,160]
["ImpEUScotlandNorth Eastern ScotlandAberdeen City and Aberdeenshire","Imp","EU","Scotland","North Eastern Scotland","Aberdeen City and Aberdeenshire",1193,1918]
["ImpEUScotlandSC BTTASC BTTA","Imp","EU","Scotland","SC BTTA","SC BTTA",802,"N/A"]
["ImpEUScotlandSC OtherSC Other","Imp","EU","Scotland","SC Other","SC Other",220,278]
["ImpEUScotlandSouthern ScotlandDumfries and Galloway","Imp","EU","Scotland","Southern Scotland","Dumfries and Galloway",267,568]
["ImpEUScotlandSouthern ScotlandEast Ayrshire and North Ayrshire mainland","Imp","EU","Scotland","Southern Scotland","East Ayrshire and North Ayrshire mainland",323,523]
["ImpEUScotlandSouthern ScotlandScottish Borders","Imp","EU","Scotland","Southern Scotland","Scottish Borders",135,423]
["ImpEUScotlandSouthern ScotlandSouth Ayrshire","Imp","EU","Scotland","Southern Scotland","South Ayrshire",262,462]
["ImpEUScotlandSouthern ScotlandSouth Lanarkshire","Imp","EU","Scotland","Southern Scotland","South Lanarkshire",374,814]
["ImpEUScotlandWest Central ScotlandEast Dunbartonshire, West Dunbartonshire and Helensburgh and Lomond","Imp","EU","Scotland","West Central Scotland","East Dunbartonshire, West Dunbartonshire and Helensburgh and Lomond",114,422]
["ImpEUScotlandWest Central ScotlandGlasgow City","Imp","EU","Scotland","West Central Scotland","Glasgow City",1830,1890]
["ImpEUScotlandWest Central ScotlandInverclyde, East Renfrewshire and Renfrewshire","Imp","EU","Scotland","West Central Scotland","Inverclyde, East Renfrewshire and Renfrewshire",562,861]
["ImpEUScotlandWest Central ScotlandNorth Lanarkshire","Imp","EU","Scotland","West Central Scotland","North Lanarkshire",414,807]
["ImpEUSouth EastBerkshire, Buckinghamshire and OxfordshireBerkshire","Imp","EU","South East","Berkshire, Buckinghamshire and Oxfordshire","Berkshire",9492,3931]
["ImpEUSouth EastBerkshire, Buckinghamshire and OxfordshireBuckinghamshire CC","Imp","EU","South East","Berkshire, Buckinghamshire and Oxfordshire","Buckinghamshire CC",2874,2731]
["ImpEUSouth EastBerkshire, Buckinghamshire and OxfordshireMilton Keynes","Imp","EU","South East","Berkshire, Buckinghamshire and Oxfordshire","Milton Keynes",13777,1466]
["ImpEUSouth EastBerkshire, Buckinghamshire and OxfordshireOxfordshire","Imp","EU","South East","Berkshire, Buckinghamshire and Oxfordshire","Oxfordshire",3382,3219]
["ImpEUSouth EastHampshire and Isle of WightCentral Hampshire","Imp","EU","South East","Hampshire and Isle of Wight","Central Hampshire",1946,2783]
["ImpEUSouth EastHampshire and Isle of WightIsle of Wight","Imp","EU","South East","Hampshire and Isle of Wight","Isle of Wight",133,468]
["ImpEUSouth EastHampshire and Isle of WightNorth Hampshire","Imp","EU","South East","Hampshire and Isle of Wight","North Hampshire",5936,1617]
["ImpEUSouth EastHampshire and Isle of WightPortsmouth","Imp","EU","South East","Hampshire and Isle of Wight","Portsmouth",285,721]
["ImpEUSouth EastHampshire and Isle of WightSouth Hampshire","Imp","EU","South East","Hampshire and Isle of Wight","South Hampshire",864,1506]
["ImpEUSouth EastHampshire and Isle of WightSouthampton","Imp","EU","South East","Hampshire and Isle of Wight","Southampton",333,791]
["ImpEUSouth EastKentEast Kent","Imp","EU","South East","Kent","East Kent",637,1403]
["ImpEUSouth EastKentKent Thames Gateway","Imp","EU","South East","Kent","Kent Thames Gateway",1606,1171]
["ImpEUSouth EastKentMedway","Imp","EU","South East","Kent","Medway",292,751]
["ImpEUSouth EastKentMid Kent","Imp","EU","South East","Kent","Mid Kent",729,1329]
["ImpEUSouth EastKentWest Kent","Imp","EU","South East","Kent","West Kent",1031,1788]
["ImpEUSouth EastSE BTTASE BTTA","Imp","EU","South East","SE BTTA","SE BTTA",2435,"N/A"]
["ImpEUSouth EastSE EnergySE Energy","Imp","EU","South East","SE Energy","SE Energy",1218,"N/A"]
["ImpEUSouth EastSE OtherSE Other","Imp","EU","South East","SE Other","SE Other",343,399]
["ImpEUSouth EastSurrey, East and West SussexBrighton and Hove","Imp","EU","South East","Surrey, East and West Sussex","Brighton and Hove",432,1921]
[{"$f":"$B517&$C517&$D517&$E517&$F517","v":"ImpEUSouth EastSurrey, East and West SussexEast Surrey"},"Imp","EU","South East","Surrey, East and West Sussex","East Surrey",2180,1603]
["ImpEUSouth EastSurrey, East and West SussexEast Sussex CC","Imp","EU","South East","Surrey, East and West Sussex","East Sussex CC",310,1699]
["ImpEUSouth EastSurrey, East and West SussexWest Surrey","Imp","EU","South East","Surrey, East and West Sussex","West Surrey",5802,3638]
["ImpEUSouth EastSurrey, East and West SussexWest Sussex (North East)","Imp","EU","South East","Surrey, East and West Sussex","West Sussex (North East)",2567,1885]
["ImpEUSouth EastSurrey, East and West SussexWest Sussex (South West)","Imp","EU","South East","Surrey, East and West Sussex","West Sussex (South West)",976,1738]
["ImpEUSouth WestCornwall and Isles of ScillyCornwall and Isles of Scilly","Imp","EU","South West","Cornwall and Isles of Scilly","Cornwall and Isles of Scilly",266,1963]
["ImpEUSouth WestDevonDevon CC","Imp","EU","South West","Devon","Devon CC",676,3030]
["ImpEUSouth WestDevonPlymouth","Imp","EU","South West","Devon","Plymouth",308,775]
["ImpEUSouth WestDevonTorbay","Imp","EU","South West","Devon","Torbay",40,411]
["ImpEUSouth WestDorset and SomersetBournemouth and Poole","Imp","EU","South West","Dorset and Somerset","Bournemouth and Poole",542,1367]
["ImpEUSouth WestDorset and SomersetDorset CC","Imp","EU","South West","Dorset and Somerset","Dorset CC",460,1764]
["ImpEUSouth WestDorset and SomersetSomerset","Imp","EU","South West","Dorset and Somerset","Somerset",996,2062]
["ImpEUSouth WestGloucestershire, Wiltshire and Bath/Bristol areaBath and North East Somerset, North Somerset and South Gloucestershire","Imp","EU","South West","Gloucestershire, Wiltshire and Bath/Bristol area","Bath and North East Somerset, North Somerset and South Gloucestershire",1449,2332]
["ImpEUSouth WestGloucestershire, Wiltshire and Bath/Bristol areaBristol, City of","Imp","EU","South West","Gloucestershire, Wiltshire and Bath/Bristol area","Bristol, City of",761,1944]
["ImpEUSouth WestGloucestershire, Wiltshire and Bath/Bristol areaGloucestershire","Imp","EU","South West","Gloucestershire, Wiltshire and Bath/Bristol area","Gloucestershire",1806,2875]
["ImpEUSouth WestGloucestershire, Wiltshire and Bath/Bristol areaSwindon","Imp","EU","South West","Gloucestershire, Wiltshire and Bath/Bristol area","Swindon",1143,862]
["ImpEUSouth WestGloucestershire, Wiltshire and Bath/Bristol areaWiltshire","Imp","EU","South West","Gloucestershire, Wiltshire and Bath/Bristol area","Wiltshire",989,1942]
["ImpEUSouth WestSW BTTASW BTTA","Imp","EU","South West","SW BTTA","SW BTTA",1187,"N/A"]
["ImpEUSouth WestSW OtherSW Other","Imp","EU","South West","SW Other","SW Other",176,233]
["ImpEUWalesEast WalesCardiff and Vale of Glamorgan","Imp","EU","Wales","East Wales","Cardiff and Vale of Glamorgan",532,1415]
["ImpEUWalesEast WalesFlintshire and Wrexham","Imp","EU","Wales","East Wales","Flintshire and Wrexham",1353,983]
["ImpEUWalesEast WalesMonmouthshire and Newport","Imp","EU","Wales","East Wales","Monmouthshire and Newport",375,829]
["ImpEUWalesEast WalesPowys","Imp","EU","Wales","East Wales","Powys",178,554]
["ImpEUWalesWA BTTAWA BTTA","Imp","EU","Wales","WA BTTA","WA BTTA",433,"N/A"]
["ImpEUWalesWA EnergyWA Energy","Imp","EU","Wales","WA Energy","WA Energy",71,"N/A"]
["ImpEUWalesWA OtherWA Other","Imp","EU","Wales","WA Other","WA Other",24,140]
["ImpEUWalesWest Wales and The ValleysBridgend and Neath Port Talbot","Imp","EU","Wales","West Wales and The Valleys","Bridgend and Neath Port Talbot",1674,709]
["ImpEUWalesWest Wales and The ValleysCentral Valleys","Imp","EU","Wales","West Wales and The Valleys","Central Valleys",530,512]
["ImpEUWalesWest Wales and The ValleysConwy and Denbighshire","Imp","EU","Wales","West Wales and The Valleys","Conwy and Denbighshire",132,621]
["ImpEUWalesWest Wales and The ValleysGwent Valleys","Imp","EU","Wales","West Wales and The Valleys","Gwent Valleys",653,735]
["ImpEUWalesWest Wales and The ValleysGwynedd","Imp","EU","Wales","West Wales and The Valleys","Gwynedd",63,426]
["ImpEUWalesWest Wales and The ValleysIsle of Anglesey","Imp","EU","Wales","West Wales and The Valleys","Isle of Anglesey",32,204]
["ImpEUWalesWest Wales and The ValleysSouth West Wales","Imp","EU","Wales","West Wales and The Valleys","South West Wales",904,1024]
["ImpEUWalesWest Wales and The ValleysSwansea","Imp","EU","Wales","West Wales and The Valleys","Swansea",226,650]
["ImpEUWest MidlandsHerefordshire, Worcestershire and WarwickshireHerefordshire, County of","Imp","EU","West Midlands","Herefordshire, Worcestershire and Warwickshire","Herefordshire, County of",476,976]
["ImpEUWest MidlandsHerefordshire, Worcestershire and WarwickshireWarwickshire","Imp","EU","West Midlands","Herefordshire, Worcestershire and Warwickshire","Warwickshire",5317,2535]
["ImpEUWest MidlandsHerefordshire, Worcestershire and WarwickshireWorcestershire","Imp","EU","West Midlands","Herefordshire, Worcestershire and Warwickshire","Worcestershire",1649,2347]
["ImpEUWest MidlandsShropshire and StaffordshireShropshire CC","Imp","EU","West Midlands","Shropshire and Staffordshire","Shropshire CC",575,1379]
["ImpEUWest MidlandsShropshire and StaffordshireStaffordshire CC","Imp","EU","West Midlands","Shropshire and Staffordshire","Staffordshire CC",3409,2758]
["ImpEUWest MidlandsShropshire and StaffordshireStoke-on-Trent","Imp","EU","West Midlands","Shropshire and Staffordshire","Stoke-on-Trent",425,795]
["ImpEUWest MidlandsShropshire and StaffordshireTelford and Wrekin","Imp","EU","West Midlands","Shropshire and Staffordshire","Telford and Wrekin",696,732]
["ImpEUWest MidlandsWM BTTAWM BTTA","Imp","EU","West Midlands","WM BTTA","WM BTTA",1501,"N/A"]
["ImpEUWest MidlandsWM OtherWM Other","Imp","EU","West Midlands","WM Other","WM Other",142,208]
["ImpEUWest MidlandsWest MidlandsBirmingham","Imp","EU","West Midlands","West Midlands","Birmingham",2640,2666]
["ImpEUWest MidlandsWest MidlandsCoventry","Imp","EU","West Midlands","West Midlands","Coventry",1786,1028]
["ImpEUWest MidlandsWest MidlandsDudley","Imp","EU","West Midlands","West Midlands","Dudley",518,1041]
["ImpEUWest MidlandsWest MidlandsSandwell","Imp","EU","West Midlands","West Midlands","Sandwell",779,1018]
["ImpEUWest MidlandsWest MidlandsSolihull","Imp","EU","West Midlands","West Midlands","Solihull",2923,866]
["ImpEUWest MidlandsWest MidlandsWalsall","Imp","EU","West Midlands","West Midlands","Walsall",438,782]
["ImpEUWest MidlandsWest MidlandsWolverhampton","Imp","EU","West Midlands","West Midlands","Wolverhampton",376,779]
["ImpEUYorkshire and the HumberEast Yorkshire and Northern LincolnshireEast Riding of Yorkshire","Imp","EU","Yorkshire and the Humber","East Yorkshire and Northern Lincolnshire","East Riding of Yorkshire",739,1080]
["ImpEUYorkshire and the HumberEast Yorkshire and Northern LincolnshireKingston upon Hull, City of","Imp","EU","Yorkshire and the Humber","East Yorkshire and Northern Lincolnshire","Kingston upon Hull, City of",533,852]
["ImpEUYorkshire and the HumberEast Yorkshire and Northern LincolnshireNorth and North East Lincolnshire","Imp","EU","Yorkshire and the Humber","East Yorkshire and Northern Lincolnshire","North and North East Lincolnshire",1899,992]
["ImpEUYorkshire and the HumberNorth YorkshireNorth Yorkshire CC","Imp","EU","Yorkshire and the Humber","North Yorkshire","North Yorkshire CC",976,2471]
["ImpEUYorkshire and the HumberNorth YorkshireYork","Imp","EU","Yorkshire and the Humber","North Yorkshire","York",1284,932]
["ImpEUYorkshire and the HumberSouth YorkshireBarnsley, Doncaster and Rotherham","Imp","EU","Yorkshire and the Humber","South Yorkshire","Barnsley, Doncaster and Rotherham",1486,1916]
["ImpEUYorkshire and the HumberSouth YorkshireSheffield","Imp","EU","Yorkshire and the Humber","South Yorkshire","Sheffield",1127,1705]
["ImpEUYorkshire and the HumberWest YorkshireBradford","Imp","EU","Yorkshire and the Humber","West Yorkshire","Bradford",995,1375]
["ImpEUYorkshire and the HumberWest YorkshireCalderdale and Kirklees","Imp","EU","Yorkshire and the Humber","West Yorkshire","Calderdale and Kirklees",1172,1965]
["ImpEUYorkshire and the HumberWest YorkshireLeeds","Imp","EU","Yorkshire and the Humber","West Yorkshire","Leeds",2097,2647]
["ImpEUYorkshire and the HumberWest YorkshireWakefield","Imp","EU","Yorkshire and the Humber","West Yorkshire","Wakefield",3228,1047]
["ImpEUYorkshire and the HumberYH BTTAYH BTTA","Imp","EU","Yorkshire and the Humber","YH BTTA","YH BTTA",1204,"N/A"]
["ImpEUYorkshire and the HumberYH OtherYH Other","Imp","EU","Yorkshire and the Humber","YH Other","YH Other",156,196]
["ImpNon-EUEastBedfordshire and HertfordshireBedford","Imp","Non-EU","East","Bedfordshire and Hertfordshire","Bedford",235,572]
[{"$f":"$B581&$C581&$D581&$E581&$F581","v":"ImpNon-EUEastBedfordshire and HertfordshireCentral Bedfordshire"},"Imp","Non-EU","East","Bedfordshire and Hertfordshire","Central Bedfordshire",775,749]
["ImpNon-EUEastBedfordshire and HertfordshireHertfordshire","Imp","Non-EU","East","Bedfordshire and Hertfordshire","Hertfordshire",5239,3491]
["ImpNon-EUEastBedfordshire and HertfordshireLuton","Imp","Non-EU","East","Bedfordshire and Hertfordshire","Luton",786,746]
["ImpNon-EUEastEA OtherEA Other","Imp","Non-EU","East","EA Other","EA Other",123,188]
["ImpNon-EUEastEast AngliaBreckland and South Norfolk","Imp","Non-EU","East","East Anglia","Breckland and South Norfolk",214,610]
["ImpNon-EUEastEast AngliaCambridgeshire CC","Imp","Non-EU","East","East Anglia","Cambridgeshire CC",1854,2134]
["ImpNon-EUEastEast AngliaNorth and West Norfolk","Imp","Non-EU","East","East Anglia","North and West Norfolk",272,550]
["ImpNon-EUEastEast AngliaNorwich and East Norfolk","Imp","Non-EU","East","East Anglia","Norwich and East Norfolk",418,997]
["ImpNon-EUEastEast AngliaPeterborough","Imp","Non-EU","East","East Anglia","Peterborough",607,683]
["ImpNon-EUEastEast AngliaSuffolk","Imp","Non-EU","East","East Anglia","Suffolk",1354,1848]
["ImpNon-EUEastEssexEssex Haven Gateway","Imp","Non-EU","East","Essex","Essex Haven Gateway",608,1096]
["ImpNon-EUEastEssexEssex Thames Gateway","Imp","Non-EU","East","Essex","Essex Thames Gateway",968,873]
["ImpNon-EUEastEssexHeart of Essex","Imp","Non-EU","East","Essex","Heart of Essex",596,935]
["ImpNon-EUEastEssexSouthend-on-Sea","Imp","Non-EU","East","Essex","Southend-on-Sea",165,426]
["ImpNon-EUEastEssexThurrock","Imp","Non-EU","East","Essex","Thurrock",1033,625]
["ImpNon-EUEastEssexWest Essex","Imp","Non-EU","East","Essex","West Essex",940,1129]
["ImpNon-EUEast MidlandsDerbyshire and NottinghamshireDerby","Imp","Non-EU","East Midlands","Derbyshire and Nottinghamshire","Derby",3087,668]
["ImpNon-EUEast MidlandsDerbyshire and NottinghamshireEast Derbyshire","Imp","Non-EU","East Midlands","Derbyshire and Nottinghamshire","East Derbyshire",486,767]
["ImpNon-EUEast MidlandsDerbyshire and NottinghamshireNorth Nottinghamshire","Imp","Non-EU","East Midlands","Derbyshire and Nottinghamshire","North Nottinghamshire",739,1065]
["ImpNon-EUEast MidlandsDerbyshire and NottinghamshireNottingham","Imp","Non-EU","East Midlands","Derbyshire and Nottinghamshire","Nottingham",409,966]
["ImpNon-EUEast MidlandsDerbyshire and NottinghamshireSouth Nottinghamshire","Imp","Non-EU","East Midlands","Derbyshire and Nottinghamshire","South Nottinghamshire",485,666]
["ImpNon-EUEast MidlandsDerbyshire and NottinghamshireSouth and West Derbyshire","Imp","Non-EU","East Midlands","Derbyshire and Nottinghamshire","South and West Derbyshire",1098,1121]
["ImpNon-EUEast MidlandsEM OtherEM Other","Imp","Non-EU","East Midlands","EM Other","EM Other",74,155]
["ImpNon-EUEast MidlandsLeicestershire, Rutland and NorthamptonshireLeicester","Imp","Non-EU","East Midlands","Leicestershire, Rutland and Northamptonshire","Leicester",473,1174]
["ImpNon-EUEast MidlandsLeicestershire, Rutland and NorthamptonshireLeicestershire CC and Rutland","Imp","Non-EU","East Midlands","Leicestershire, Rutland and Northamptonshire","Leicestershire CC and Rutland",2031,2089]
["ImpNon-EUEast MidlandsLeicestershire, Rutland and NorthamptonshireNorth Northamptonshire","Imp","Non-EU","East Midlands","Leicestershire, Rutland and Northamptonshire","North Northamptonshire",918,1021]
["ImpNon-EUEast MidlandsLeicestershire, Rutland and NorthamptonshireWest Northamptonshire","Imp","Non-EU","East Midlands","Leicestershire, Rutland and Northamptonshire","West Northamptonshire",1022,1382]
["ImpNon-EUEast MidlandsLincolnshireLincolnshire","Imp","Non-EU","East Midlands","Lincolnshire","Lincolnshire",1230,1417]
["ImpNon-EULondonInner London - EastHackney and Newham","Imp","Non-EU","London","Inner London - East","Hackney and Newham",691,2103]
["ImpNon-EULondonInner London - EastHaringey and Islington","Imp","Non-EU","London","Inner London - East","Haringey and Islington",1204,2079]
["ImpNon-EULondonInner London - EastLambeth","Imp","Non-EU","London","Inner London - East","Lambeth",1667,736]
["ImpNon-EULondonInner London - EastLewisham and Southwark","Imp","Non-EU","London","Inner London - East","Lewisham and Southwark",700,1443]
["ImpNon-EULondonInner London - EastTower Hamlets","Imp","Non-EU","London","Inner London - East","Tower Hamlets",2497,1404]
["ImpNon-EULondonInner London - WestCamden and City of London","Imp","Non-EU","London","Inner London - West","Camden and City of London",4331,3956]
["ImpNon-EULondonInner London - WestKensington & Chelsea and Hammersmith & Fulham","Imp","Non-EU","London","Inner London - West","Kensington & Chelsea and Hammersmith & Fulham",929,2344]
["ImpNon-EULondonInner London - WestWandsworth","Imp","Non-EU","London","Inner London - West","Wandsworth",282,951]
["ImpNon-EULondonInner London - WestWestminster","Imp","Non-EU","London","Inner London - West","Westminster",6598,4213]
["ImpNon-EULondonLO OtherLO Other","Imp","Non-EU","London","LO Other","LO Other",589,420]
["ImpNon-EULondonOuter London - East and North EastBarking & Dagenham and Havering","Imp","Non-EU","London","Outer London - East and North East","Barking & Dagenham and Havering",827,1038]
["ImpNon-EULondonOuter London - East and North EastBexley and Greenwich","Imp","Non-EU","London","Outer London - East and North East","Bexley and Greenwich",464,892]
["ImpNon-EULondonOuter London - East and North EastEnfield","Imp","Non-EU","London","Outer London - East and North East","Enfield",463,868]
["ImpNon-EULondonOuter London - East and North EastRedbridge and Waltham Forest","Imp","Non-EU","London","Outer London - East and North East","Redbridge and Waltham Forest",441,1249]
["ImpNon-EULondonOuter London - SouthBromley","Imp","Non-EU","London","Outer London - South","Bromley",256,804]
["ImpNon-EULondonOuter London - SouthCroydon","Imp","Non-EU","London","Outer London - South","Croydon",270,789]
["ImpNon-EULondonOuter London - SouthMerton, Kingston upon Thames and Sutton","Imp","Non-EU","London","Outer London - South","Merton, Kingston upon Thames and Sutton",813,1613]
["ImpNon-EULondonOuter London - West and North WestBarnet","Imp","Non-EU","London","Outer London - West and North West","Barnet",518,1376]
["ImpNon-EULondonOuter London - West and North WestBrent","Imp","Non-EU","London","Outer London - West and North West","Brent",605,1366]
["ImpNon-EULondonOuter London - West and North WestEaling","Imp","Non-EU","London","Outer London - West and North West","Ealing",857,1515]
["ImpNon-EULondonOuter London - West and North WestHarrow and Hillingdon","Imp","Non-EU","London","Outer London - West and North West","Harrow and Hillingdon",7328,1952]
["ImpNon-EULondonOuter London - West and North WestHounslow and Richmond upon Thames","Imp","Non-EU","London","Outer London - West and North West","Hounslow and Richmond upon Thames",1475,1646]
["ImpNon-EUNorth EastNE EnergyNE Energy","Imp","Non-EU","North East","NE Energy","NE Energy",4,"N/A"]
["ImpNon-EUNorth EastNE OtherNE Other","Imp","Non-EU","North East","NE Other","NE Other",24,79]
["ImpNon-EUNorth EastNorthumberland and Tyne and WearNorthumberland","Imp","Non-EU","North East","Northumberland and Tyne and Wear","Northumberland",382,552]
["ImpNon-EUNorth EastNorthumberland and Tyne and WearSunderland","Imp","Non-EU","North East","Northumberland and Tyne and Wear","Sunderland",1724,551]
["ImpNon-EUNorth EastNorthumberland and Tyne and WearTyneside","Imp","Non-EU","North East","Northumberland and Tyne and Wear","Tyneside",1184,1622]
["ImpNon-EUNorth EastTees Valley and DurhamDarlington","Imp","Non-EU","North East","Tees Valley and Durham","Darlington",232,317]
["ImpNon-EUNorth EastTees Valley and DurhamDurham CC","Imp","Non-EU","North East","Tees Valley and Durham","Durham CC",873,814]
["ImpNon-EUNorth EastTees Valley and DurhamHartlepool and Stockton-on-Tees","Imp","Non-EU","North East","Tees Valley and Durham","Hartlepool and Stockton-on-Tees",1130,618]
["ImpNon-EUNorth EastTees Valley and DurhamSouth Teesside","Imp","Non-EU","North East","Tees Valley and Durham","South Teesside",386,503]
["ImpNon-EUNorthern IrelandNorthern IrelandNI Other","Imp","Non-EU","Northern Ireland","Northern Ireland","NI Other",2738,2832]
["ImpNon-EUNorth WestCheshireCheshire East","Imp","Non-EU","North West","Cheshire","Cheshire East",782,1186]
["ImpNon-EUNorth WestCheshireCheshire West and Chester","Imp","Non-EU","North West","Cheshire","Cheshire West and Chester",2662,1037]
["ImpNon-EUNorth WestCheshireWarrington","Imp","Non-EU","North West","Cheshire","Warrington",365,786]
["ImpNon-EUNorth WestCumbriaEast Cumbria","Imp","Non-EU","North West","Cumbria","East Cumbria",265,717]
[{"$f":"$B645&$C645&$D645&$E645&$F645","v":"ImpNon-EUNorth WestCumbriaWest Cumbria"},"Imp","Non-EU","North West","Cumbria","West Cumbria",361,416]
["ImpNon-EUNorth WestGreater ManchesterGreater Manchester North East","Imp","Non-EU","North West","Greater Manchester","Greater Manchester North East",1149,1485]
["ImpNon-EUNorth WestGreater ManchesterGreater Manchester North West","Imp","Non-EU","North West","Greater Manchester","Greater Manchester North West",1400,1156]
["ImpNon-EUNorth WestGreater ManchesterGreater Manchester South East","Imp","Non-EU","North West","Greater Manchester","Greater Manchester South East",1237,1217]
["ImpNon-EUNorth WestGreater ManchesterGreater Manchester South West","Imp","Non-EU","North West","Greater Manchester","Greater Manchester South West",1395,2086]
["ImpNon-EUNorth WestGreater ManchesterManchester","Imp","Non-EU","North West","Greater Manchester","Manchester",1606,4187]
["ImpNon-EUNorth WestLancashireBlackburn with Darwen","Imp","Non-EU","North West","Lancashire","Blackburn with Darwen",305,519]
["ImpNon-EUNorth WestLancashireBlackpool","Imp","Non-EU","North West","Lancashire","Blackpool",104,316]
["ImpNon-EUNorth WestLancashireChorley and West Lancashire","Imp","Non-EU","North West","Lancashire","Chorley and West Lancashire",270,532]
["ImpNon-EUNorth WestLancashireEast Lancashire","Imp","Non-EU","North West","Lancashire","East Lancashire",1237,826]
["ImpNon-EUNorth WestLancashireLancaster and Wyre","Imp","Non-EU","North West","Lancashire","Lancaster and Wyre",191,550]
["ImpNon-EUNorth WestLancashireMid Lancashire","Imp","Non-EU","North West","Lancashire","Mid Lancashire",1117,1029]
["ImpNon-EUNorth WestMerseysideEast Merseyside","Imp","Non-EU","North West","Merseyside","East Merseyside",1070,904]
["ImpNon-EUNorth WestMerseysideLiverpool","Imp","Non-EU","North West","Merseyside","Liverpool",858,1341]
["ImpNon-EUNorth WestMerseysideSefton","Imp","Non-EU","North West","Merseyside","Sefton",373,544]
["ImpNon-EUNorth WestMerseysideWirral","Imp","Non-EU","North West","Merseyside","Wirral",312,527]
["ImpNon-EUNorth WestNW OtherNW Other","Imp","Non-EU","North West","NW Other","NW Other",125,230]
["ImpNon-EUScotlandEastern ScotlandAngus and Dundee City","Imp","Non-EU","Scotland","Eastern Scotland","Angus and Dundee City",265,556]
["ImpNon-EUScotlandEastern ScotlandCity of Edinburgh","Imp","Non-EU","Scotland","Eastern Scotland","City of Edinburgh",685,1315]
["ImpNon-EUScotlandEastern ScotlandClackmannanshire and Fife","Imp","Non-EU","Scotland","Eastern Scotland","Clackmannanshire and Fife",977,662]
["ImpNon-EUScotlandEastern ScotlandEast Lothian and Midlothian","Imp","Non-EU","Scotland","Eastern Scotland","East Lothian and Midlothian",187,345]
["ImpNon-EUScotlandEastern ScotlandFalkirk","Imp","Non-EU","Scotland","Eastern Scotland","Falkirk",596,359]
["ImpNon-EUScotlandEastern ScotlandPerth and Kinross and Stirling","Imp","Non-EU","Scotland","Eastern Scotland","Perth and Kinross and Stirling",215,594]
["ImpNon-EUScotlandEastern ScotlandWest Lothian","Imp","Non-EU","Scotland","Eastern Scotland","West Lothian",554,548]
["ImpNon-EUScotlandHighlands and IslandsCaithness and Sutherland and Ross and Cromarty","Imp","Non-EU","Scotland","Highlands and Islands","Caithness and Sutherland and Ross and Cromarty",101,218]
["ImpNon-EUScotlandHighlands and IslandsEilean Siar (Western Isles)","Imp","Non-EU","Scotland","Highlands and Islands","Eilean Siar (Western Isles)",30,63]
["ImpNon-EUScotlandHighlands and IslandsInverness and Nairn and Moray, Badenoch and Strathspey","Imp","Non-EU","Scotland","Highlands and Islands","Inverness and Nairn and Moray, Badenoch and Strathspey",137,488]
["ImpNon-EUScotlandHighlands and IslandsLochaber, Skye and Lochalsh, Arran and Cumbrae and Argyll and Bute","Imp","Non-EU","Scotland","Highlands and Islands","Lochaber, Skye and Lochalsh, Arran and Cumbrae and Argyll and Bute",53,218]
["ImpNon-EUScotlandHighlands and IslandsOrkney Islands","Imp","Non-EU","Scotland","Highlands and Islands","Orkney Islands",5,79]
["ImpNon-EUScotlandHighlands and IslandsShetland Islands","Imp","Non-EU","Scotland","Highlands and Islands","Shetland Islands",27,95]
["ImpNon-EUScotlandNorth Eastern ScotlandAberdeen City and Aberdeenshire","Imp","Non-EU","Scotland","North Eastern Scotland","Aberdeen City and Aberdeenshire",1980,1583]
["ImpNon-EUScotlandSC EnergySC Energy","Imp","Non-EU","Scotland","SC Energy","SC Energy",3271,"N/A"]
["ImpNon-EUScotlandSC OtherSC Other","Imp","Non-EU","Scotland","SC Other","SC Other",118,214]
["ImpNon-EUScotlandSouthern ScotlandDumfries and Galloway","Imp","Non-EU","Scotland","Southern Scotland","Dumfries and Galloway",162,377]
["ImpNon-EUScotlandSouthern ScotlandEast Ayrshire and North Ayrshire mainland","Imp","Non-EU","Scotland","Southern Scotland","East Ayrshire and North Ayrshire mainland",192,372]
["ImpNon-EUScotlandSouthern ScotlandScottish Borders","Imp","Non-EU","Scotland","Southern Scotland","Scottish Borders",116,273]
["ImpNon-EUScotlandSouthern ScotlandSouth Ayrshire","Imp","Non-EU","Scotland","Southern Scotland","South Ayrshire",1636,334]
["ImpNon-EUScotlandSouthern ScotlandSouth Lanarkshire","Imp","Non-EU","Scotland","Southern Scotland","South Lanarkshire",494,632]
["ImpNon-EUScotlandWest Central ScotlandEast Dunbartonshire, West Dunbartonshire and Helensburgh and Lomond","Imp","Non-EU","Scotland","West Central Scotland","East Dunbartonshire, West Dunbartonshire and Helensburgh and Lomond",118,353]
["ImpNon-EUScotlandWest Central ScotlandGlasgow City","Imp","Non-EU","Scotland","West Central Scotland","Glasgow City",1907,1572]
["ImpNon-EUScotlandWest Central ScotlandInverclyde, East Renfrewshire and Renfrewshire","Imp","Non-EU","Scotland","West Central Scotland","Inverclyde, East Renfrewshire and Renfrewshire",886,691]
["ImpNon-EUScotlandWest Central ScotlandNorth Lanarkshire","Imp","Non-EU","Scotland","West Central Scotland","North Lanarkshire",482,654]
["ImpNon-EUSouth EastBerkshire, Buckinghamshire and OxfordshireBerkshire","Imp","Non-EU","South East","Berkshire, Buckinghamshire and Oxfordshire","Berkshire",4550,3137]
["ImpNon-EUSouth EastBerkshire, Buckinghamshire and OxfordshireBuckinghamshire CC","Imp","Non-EU","South East","Berkshire, Buckinghamshire and Oxfordshire","Buckinghamshire CC",1820,1853]
["ImpNon-EUSouth EastBerkshire, Buckinghamshire and OxfordshireMilton Keynes","Imp","Non-EU","South East","Berkshire, Buckinghamshire and Oxfordshire","Milton Keynes",1264,1216]
["ImpNon-EUSouth EastBerkshire, Buckinghamshire and OxfordshireOxfordshire","Imp","Non-EU","South East","Berkshire, Buckinghamshire and Oxfordshire","Oxfordshire",1845,2166]
["ImpNon-EUSouth EastHampshire and Isle of WightCentral Hampshire","Imp","Non-EU","South East","Hampshire and Isle of Wight","Central Hampshire",4513,1776]
["ImpNon-EUSouth EastHampshire and Isle of WightIsle of Wight","Imp","Non-EU","South East","Hampshire and Isle of Wight","Isle of Wight",78,342]
["ImpNon-EUSouth EastHampshire and Isle of WightNorth Hampshire","Imp","Non-EU","South East","Hampshire and Isle of Wight","North Hampshire",1807,1244]
["ImpNon-EUSouth EastHampshire and Isle of WightPortsmouth","Imp","Non-EU","South East","Hampshire and Isle of Wight","Portsmouth",560,619]
["ImpNon-EUSouth EastHampshire and Isle of WightSouth Hampshire","Imp","Non-EU","South East","Hampshire and Isle of Wight","South Hampshire",2513,1904]
["ImpNon-EUSouth EastHampshire and Isle of WightSouthampton","Imp","Non-EU","South East","Hampshire and Isle of Wight","Southampton",234,675]
["ImpNon-EUSouth EastKentEast Kent","Imp","Non-EU","South East","Kent","East Kent",718,910]
["ImpNon-EUSouth EastKentKent Thames Gateway","Imp","Non-EU","South East","Kent","Kent Thames Gateway",886,893]
["ImpNon-EUSouth EastKentMedway","Imp","Non-EU","South East","Kent","Medway",297,549]
["ImpNon-EUSouth EastKentMid Kent","Imp","Non-EU","South East","Kent","Mid Kent",738,1036]
["ImpNon-EUSouth EastKentWest Kent","Imp","Non-EU","South East","Kent","West Kent",732,1218]
["ImpNon-EUSouth EastSE OtherSE Other","Imp","Non-EU","South East","SE Other","SE Other",148,322]
["ImpNon-EUSouth EastSurrey, East and West SussexBrighton and Hove","Imp","Non-EU","South East","Surrey, East and West Sussex","Brighton and Hove",241,1145]
["ImpNon-EUSouth EastSurrey, East and West SussexEast Surrey","Imp","Non-EU","South East","Surrey, East and West Sussex","East Surrey",3456,1077]
["ImpNon-EUSouth EastSurrey, East and West SussexEast Sussex CC","Imp","Non-EU","South East","Surrey, East and West Sussex","East Sussex CC",347,1139]
["ImpNon-EUSouth EastSurrey, East and West SussexWest Surrey","Imp","Non-EU","South East","Surrey, East and West Sussex","West Surrey",6689,2626]
["ImpNon-EUSouth EastSurrey, East and West SussexWest Sussex (North East)","Imp","Non-EU","South East","Surrey, East and West Sussex","West Sussex (North East)",1778,1389]
[{"$f":"$B708&$C708&$D708&$E708&$F708","v":"ImpNon-EUSouth EastSurrey, East and West SussexWest Sussex (South West)"},"Imp","Non-EU","South East","Surrey, East and West Sussex","West Sussex (South West)",615,1154]
["ImpNon-EUSouth WestCornwall and Isles of ScillyCornwall and Isles of Scilly","Imp","Non-EU","South West","Cornwall and Isles of Scilly","Cornwall and Isles of Scilly",404,1046]
["ImpNon-EUSouth WestDevonDevon CC","Imp","Non-EU","South West","Devon","Devon CC",734,1769]
["ImpNon-EUSouth WestDevonPlymouth","Imp","Non-EU","South West","Devon","Plymouth",404,603]
["ImpNon-EUSouth WestDevonTorbay","Imp","Non-EU","South West","Devon","Torbay",68,321]
["ImpNon-EUSouth WestDorset and SomersetBournemouth and Poole","Imp","Non-EU","South West","Dorset and Somerset","Bournemouth and Poole",547,947]
["ImpNon-EUSouth WestDorset and SomersetDorset CC","Imp","Non-EU","South West","Dorset and Somerset","Dorset CC",568,1111]
["ImpNon-EUSouth WestDorset and SomersetSomerset","Imp","Non-EU","South West","Dorset and Somerset","Somerset",1019,1229]
["ImpNon-EUSouth WestGloucestershire, Wiltshire and Bath/Bristol areaBath and North East Somerset, North Somerset and South Gloucestershire","Imp","Non-EU","South West","Gloucestershire, Wiltshire and Bath/Bristol area","Bath and North East Somerset, North Somerset and South Gloucestershire",1490,1568]
["ImpNon-EUSouth WestGloucestershire, Wiltshire and Bath/Bristol areaBristol, City of","Imp","Non-EU","South West","Gloucestershire, Wiltshire and Bath/Bristol area","Bristol, City of",911,1461]
["ImpNon-EUSouth WestGloucestershire, Wiltshire and Bath/Bristol areaGloucestershire","Imp","Non-EU","South West","Gloucestershire, Wiltshire and Bath/Bristol area","Gloucestershire",5293,1841]
["ImpNon-EUSouth WestGloucestershire, Wiltshire and Bath/Bristol areaSwindon","Imp","Non-EU","South West","Gloucestershire, Wiltshire and Bath/Bristol area","Swindon",754,691]
["ImpNon-EUSouth WestGloucestershire, Wiltshire and Bath/Bristol areaWiltshire","Imp","Non-EU","South West","Gloucestershire, Wiltshire and Bath/Bristol area","Wiltshire",948,1241]
["ImpNon-EUSouth WestSW OtherSW Other","Imp","Non-EU","South West","SW Other","SW Other",236,169]
["ImpNon-EUWalesEast WalesCardiff and Vale of Glamorgan","Imp","Non-EU","Wales","East Wales","Cardiff and Vale of Glamorgan",1009,1138]
["ImpNon-EUWalesEast WalesFlintshire and Wrexham","Imp","Non-EU","Wales","East Wales","Flintshire and Wrexham",955,758]
["ImpNon-EUWalesEast WalesMonmouthshire and Newport","Imp","Non-EU","Wales","East Wales","Monmouthshire and Newport",599,568]
["ImpNon-EUWalesEast WalesPowys","Imp","Non-EU","Wales","East Wales","Powys",163,315]
["ImpNon-EUWalesWA OtherWA Other","Imp","Non-EU","Wales","WA Other","WA Other",22,109]
["ImpNon-EUWalesWest Wales and The ValleysBridgend and Neath Port Talbot","Imp","Non-EU","Wales","West Wales and The Valleys","Bridgend and Neath Port Talbot",1017,532]
["ImpNon-EUWalesWest Wales and The ValleysCentral Valleys","Imp","Non-EU","Wales","West Wales and The Valleys","Central Valleys",2073,1127]
["ImpNon-EUWalesWest Wales and The ValleysConwy and Denbighshire","Imp","Non-EU","Wales","West Wales and The Valleys","Conwy and Denbighshire",114,410]
["ImpNon-EUWalesWest Wales and The ValleysGwent Valleys","Imp","Non-EU","Wales","West Wales and The Valleys","Gwent Valleys",686,607]
["ImpNon-EUWalesWest Wales and The ValleysGwynedd","Imp","Non-EU","Wales","West Wales and The Valleys","Gwynedd",64,284]
["ImpNon-EUWalesWest Wales and The ValleysIsle of Anglesey","Imp","Non-EU","Wales","West Wales and The Valleys","Isle of Anglesey",48,129]
["ImpNon-EUWalesWest Wales and The ValleysSouth West Wales","Imp","Non-EU","Wales","West Wales and The Valleys","South West Wales",3949,557]
["ImpNon-EUWalesWest Wales and The ValleysSwansea","Imp","Non-EU","Wales","West Wales and The Valleys","Swansea",473,538]
["ImpNon-EUWest MidlandsHerefordshire, Worcestershire and WarwickshireHerefordshire, County of","Imp","Non-EU","West Midlands","Herefordshire, Worcestershire and Warwickshire","Herefordshire, County of",445,598]
["ImpNon-EUWest MidlandsHerefordshire, Worcestershire and WarwickshireWarwickshire","Imp","Non-EU","West Midlands","Herefordshire, Worcestershire and Warwickshire","Warwickshire",1944,1790]
["ImpNon-EUWest MidlandsHerefordshire, Worcestershire and WarwickshireWorcestershire","Imp","Non-EU","West Midlands","Herefordshire, Worcestershire and Warwickshire","Worcestershire",1540,1646]
["ImpNon-EUWest MidlandsShropshire and StaffordshireShropshire CC","Imp","Non-EU","West Midlands","Shropshire and Staffordshire","Shropshire CC",403,767]
["ImpNon-EUWest MidlandsShropshire and StaffordshireStaffordshire CC","Imp","Non-EU","West Midlands","Shropshire and Staffordshire","Staffordshire CC",2186,1904]
["ImpNon-EUWest MidlandsShropshire and StaffordshireStoke-on-Trent","Imp","Non-EU","West Midlands","Shropshire and Staffordshire","Stoke-on-Trent",271,646]
["ImpNon-EUWest MidlandsShropshire and StaffordshireTelford and Wrekin","Imp","Non-EU","West Midlands","Shropshire and Staffordshire","Telford and Wrekin",1366,618]
["ImpNon-EUWest MidlandsWM OtherWM Other","Imp","Non-EU","West Midlands","WM Other","WM Other",94,192]
["ImpNon-EUWest MidlandsWest MidlandsBirmingham","Imp","Non-EU","West Midlands","West Midlands","Birmingham",2048,2863]
["ImpNon-EUWest MidlandsWest MidlandsCoventry","Imp","Non-EU","West Midlands","West Midlands","Coventry",783,817]
["ImpNon-EUWest MidlandsWest MidlandsDudley","Imp","Non-EU","West Midlands","West Midlands","Dudley",510,834]
["ImpNon-EUWest MidlandsWest MidlandsSandwell","Imp","Non-EU","West Midlands","West Midlands","Sandwell",764,929]
["ImpNon-EUWest MidlandsWest MidlandsSolihull","Imp","Non-EU","West Midlands","West Midlands","Solihull",633,717]
["ImpNon-EUWest MidlandsWest MidlandsWalsall","Imp","Non-EU","West Midlands","West Midlands","Walsall",420,691]
["ImpNon-EUWest MidlandsWest MidlandsWolverhampton","Imp","Non-EU","West Midlands","West Midlands","Wolverhampton",728,671]
["ImpNon-EUYorkshire and the HumberEast Yorkshire and Northern LincolnshireEast Riding of Yorkshire","Imp","Non-EU","Yorkshire and the Humber","East Yorkshire and Northern Lincolnshire","East Riding of Yorkshire",517,697]
["ImpNon-EUYorkshire and the HumberEast Yorkshire and Northern LincolnshireKingston upon Hull, City of","Imp","Non-EU","Yorkshire and the Humber","East Yorkshire and Northern Lincolnshire","Kingston upon Hull, City of",418,641]
["ImpNon-EUYorkshire and the HumberEast Yorkshire and Northern LincolnshireNorth and North East Lincolnshire","Imp","Non-EU","Yorkshire and the Humber","East Yorkshire and Northern Lincolnshire","North and North East Lincolnshire",3488,710]
["ImpNon-EUYorkshire and the HumberNorth YorkshireNorth Yorkshire CC","Imp","Non-EU","Yorkshire and the Humber","North Yorkshire","North Yorkshire CC",1368,1455]
["ImpNon-EUYorkshire and the HumberNorth YorkshireYork","Imp","Non-EU","Yorkshire and the Humber","North Yorkshire","York",335,661]
["ImpNon-EUYorkshire and the HumberSouth YorkshireBarnsley, Doncaster and Rotherham","Imp","Non-EU","Yorkshire and the Humber","South Yorkshire","Barnsley, Doncaster and Rotherham",1206,1317]
["ImpNon-EUYorkshire and the HumberSouth YorkshireSheffield","Imp","Non-EU","Yorkshire and the Humber","South Yorkshire","Sheffield",743,1423]
["ImpNon-EUYorkshire and the HumberWest YorkshireBradford","Imp","Non-EU","Yorkshire and the Humber","West Yorkshire","Bradford",766,1285]
["ImpNon-EUYorkshire and the HumberWest YorkshireCalderdale and Kirklees","Imp","Non-EU","Yorkshire and the Humber","West Yorkshire","Calderdale and Kirklees",1114,1573]
["ImpNon-EUYorkshire and the HumberWest YorkshireLeeds","Imp","Non-EU","Yorkshire and the Humber","West Yorkshire","Leeds",1318,2049]
["ImpNon-EUYorkshire and the HumberWest YorkshireWakefield","Imp","Non-EU","Yorkshire and the Humber","West Yorkshire","Wakefield",864,826]
["ImpNon-EUYorkshire and the HumberYH EnergyYH Energy","Imp","Non-EU","Yorkshire and the Humber","YH Energy","YH Energy",4502,"N/A"]
["ImpNon-EUYorkshire and the HumberYH OtherYH Other","Imp","Non-EU","Yorkshire and the Humber","YH Other","YH Other",165,168]
[""]
[""]
[""]
[""]
[""]
[""]
[""]
[""]
[""]
[{"$f":"$B772&$C772&$D772&$E772&$F772","v":""}]
[""]
[""]
[""]
[""]
[""]
[""]
[""]
[""]
[""]
[""]
[""]
[""]
[""]
[""]
[""]
[""]
[""]

{"sheet":"VlookupList","index":6,"n_rows":72,"n_cols":6,"rows_kept":72,"cut":false,"hidden":true,"merged":[]}
[null,"Vlookup values for NUTS 3 list",null,null,"Vlookup values for NUTS2 list"]
[null,"Please Select","PleaseSelectNUTS3",null,"Please Select","PleaseSelectNUTS2"]
[null,"Bedfordshire and Hertfordshire","BedfordshireandHertfordshire",null,"East","East"]
[null,"EA BTTA","EABTTA",null,"East Midlands","EastMidlands"]
[null,"EA Energy","EAEnergy",null,"London","London"]
[null,"EA Other","EAOther",null,"North East","NorthEast"]
[null,"East Anglia","EastAnglia",null,"North West","NorthWest"]
[null,"Essex","Essex",null,"Northern Ireland","NorthernIreland"]
[null,"Derbyshire and Nottinghamshire","DerbyshireandNottinghamshire",null,"Scotland","Scotland"]
[null,"EM BTTA","EMBTTA",null,"South East","SouthEast"]
[null,"EM Energy","EMEnergy",null,"South West","SouthWest"]
[null,"EM Other","EMOther",null,"Wales","Wales"]
[null,"Leicestershire, Rutland and Northamptonshire","LeicestershireRutlandandNorthamptonshire",null,"West Midlands","WestMidlands"]
[null,"Lincolnshire","Lincolnshire",null,"Yorkshire and the Humber","YorkshireandtheHumber"]
[null,"Inner London - East","InnerLondonEast"]
[null,"Inner London - West","InnerLondonWest"]
[null,"LO BTTA","LOBTTA"]
[null,"LO Other","LOOther"]
[null,"Outer London - East and North East","OuterLondonEastandNorthEast"]
[null,"Outer London - South","OuterLondonSouth"]
[null,"Outer London - West and North West","OuterLondonWestandNorthWest"]
[null,"NE BTTA","NEBTTA"]
[null,"NE Energy","NEEnergy"]
[null,"NE Other","NEOther"]
[null,"Northumberland and Tyne and Wear","NorthumberlandandTyneandWear"]
[null,"Tees Valley and Durham","TeesValleyandDurham"]
[null,"Cheshire","Cheshire"]
[null,"Cumbria","Cumbria"]
[null,"Greater Manchester","GreaterManchester"]
[null,"Lancashire","Lancashire"]
[null,"Merseyside","Merseyside"]
[null,"NW BTTA","NWBTTA"]
[null,"NW Energy","NWEnergy"]
[null,"NW Other","NWOther"]
[null,"Northern Ireland","NorthernIreland1"]
[null,"Eastern Scotland","EasternScotland"]
[null,"Highlands and Islands","HighlandsandIslands"]
[null,"North Eastern Scotland","NorthEasternScotland"]
[null,"SC BTTA","SCBTTA"]
[null,"SC Energy","SCEnergy"]
[null,"SC Other","SCOther"]
[null,"South Western Scotland","SouthWesternScotland"]
[null,"Berkshire, Buckinghamshire and Oxfordshire","BerkshireBuckinghamshireandOxfordshire"]
[null,"Hampshire and Isle of Wight","HampshireandIsleofWight"]
[null,"Kent","Kent"]
[null,"SE BTTA","SEBTTA"]
[null,"SE Energy","SEEnergy"]
[null,"SE Other","SEOther"]
[null,"Surrey, East and West Sussex","SurreyEastandWestSussex"]
[null,"Cornwall and Isles of Scilly","CornwallandIslesofScilly"]
[null,"Devon","Devon"]
[null,"Dorset and Somerset","DorsetandSomerset"]
[null,"Gloucestershire, Wiltshire and Bath/Bristol area","GloucestershireWiltshireandBathBristolarea"]
[null,"SW BTTA","SWBTTA"]
[null,"SW Other","SWOther"]
[null,"East Wales","EastWales"]
[null,"WA BTTA","WABTTA"]
[null,"WA Energy","WAEnergy"]
[null,"WA Other","WAOther"]
[null,"West Wales","WestWales"]
[null,"Herefordshire, Worcestershire and Warwickshire","HerefordshireWorcestershireandWarwickshire"]
[null,"Shropshire and Staffordshire","ShropshireandStaffordshire"]
[null,"West Midlands","WestMidlandsA"]
[null,"WM BTTA","WMBTTA"]
[null,"WM Other","WMOther"]
[null,"East Yorkshire and Northern Lincolnshire","EastYorkshireandNorthernLincolnshire"]
[null,"North Yorkshire","NorthYorkshire"]
[null,"South Yorkshire","SouthYorkshire"]
[null,"West Yorkshire","WestYorkshire"]
[null,"YH BTTA","YHBTTA"]
[null,"YH Energy","YHEnergy"]
[null,"YH Other","YHOther"]

{"sheet":"Lists","index":7,"n_rows":278,"n_cols":15,"rows_kept":278,"cut":false,"hidden":true,"merged":[[0,2,0,3],[0,7,0,9]]}
["NUTS 1",null,"NUTS 2",null,null,null,null,"NUTS 3",null,null,null,null,"EUNEU",null,"Flow"]
["Please Select",null,null,"Please Select",null,null,null,null,null,"Please Select",null,null,"Please Select",null,"Please Select"]
["East",null,"East","Please Select",null,null,null,"East","Bedfordshire and Hertfordshire","Please Select",null,null,"EU",null,"Exports"]
["East Midlands",null,"East","Bedfordshire and Hertfordshire",null,null,null,"East","Bedfordshire and Hertfordshire","Bedford",null,null,"Non-EU",null,"Imports"]
["London",null,"East","EA BTTA",null,null,null,"East","Bedfordshire and Hertfordshire","Central Bedfordshire"]
["North East",null,"East","EA Energy",null,null,null,"East","Bedfordshire and Hertfordshire","Hertfordshire"]
["North West",null,"East","EA Other",null,null,null,"East","Bedfordshire and Hertfordshire","Luton"]
["Northern Ireland",null,"East","East Anglia",null,null,null,"East","EA BTTA","Please Select"]
["Scotland",null,"East","Essex",null,null,null,"East","EA BTTA","EA BTTA"]
["South East",null,"East Midlands","Please Select",null,null,null,"East","EA Energy","Please Select"]
["South West",null,"East Midlands","Derbyshire and Nottinghamshire",null,null,null,"East","EA Energy","EA Energy"]
["Wales",null,"East Midlands","EM BTTA",null,null,null,"East","EA Other","Please Select"]
["West Midlands",null,"East Midlands","EM Energy",null,null,null,"East","EA Other","EA Other"]
["Yorkshire and The Humber",null,"East Midlands","EM Other",null,null,null,"East","East Anglia","Please Select"]
["Unallocated - Known",null,"East Midlands","Leicestershire, Rutland and Northamptonshire",null,null,null,"East","East Anglia","Breckland and South Norfolk"]
["Unallocated - Unknown",null,"East Midlands","Lincolnshire",null,null,null,"East","East Anglia","Cambridgeshire CC"]
[null,null,"London","Please Select",null,null,null,"East","East Anglia","North and West Norfolk"]
[null,null,"London","Inner London - East",null,null,null,"East","East Anglia","Norwich and East Norfolk"]
[null,null,"London","Inner London - West",null,null,null,"East","East Anglia","Peterborough"]
[null,null,"London","LO BTTA",null,null,null,"East","East Anglia","Suffolk"]
[null,null,"London","LO Other",null,null,null,"East","Essex","Please Select"]
[null,null,"London","LO Energy",null,null,null,"East","Essex","Essex Haven Gateway"]
[null,null,"London","Outer London - East and North East",null,null,null,"East","Essex","Essex Thames Gateway"]
[null,null,"London","Outer London - South",null,null,null,"East","Essex","Heart of Essex"]
[null,null,"London","Outer London - West and North West",null,null,null,"East","Essex","Southend-on-Sea"]
[null,null,"North East","Please Select",null,null,null,"East","Essex","Thurrock"]
[null,null,"North East","NE Energy",null,null,null,"East","Essex","West Essex"]
[null,null,"North East","NE BTTA",null,null,null,"East Midlands","Derbyshire and Nottinghamshire","Please Select"]
[null,null,"North East","NE Other",null,null,null,"East Midlands","Derbyshire and Nottinghamshire","Derby"]
[null,null,"North East","Northumberland and Tyne and Wear",null,null,null,"East Midlands","Derbyshire and Nottinghamshire","East Derbyshire"]
[null,null,"North East","Tees Valley and Durham",null,null,null,"East Midlands","Derbyshire and Nottinghamshire","North Nottinghamshire"]
[null,null,"North West","Please Select",null,null,null,"East Midlands","Derbyshire and Nottinghamshire","Nottingham"]
[null,null,"North West","Cheshire",null,null,null,"East Midlands","Derbyshire and Nottinghamshire","South and West Derbyshire"]
[null,null,"North West","Cumbria",null,null,null,"East Midlands","Derbyshire and Nottinghamshire","South Nottinghamshire"]
[null,null,"North West","Greater Manchester",null,null,null,"East Midlands","EM BTTA","Please Select"]
[null,null,"North West","Lancashire",null,null,null,"East Midlands","EM BTTA","EM BTTA"]
[null,null,"North West","Merseyside",null,null,null,"East Midlands","EM Energy","Please Select"]
[null,null,"North West","NW BTTA",null,null,null,"East Midlands","EM Energy","EM Energy"]
[null,null,"North West","NW Energy",null,null,null,"East Midlands","EM Other","Please Select"]
[null,null,"North West","NW Other",null,null,null,"East Midlands","EM Other","EM Other"]
[null,null,"Northern Ireland","Please Select",null,null,null,"East Midlands","Leicestershire, Rutland and Northamptonshire","Please Select"]
[null,null,"Northern Ireland","Northern Ireland",null,null,null,"East Midlands","Leicestershire, Rutland and Northamptonshire","Leicester"]
[null,null,"Scotland","Please Select",null,null,null,"East Midlands","Leicestershire, Rutland and Northamptonshire","Leicestershire CC and Rutland"]
[null,null,"Scotland","Eastern Scotland",null,null,null,"East Midlands","Leicestershire, Rutland and Northamptonshire","North Northamptonshire"]
[null,null,"Scotland","Highlands and Islands",null,null,null,"East Midlands","Leicestershire, Rutland and Northamptonshire","West Northamptonshire"]
[null,null,"Scotland","North Eastern Scotland",null,null,null,"East Midlands","Lincolnshire","Please Select"]
[null,null,"Scotland","SC BTTA",null,null,null,"East Midlands","Lincolnshire","Lincolnshire"]
[null,null,"Scotland","SC Energy",null,null,null,"London","Inner London - East","Please Select"]
[null,null,"Scotland","SC Other",null,null,null,"London","Inner London - East","Hackney and Newham"]
[null,null,"Scotland","South Western Scotland",null,null,null,"London","Inner London - East","Haringey and Islington"]
[null,null,"South East","Please Select",null,null,null,"London","Inner London - East","Lambeth"]
[null,null,"South East","Berkshire, Buckinghamshire and Oxfordshire",null,null,null,"London","Inner London - East","Lewisham and Southwark"]
[null,null,"South East","Hampshire and Isle of Wight",null,null,null,"London","Inner London - East","Tower Hamlets"]
[null,null,"South East","Kent",null,null,null,"London","Inner London - West","Please Select"]
[null,null,"South East","SE BTTA",null,null,null,"London","Inner London - West","Camden and City of London"]
[null,null,"South East","SE Energy",null,null,null,"London","Inner London - West","Kensington & Chelsea and Hammersmith & Fulham"]
[null,null,"South East","SE Other",null,null,null,"London","Inner London - West","Wandsworth"]
[null,null,"South East","Surrey, East and West Sussex",null,null,null,"London","Inner London - West","Westminster"]
[null,null,"South West","Please Select",null,null,null,"London","LO BTTA","Please Select"]
[null,null,"South West","Cornwall and Isles of Scilly",null,null,null,"London","LO BTTA","LO BTTA"]
[null,null,"South West","Devon",null,null,null,"London","LO Other","Please Select"]
[null,null,"South West","Dorset and Somerset",null,null,null,"London","LO Other","LO Other"]
[null,null,"South West","Gloucestershire, Wiltshire and Bath/Bristol area",null,null,null,"London","Outer London - East and North East","Please Select"]
[null,null,"South West","SW Energy",null,null,null,"London","Outer London - East and North East","Barking & Dagenham and Havering"]
[null,null,"South West","SW BTTA",null,null,null,"London","Outer London - East and North East","Bexley and Greenwich"]
[null,null,"South West","SW Other",null,null,null,"London","Outer London - East and North East","Enfield"]
[null,null,"Wales","Please Select",null,null,null,"London","Outer London - East and North East","Redbridge and Waltham Forest"]
[null,null,"Wales","East Wales",null,null,null,"London","Outer London - South","Please Select"]
[null,null,"Wales","WA BTTA",null,null,null,"London","Outer London - South","Bromley"]
[null,null,"Wales","WA Energy",null,null,null,"London","Outer London - South","Croydon"]
[null,null,"Wales","WA Other",null,null,null,"London","Outer London - South","Merton, Kingston upon Thames and Sutton"]
[null,null,"Wales","West Wales",null,null,null,"London","Outer London - West and North West","Please Select"]
[null,null,"West Midlands","Please Select",null,null,null,"London","Outer London - West and North West","Barnet"]
[null,null,"West Midlands","Herefordshire, Worcestershire and Warwickshire",null,null,null,"London","Outer London - West and North West","Brent"]
[null,null,"West Midlands","Shropshire and Staffordshire",null,null,null,"London","Outer London - West and North West","Ealing"]
[null,null,"West Midlands","West Midlands",null,null,null,"London","Outer London - West and North West","Harrow and Hillingdon"]
[null,null,"West Midlands","WM BTTA",null,null,null,"London","Outer London - West and North West","Hounslow and Richmond upon Thames"]
[null,null,"West Midlands","WM Other",null,null,null,"North East","NE BTTA","Please Select"]
[null,null,"West Midlands","WM Energy",null,null,null,"North East","NE BTTA","NE BTTA"]
[null,null,"Yorkshire and the Humber","Please Select",null,null,null,"North East","NE Energy","Please Select"]
[null,null,"Yorkshire and the Humber","East Yorkshire and Northern Lincolnshire",null,null,null,"North East","NE Energy","NE Energy"]
[null,null,"Yorkshire and the Humber","North Yorkshire",null,null,null,"North East","NE Other","Please Select"]
[null,null,"Yorkshire and the Humber","South Yorkshire",null,null,null,"North East","NE Other","NE Other"]
[null,null,"Yorkshire and the Humber","West Yorkshire",null,null,null,"North East","Northumberland and Tyne and Wear","Please Select"]
[null,null,"Yorkshire and the Humber","YH BTTA",null,null,null,"North East","Northumberland and Tyne and Wear","Northumberland"]
[null,null,"Yorkshire and the Humber","YH Energy",null,null,null,"North East","Northumberland and Tyne and Wear","Sunderland"]
[null,null,"Yorkshire and the Humber","YH Other",null,null,null,"North East","Northumberland and Tyne and Wear","Tyneside"]
[null,null,null,null,null,null,null,"North East","Tees Valley and Durham","Please Select"]
[null,null,null,null,null,null,null,"North East","Tees Valley and Durham","Darlington"]
[null,null,null,null,null,null,null,"North East","Tees Valley and Durham","Durham CC"]
[null,null,null,null,null,null,null,"North East","Tees Valley and Durham","Hartlepool and Stockton-on-Tees"]
[null,null,null,null,null,null,null,"North East","Tees Valley and Durham","South Teesside"]
[null,null,null,null,null,null,null,"North West","Cheshire","Please Select"]
[null,null,null,null,null,null,null,"North West","Cheshire","Cheshire East"]
[null,null,null,null,null,null,null,"North West","Cheshire","Cheshire West and Chester"]
[null,null,null,null,null,null,null,"North West","Cheshire","Warrington"]
[null,null,null,null,null,null,null,"North West","Cumbria","Please Select"]
[null,null,null,null,null,null,null,"North West","Cumbria","East Cumbria"]
[null,null,null,null,null,null,null,"North West","Cumbria","West Cumbria"]
[null,null,null,null,null,null,null,"North West","Greater Manchester","Please Select"]
[null,null,null,null,null,null,null,"North West","Greater Manchester","Greater Manchester North East"]
[null,null,null,null,null,null,null,"North West","Greater Manchester","Greater Manchester North West"]
[null,null,null,null,null,null,null,"North West","Greater Manchester","Greater Manchester South East"]
[null,null,null,null,null,null,null,"North West","Greater Manchester","Greater Manchester South West"]
[null,null,null,null,null,null,null,"North West","Greater Manchester","Manchester"]
[null,null,null,null,null,null,null,"North West","Lancashire","Please Select"]
[null,null,null,null,null,null,null,"North West","Lancashire","Blackburn with Darwen"]
[null,null,null,null,null,null,null,"North West","Lancashire","Blackpool"]
[null,null,null,null,null,null,null,"North West","Lancashire","Chorley and West Lancashire"]
[null,null,null,null,null,null,null,"North West","Lancashire","East Lancashire"]
[null,null,null,null,null,null,null,"North West","Lancashire","Lancaster and Wyre"]
[null,null,null,null,null,null,null,"North West","Lancashire","Mid Lancashire"]
[null,null,null,null,null,null,null,"North West","Merseyside","Please Select"]
[null,null,null,null,null,null,null,"North West","Merseyside","East Merseyside"]
[null,null,null,null,null,null,null,"North West","Merseyside","Liverpool"]
[null,null,null,null,null,null,null,"North West","Merseyside","Sefton"]
[null,null,null,null,null,null,null,"North West","Merseyside","Wirral"]
[null,null,null,null,null,null,null,"North West","NW BTTA","Please Select"]
[null,null,null,null,null,null,null,"North West","NW BTTA","NW BTTA"]
[null,null,null,null,null,null,null,"North West","NW Energy","Please Select"]
[null,null,null,null,null,null,null,"North West","NW Energy","NW Energy"]
[null,null,null,null,null,null,null,"North West","NW Other","Please Select"]
[null,null,null,null,null,null,null,"North West","NW Other","NW Other"]
[null,null,null,null,null,null,null,"Northern Ireland","Northern Ireland","Please Select"]
[null,null,null,null,null,null,null,"Northern Ireland","Northern Ireland","Belfast"]
[null,null,null,null,null,null,null,"Northern Ireland","Northern Ireland","East of Northern Ireland"]
[null,null,null,null,null,null,null,"Northern Ireland","Northern Ireland","NI BTTA"]
[null,null,null,null,null,null,null,"Northern Ireland","Northern Ireland","NI Energy"]
[null,null,null,null,null,null,null,"Northern Ireland","Northern Ireland","NI Other"]
[null,null,null,null,null,null,null,"Northern Ireland","Northern Ireland","North of Northern Ireland"]
[null,null,null,null,null,null,null,"Northern Ireland","Northern Ireland","Outer Belfast"]
[null,null,null,null,null,null,null,"Northern Ireland","Northern Ireland","West and South of Northern Ireland"]
[null,null,null,null,null,null,null,"Scotland","Eastern Scotland","Please Select"]
[null,null,null,null,null,null,null,"Scotland","Eastern Scotland","Angus and Dundee City"]
[null,null,null,null,null,null,null,"Scotland","Eastern Scotland","Clackmannanshire and Fife"]
[null,null,null,null,null,null,null,"Scotland","Eastern Scotland","East Lothian and Midlothian"]
[null,null,null,null,null,null,null,"Scotland","Eastern Scotland","Edinburgh, City of"]
[null,null,null,null,null,null,null,"Scotland","Eastern Scotland","Falkirk"]
[null,null,null,null,null,null,null,"Scotland","Eastern Scotland","Perth & Kinross and Stirling"]
[null,null,null,null,null,null,null,"Scotland","Eastern Scotland","Scottish Borders"]
[null,null,null,null,null,null,null,"Scotland","Eastern Scotland","West Lothian"]
[null,null,null,null,null,null,null,"Scotland","Highlands and Islands","Please Select"]
[null,null,null,null,null,null,null,"Scotland","Highlands and Islands","Caithness & Sutherland and Ross & Cromarty"]
[null,null,null,null,null,null,null,"Scotland","Highlands and Islands","Eilean Siar (Western Isles)"]
[null,null,null,null,null,null,null,"Scotland","Highlands and Islands","Inverness & Nairn and Moray, Badenoch & Strathspey"]
[null,null,null,null,null,null,null,"Scotland","Highlands and Islands","Lochaber, Skye & Lochalsh, Arran & Cumbrae and Argyll & Bute"]
[null,null,null,null,null,null,null,"Scotland","Highlands and Islands","Orkney Islands"]
[null,null,null,null,null,null,null,"Scotland","Highlands and Islands","Shetland Islands"]
[null,null,null,null,null,null,null,"Scotland","North Eastern Scotland","Please Select"]
[null,null,null,null,null,null,null,"Scotland","North Eastern Scotland","Aberdeen City and Aberdeenshire"]
[null,null,null,null,null,null,null,"Scotland","SC BTTA","Please Select"]
[null,null,null,null,null,null,null,"Scotland","SC BTTA","SC BTTA"]
[null,null,null,null,null,null,null,"Scotland","SC Energy","Please Select"]
[null,null,null,null,null,null,null,"Scotland","SC Energy","SC Energy"]
[null,null,null,null,null,null,null,"Scotland","SC Other","Please Select"]
[null,null,null,null,null,null,null,"Scotland","SC Other","SC Other"]
[null,null,null,null,null,null,null,"Scotland","South Western Scotland","Please Select"]
[null,null,null,null,null,null,null,"Scotland","South Western Scotland","Dumfries & Galloway"]
[null,null,null,null,null,null,null,"Scotland","South Western Scotland","East Ayrshire and North Ayrshire mainland"]
[null,null,null,null,null,null,null,"Scotland","South Western Scotland","East Dunbartonshire, West Dunbartonshire and Helensburgh & Lomond"]
[null,null,null,null,null,null,null,"Scotland","South Western Scotland","Glasgow City"]
[null,null,null,null,null,null,null,"Scotland","South Western Scotland","Inverclyde, East Renfrewshire and Renfrewshire"]
[null,null,null,null,null,null,null,"Scotland","South Western Scotland","North Lanarkshire"]
[null,null,null,null,null,null,null,"Scotland","South Western Scotland","South Ayrshire"]
[null,null,null,null,null,null,null,"Scotland","South Western Scotland","South Lanarkshire"]
[null,null,null,null,null,null,null,"South East","Berkshire, Buckinghamshire and Oxfordshire","Please Select"]
[null,null,null,null,null,null,null,"South East","Berkshire, Buckinghamshire and Oxfordshire","Berkshire"]
[null,null,null,null,null,null,null,"South East","Berkshire, Buckinghamshire and Oxfordshire","Buckinghamshire CC"]
[null,null,null,null,null,null,null,"South East","Berkshire, Buckinghamshire and Oxfordshire","Milton Keynes"]
[null,null,null,null,null,null,null,"South East","Berkshire, Buckinghamshire and Oxfordshire","Oxfordshire"]
[null,null,null,null,null,null,null,"South East","Hampshire and Isle of Wight","Please Select"]
[null,null,null,null,null,null,null,"South East","Hampshire and Isle of Wight","Central Hampshire"]
[null,null,null,null,null,null,null,"South East","Hampshire and Isle of Wight","Isle of Wight"]
[null,null,null,null,null,null,null,"South East","Hampshire and Isle of Wight","North Hampshire"]
[null,null,null,null,null,null,null,"South East","Hampshire and Isle of Wight","Portsmouth"]
[null,null,null,null,null,null,null,"South East","Hampshire and Isle of Wight","South Hampshire"]
[null,null,null,null,null,null,null,"South East","Hampshire and Isle of Wight","Southampton"]
[null,null,null,null,null,null,null,"South East","Kent","Please Select"]
[null,null,null,null,null,null,null,"South East","Kent","East Kent"]
[null,null,null,null,null,null,null,"South East","Kent","Kent Thames Gateway"]
[null,null,null,null,null,null,null,"South East","Kent","Medway"]
[null,null,null,null,null,null,null,"South East","Kent","Mid Kent"]
[null,null,null,null,null,null,null,"South East","Kent","West Kent"]
[null,null,null,null,null,null,null,"South East","SE BTTA","Please Select"]
[null,null,null,null,null,null,null,"South East","SE BTTA","SE BTTA"]
[null,null,null,null,null,null,null,"South East","SE Energy","Please Select"]
[null,null,null,null,null,null,null,"South East","SE Energy","SE Energy"]
[null,null,null,null,null,null,null,"South East","SE Other","Please Select"]
[null,null,null,null,null,null,null,"South East","SE Other","SE Other"]
[null,null,null,null,null,null,null,"South East","Surrey, East and West Sussex","Please Select"]
[null,null,null,null,null,null,null,"South East","Surrey, East and West Sussex","Brighton and Hove"]
[null,null,null,null,null,null,null,"South East","Surrey, East and West Sussex","East Surrey"]
[null,null,null,null,null,null,null,"South East","Surrey, East and West Sussex","East Sussex CC"]
[null,null,null,null,null,null,null,"South East","Surrey, East and West Sussex","West Surrey"]
[null,null,null,null,null,null,null,"South East","Surrey, East and West Sussex","West Sussex (North East)"]
[null,null,null,null,null,null,null,"South East","Surrey, East and West Sussex","West Sussex (South West)"]
[null,null,null,null,null,null,null,"South West","Cornwall and Isles of Scilly","Please Select"]
[null,null,null,null,null,null,null,"South West","Cornwall and Isles of Scilly","Cornwall and Isles of Scilly"]
[null,null,null,null,null,null,null,"South West","Devon","Please Select"]
[null,null,null,null,null,null,null,"South West","Devon","Devon CC"]
[null,null,null,null,null,null,null,"South West","Devon","Plymouth"]
[null,null,null,null,null,null,null,"South West","Devon","Torbay"]
[null,null,null,null,null,null,null,"South West","Dorset and Somerset","Please Select"]
[null,null,null,null,null,null,null,"South West","Dorset and Somerset","Bournemouth and Poole"]
[null,null,null,null,null,null,null,"South West","Dorset and Somerset","Dorset CC"]
[null,null,null,null,null,null,null,"South West","Dorset and Somerset","Somerset"]
[null,null,null,null,null,null,null,"South West","Gloucestershire, Wiltshire and Bath/Bristol area","Please Select"]
[null,null,null,null,null,null,null,"South West","Gloucestershire, Wiltshire and Bath/Bristol area","Bath and North East Somerset, North Somerset and South Gloucestershire"]
[null,null,null,null,null,null,null,"South West","Gloucestershire, Wiltshire and Bath/Bristol area","Bristol, City of"]
[null,null,null,null,null,null,null,"South West","Gloucestershire, Wiltshire and Bath/Bristol area","Gloucestershire"]
[null,null,null,null,null,null,null,"South West","Gloucestershire, Wiltshire and Bath/Bristol area","Swindon"]
[null,null,null,null,null,null,null,"South West","Gloucestershire, Wiltshire and Bath/Bristol area","Wiltshire"]
[null,null,null,null,null,null,null,"South West","SW BTTA","Please Select"]
[null,null,null,null,null,null,null,"South West","SW BTTA","SW BTTA"]
[null,null,null,null,null,null,null,"South West","SW Other","Please Select"]
[null,null,null,null,null,null,null,"South West","SW Other","SW Other"]
[null,null,null,null,null,null,null,"Wales","East Wales","Please Select"]
[null,null,null,null,null,null,null,"Wales","East Wales","Cardiff and Vale of Glamorgan"]
[null,null,null,null,null,null,null,"Wales","East Wales","Flintshire and Wrexham"]
[null,null,null,null,null,null,null,"Wales","East Wales","Monmouthshire and Newport"]
[null,null,null,null,null,null,null,"Wales","East Wales","Powys"]
[null,null,null,null,null,null,null,"Wales","WA BTTA","Please Select"]
[null,null,null,null,null,null,null,"Wales","WA BTTA","WA BTTA"]
[null,null,null,null,null,null,null,"Wales","WA Energy","Please Select"]
[null,null,null,null,null,null,null,"Wales","WA Energy","WA Energy"]
[null,null,null,null,null,null,null,"Wales","WA Other","Please Select"]
[null,null,null,null,null,null,null,"Wales","WA Other","WA Other"]
[null,null,null,null,null,null,null,"Wales","West Wales","Please Select"]
[null,null,null,null,null,null,null,"Wales","West Wales","Bridgend and Neath Port Talbot"]
[null,null,null,null,null,null,null,"Wales","West Wales","Central Valleys"]
[null,null,null,null,null,null,null,"Wales","West Wales","Conwy and Denbighshire"]
[null,null,null,null,null,null,null,"Wales","West Wales","Gwent Valleys"]
[null,null,null,null,null,null,null,"Wales","West Wales","Gwynedd"]
[null,null,null,null,null,null,null,"Wales","West Wales","Isle of Anglesey"]
[null,null,null,null,null,null,null,"Wales","West Wales","South West Wales"]
[null,null,null,null,null,null,null,"Wales","West Wales","Swansea"]
[null,null,null,null,null,null,null,"West Midlands","Herefordshire, Worcestershire and Warwickshire","Please Select"]
[null,null,null,null,null,null,null,"West Midlands","Herefordshire, Worcestershire and Warwickshire","Herefordshire, County of"]
[null,null,null,null,null,null,null,"West Midlands","Herefordshire, Worcestershire and Warwickshire","Warwickshire"]
[null,null,null,null,null,null,null,"West Midlands","Herefordshire, Worcestershire and Warwickshire","Worcestershire"]
[null,null,null,null,null,null,null,"West Midlands","Shropshire and Staffordshire","Please Select"]
[null,null,null,null,null,null,null,"West Midlands","Shropshire and Staffordshire","Shropshire CC"]
[null,null,null,null,null,null,null,"West Midlands","Shropshire and Staffordshire","Staffordshire CC"]
[null,null,null,null,null,null,null,"West Midlands","Shropshire and Staffordshire","Stoke-on-Trent"]
[null,null,null,null,null,null,null,"West Midlands","Shropshire and Staffordshire","Telford and Wrekin"]
[null,null,null,null,null,null,null,"West Midlands","West Midlands","Please Select"]
[null,null,null,null,null,null,null,"West Midlands","West Midlands","Birmingham"]
[null,null,null,null,null,null,null,"West Midlands","West Midlands","Coventry"]
[null,null,null,null,null,null,null,"West Midlands","West Midlands","Dudley"]
[null,null,null,null,null,null,null,"West Midlands","West Midlands","Sandwell"]
[null,null,null,null,null,null,null,"West Midlands","West Midlands","Solihull"]
[null,null,null,null,null,null,null,"West Midlands","West Midlands","Walsall"]
[null,null,null,null,null,null,null,"West Midlands","West Midlands","Wolverhampton"]
[null,null,null,null,null,null,null,"West Midlands","WM BTTA","Please Select"]
[null,null,null,null,null,null,null,"West Midlands","WM BTTA","WM BTTA"]
[null,null,null,null,null,null,null,"West Midlands","WM Other","Please Select"]
[null,null,null,null,null,null,null,"West Midlands","WM Other","WM Other"]
[null,null,null,null,null,null,null,"Yorkshire and the Humber","East Yorkshire and Northern Lincolnshire","Please Select"]
[null,null,null,null,null,null,null,"Yorkshire and the Humber","East Yorkshire and Northern Lincolnshire","East Riding of Yorkshire"]
[null,null,null,null,null,null,null,"Yorkshire and the Humber","East Yorkshire and Northern Lincolnshire","Kingston upon Hull, City of"]
[null,null,null,null,null,null,null,"Yorkshire and the Humber","East Yorkshire and Northern Lincolnshire","North and North East Lincolnshire"]
[null,null,null,null,null,null,null,"Yorkshire and the Humber","North Yorkshire","Please Select"]
[null,null,null,null,null,null,null,"Yorkshire and the Humber","North Yorkshire","North Yorkshire CC"]
[null,null,null,null,null,null,null,"Yorkshire and the Humber","North Yorkshire","York"]
[null,null,null,null,null,null,null,"Yorkshire and the Humber","South Yorkshire","Please Select"]
[null,null,null,null,null,null,null,"Yorkshire and the Humber","South Yorkshire","Barnsley, Doncaster and Rotherham"]
[null,null,null,null,null,null,null,"Yorkshire and the Humber","South Yorkshire","Sheffield"]
[null,null,null,null,null,null,null,"Yorkshire and the Humber","West Yorkshire","Please Select"]
[null,null,null,null,null,null,null,"Yorkshire and the Humber","West Yorkshire","Bradford"]
[null,null,null,null,null,null,null,"Yorkshire and the Humber","West Yorkshire","Calderdale and Kirklees"]
[null,null,null,null,null,null,null,"Yorkshire and the Humber","West Yorkshire","Leeds"]
[null,null,null,null,null,null,null,"Yorkshire and the Humber","West Yorkshire","Wakefield"]
[null,null,null,null,null,null,null,"Yorkshire and the Humber","YH BTTA","Please Select"]
[null,null,null,null,null,null,null,"Yorkshire and the Humber","YH BTTA","YH BTTA"]
[null,null,null,null,null,null,null,"Yorkshire and the Humber","YH Energy","Please Select"]
[null,null,null,null,null,null,null,"Yorkshire and the Humber","YH Energy","YH Energy"]
[null,null,null,null,null,null,null,"Yorkshire and the Humber","YH Other","Please Select"]
[null,null,null,null,null,null,null,"Yorkshire and the Humber","YH Other","YH Other"]